Body Name,Body,Expense Area,Expense Type,Expense Code,Date Paid,Transaction Number,Amount,Category,Supplier Name,Registration Number,Supplier ID
North Lincolnshire Council,http://data.ordnancesurvey.co.uk/id/7000000000025623,Culture & Related Services,Payments To Voluntary Orgs,6001,20/03/2019,5651859,315.00,REVENUE,1st Scawby Brownies,,1ST0017T
North Lincolnshire Council,http://data.ordnancesurvey.co.uk/id/7000000000025623,Childrens & Education,Home To School Transport,4201,15/03/2019,5648033,"4,144.06",REVENUE,2 Way Transport Ltd,06909369,TWO0002O
North Lincolnshire Council,http://data.ordnancesurvey.co.uk/id/7000000000025623,Childrens & Education,Home To School Transport,4201,07/04/2019,5648477,"106,153.11",REVENUE,2 Way Transport Ltd,06909369,TWO0002O
North Lincolnshire Council,http://data.ordnancesurvey.co.uk/id/7000000000025623,Culture & Related Services,Payments To Voluntary Orgs,6001,20/03/2019,5651861,250.00,REVENUE,6th Scunthorpe (Messingham) Scout Group,,SCU0101U
North Lincolnshire Council,http://data.ordnancesurvey.co.uk/id/7000000000025623,Adult Social Care,Gen Office Exp (Incl Postage),5603,20/04/2019,5653815,"8,000.00",REVENUE,Abavus Ltd,6082412,ABA0014A
North Lincolnshire Council,http://data.ordnancesurvey.co.uk/id/7000000000025623,Childrens & Education,Other Professional Fees,5829,06/03/2019,5642791,900.00,REVENUE,Abcd,3985838,ABC0009C
North Lincolnshire Council,http://data.ordnancesurvey.co.uk/id/7000000000025623,Childrens & Education,Payments To Private Orgs,6002,22/03/2019,5653255,630.00,REVENUE,Abderdeenshire Council,,ABD0030D
North Lincolnshire Council,http://data.ordnancesurvey.co.uk/id/7000000000025623,Childrens & Education,Payments To Private Orgs,6002,22/03/2019,5653266,630.00,REVENUE,Abderdeenshire Council,,ABD0030D
North Lincolnshire Council,http://data.ordnancesurvey.co.uk/id/7000000000025623,Environmental & Regulatory Svs,Other Professional Fees,5829,22/03/2019,5648885,275.00,REVENUE,A B Martin Pest Control,,ABM0004M
North Lincolnshire Council,http://data.ordnancesurvey.co.uk/id/7000000000025623,Childrens & Education,Home To School Transport,4201,15/03/2019,5648030,"1,252.00",REVENUE,Abu'S Taxis,,ABU0005U
North Lincolnshire Council,http://data.ordnancesurvey.co.uk/id/7000000000025623,Childrens & Education,Home To School Transport,4201,15/03/2019,5648031,941.40,REVENUE,Abu'S Taxis,,ABU0005U
North Lincolnshire Council,http://data.ordnancesurvey.co.uk/id/7000000000025623,Fin&Inv I&E,Other Supplies & Services,5799,20/03/2019,5651332,"14,800.00",REVENUE,Accountancy Solutions (Uk) Ltd,,ACC0091C
North Lincolnshire Council,http://data.ordnancesurvey.co.uk/id/7000000000025623,Childrens & Education,Other Supplies & Services,5799,13/03/2019,5646246,800.00,REVENUE,Active Humber,8759196,HUM0385M
North Lincolnshire Council,http://data.ordnancesurvey.co.uk/id/7000000000025623,Childrens & Education,Client Transport Costs,6092,13/03/2019,5647715,529.20,REVENUE,Actsure Ltd,2375365,FAS0002S
North Lincolnshire Council,http://data.ordnancesurvey.co.uk/id/7000000000025623,Childrens & Education,Client Transport Costs,6092,13/03/2019,5647723,"1,621.60",REVENUE,Actsure Ltd,2375365,FAS0002S
North Lincolnshire Council,http://data.ordnancesurvey.co.uk/id/7000000000025623,Childrens & Education,Client Transport Costs,6092,13/03/2019,5647724,635.20,REVENUE,Actsure Ltd,2375365,FAS0002S
North Lincolnshire Council,http://data.ordnancesurvey.co.uk/id/7000000000025623,Childrens & Education,Client Transport Costs,6092,13/03/2019,5647730,213.00,REVENUE,Actsure Ltd,2375365,FAS0002S
North Lincolnshire Council,http://data.ordnancesurvey.co.uk/id/7000000000025623,Childrens & Education,Home To School Transport,4201,15/03/2019,5648490,440.00,REVENUE,Actsure Ltd,2375365,FAS0002S
North Lincolnshire Council,http://data.ordnancesurvey.co.uk/id/7000000000025623,Childrens & Education,Home To School Transport,4201,15/03/2019,5648493,238.00,REVENUE,Actsure Ltd,2375365,FAS0002S
North Lincolnshire Council,http://data.ordnancesurvey.co.uk/id/7000000000025623,Childrens & Education,Other Incidental Travel Costs,4311,20/03/2019,5651264,208.40,REVENUE,Actsure Ltd,2375365,FAS0002S
North Lincolnshire Council,http://data.ordnancesurvey.co.uk/id/7000000000025623,Adult Social Care,Repair & Maintenance Costs,3000,20/03/2019,5648090,88.68,REVENUE,Acumen Solutions Ltd,03320506,ACU0004U
North Lincolnshire Council,http://data.ordnancesurvey.co.uk/id/7000000000025623,Adult Social Care,Repair & Maintenance Costs,3000,22/03/2019,5653727,0,REVENUE,Acumen Solutions Ltd,03320506,ACU0004U
North Lincolnshire Council,http://data.ordnancesurvey.co.uk/id/7000000000025623,Adult Social Care,Repair & Maintenance Costs,3000,27/03/2019,5653791,419.92,REVENUE,Acumen Solutions Ltd,03320506,ACU0004U
North Lincolnshire Council,http://data.ordnancesurvey.co.uk/id/7000000000025623,Childrens & Education,Repair & Maintenance Costs,3000,13/03/2019,5646627,442.55,REVENUE,Acumen Solutions Ltd,03320506,ACU0004U
North Lincolnshire Council,http://data.ordnancesurvey.co.uk/id/7000000000025623,Childrens & Education,Repair & Maintenance Costs,3000,20/03/2019,5648090,252.47,REVENUE,Acumen Solutions Ltd,03320506,ACU0004U
North Lincolnshire Council,http://data.ordnancesurvey.co.uk/id/7000000000025623,Childrens & Education,Repair & Maintenance Costs,3000,20/03/2019,5648090,251.76,REVENUE,Acumen Solutions Ltd,03320506,ACU0004U
North Lincolnshire Council,http://data.ordnancesurvey.co.uk/id/7000000000025623,Childrens & Education,Repair & Maintenance Costs,3000,20/03/2019,5651347,342.40,REVENUE,Acumen Solutions Ltd,03320506,ACU0004U
North Lincolnshire Council,http://data.ordnancesurvey.co.uk/id/7000000000025623,Childrens & Education,Repair & Maintenance Costs,3000,27/03/2019,5653791,114.10,REVENUE,Acumen Solutions Ltd,03320506,ACU0004U
North Lincolnshire Council,http://data.ordnancesurvey.co.uk/id/7000000000025623,Childrens & Education,Repair & Maintenance Costs,3000,27/03/2019,5654075,60.00,REVENUE,Acumen Solutions Ltd,03320506,ACU0004U
North Lincolnshire Council,http://data.ordnancesurvey.co.uk/id/7000000000025623,Childrens & Education,Repair & Maintenance Costs,3000,27/03/2019,5654106,240.00,REVENUE,Acumen Solutions Ltd,03320506,ACU0004U
North Lincolnshire Council,http://data.ordnancesurvey.co.uk/id/7000000000025623,Corporate And Democratic Core,Materials,5004,20/03/2019,5648090,164.41,REVENUE,Acumen Solutions Ltd,03320506,ACU0004U
North Lincolnshire Council,http://data.ordnancesurvey.co.uk/id/7000000000025623,Corporate And Democratic Core,Materials,5004,22/03/2019,5652548,"1,169.29",REVENUE,Acumen Solutions Ltd,03320506,ACU0004U
North Lincolnshire Council,http://data.ordnancesurvey.co.uk/id/7000000000025623,Corporate And Democratic Core,Repair & Maintenance Costs,3000,13/03/2019,5646535,"1,164.84",REVENUE,Acumen Solutions Ltd,03320506,ACU0004U
North Lincolnshire Council,http://data.ordnancesurvey.co.uk/id/7000000000025623,Corporate And Democratic Core,Repair & Maintenance Costs,3000,13/03/2019,5646548,0,REVENUE,Acumen Solutions Ltd,03320506,ACU0004U
North Lincolnshire Council,http://data.ordnancesurvey.co.uk/id/7000000000025623,Corporate And Democratic Core,Repair & Maintenance Costs,3000,13/03/2019,5646555,780.00,REVENUE,Acumen Solutions Ltd,03320506,ACU0004U
North Lincolnshire Council,http://data.ordnancesurvey.co.uk/id/7000000000025623,Corporate And Democratic Core,Repair & Maintenance Costs,3000,13/03/2019,5646557,720.00,REVENUE,Acumen Solutions Ltd,03320506,ACU0004U
North Lincolnshire Council,http://data.ordnancesurvey.co.uk/id/7000000000025623,Corporate And Democratic Core,Repair & Maintenance Costs,3000,13/03/2019,5646560,680.00,REVENUE,Acumen Solutions Ltd,03320506,ACU0004U
North Lincolnshire Council,http://data.ordnancesurvey.co.uk/id/7000000000025623,Corporate And Democratic Core,Repair & Maintenance Costs,3000,13/03/2019,5646567,781.22,REVENUE,Acumen Solutions Ltd,03320506,ACU0004U
North Lincolnshire Council,http://data.ordnancesurvey.co.uk/id/7000000000025623,Corporate And Democratic Core,Repair & Maintenance Costs,3000,13/03/2019,5646569,740.00,REVENUE,Acumen Solutions Ltd,03320506,ACU0004U
North Lincolnshire Council,http://data.ordnancesurvey.co.uk/id/7000000000025623,Corporate And Democratic Core,Repair & Maintenance Costs,3000,13/03/2019,5646577,"1,146.60",REVENUE,Acumen Solutions Ltd,03320506,ACU0004U
North Lincolnshire Council,http://data.ordnancesurvey.co.uk/id/7000000000025623,Corporate And Democratic Core,Repair & Maintenance Costs,3000,13/03/2019,5646586,300.00,REVENUE,Acumen Solutions Ltd,03320506,ACU0004U
North Lincolnshire Council,http://data.ordnancesurvey.co.uk/id/7000000000025623,Corporate And Democratic Core,Repair & Maintenance Costs,3000,13/03/2019,5646593,0,REVENUE,Acumen Solutions Ltd,03320506,ACU0004U
North Lincolnshire Council,http://data.ordnancesurvey.co.uk/id/7000000000025623,Corporate And Democratic Core,Repair & Maintenance Costs,3000,13/03/2019,5646598,0,REVENUE,Acumen Solutions Ltd,03320506,ACU0004U
North Lincolnshire Council,http://data.ordnancesurvey.co.uk/id/7000000000025623,Corporate And Democratic Core,Repair & Maintenance Costs,3000,13/03/2019,5646605,390.76,REVENUE,Acumen Solutions Ltd,03320506,ACU0004U
North Lincolnshire Council,http://data.ordnancesurvey.co.uk/id/7000000000025623,Corporate And Democratic Core,Repair & Maintenance Costs,3000,13/03/2019,5646612,342.40,REVENUE,Acumen Solutions Ltd,03320506,ACU0004U
North Lincolnshire Council,http://data.ordnancesurvey.co.uk/id/7000000000025623,Corporate And Democratic Core,Repair & Maintenance Costs,3000,13/03/2019,5646627,0,REVENUE,Acumen Solutions Ltd,03320506,ACU0004U
North Lincolnshire Council,http://data.ordnancesurvey.co.uk/id/7000000000025623,Corporate And Democratic Core,Repair & Maintenance Costs,3000,13/03/2019,5646630,283.72,REVENUE,Acumen Solutions Ltd,03320506,ACU0004U
North Lincolnshire Council,http://data.ordnancesurvey.co.uk/id/7000000000025623,Corporate And Democratic Core,Repair & Maintenance Costs,3000,13/03/2019,5647162,283.72,REVENUE,Acumen Solutions Ltd,03320506,ACU0004U
North Lincolnshire Council,http://data.ordnancesurvey.co.uk/id/7000000000025623,Corporate And Democratic Core,Repair & Maintenance Costs,3000,13/03/2019,5647165,0,REVENUE,Acumen Solutions Ltd,03320506,ACU0004U
North Lincolnshire Council,http://data.ordnancesurvey.co.uk/id/7000000000025623,Corporate And Democratic Core,Repair & Maintenance Costs,3000,13/03/2019,5647166,360.00,REVENUE,Acumen Solutions Ltd,03320506,ACU0004U
North Lincolnshire Council,http://data.ordnancesurvey.co.uk/id/7000000000025623,Corporate And Democratic Core,Repair & Maintenance Costs,3000,13/03/2019,5647167,230.24,REVENUE,Acumen Solutions Ltd,03320506,ACU0004U
North Lincolnshire Council,http://data.ordnancesurvey.co.uk/id/7000000000025623,Corporate And Democratic Core,Repair & Maintenance Costs,3000,13/03/2019,5647170,462.76,REVENUE,Acumen Solutions Ltd,03320506,ACU0004U
North Lincolnshire Council,http://data.ordnancesurvey.co.uk/id/7000000000025623,Corporate And Democratic Core,Repair & Maintenance Costs,3000,13/03/2019,5647341,0,REVENUE,Acumen Solutions Ltd,03320506,ACU0004U
North Lincolnshire Council,http://data.ordnancesurvey.co.uk/id/7000000000025623,Corporate And Democratic Core,Repair & Maintenance Costs,3000,13/03/2019,5647349,436.02,REVENUE,Acumen Solutions Ltd,03320506,ACU0004U
North Lincolnshire Council,http://data.ordnancesurvey.co.uk/id/7000000000025623,Corporate And Democratic Core,Repair & Maintenance Costs,3000,13/03/2019,5647352,270.00,REVENUE,Acumen Solutions Ltd,03320506,ACU0004U
North Lincolnshire Council,http://data.ordnancesurvey.co.uk/id/7000000000025623,Corporate And Democratic Core,Repair & Maintenance Costs,3000,13/03/2019,5647357,"1,802.80",REVENUE,Acumen Solutions Ltd,03320506,ACU0004U
North Lincolnshire Council,http://data.ordnancesurvey.co.uk/id/7000000000025623,Corporate And Democratic Core,Repair & Maintenance Costs,3000,13/03/2019,5647402,0,REVENUE,Acumen Solutions Ltd,03320506,ACU0004U
North Lincolnshire Council,http://data.ordnancesurvey.co.uk/id/7000000000025623,Corporate And Democratic Core,Repair & Maintenance Costs,3000,13/03/2019,5647406,0,REVENUE,Acumen Solutions Ltd,03320506,ACU0004U
North Lincolnshire Council,http://data.ordnancesurvey.co.uk/id/7000000000025623,Corporate And Democratic Core,Repair & Maintenance Costs,3000,13/03/2019,5647439,"1,793.06",REVENUE,Acumen Solutions Ltd,03320506,ACU0004U
North Lincolnshire Council,http://data.ordnancesurvey.co.uk/id/7000000000025623,Corporate And Democratic Core,Repair & Maintenance Costs,3000,13/03/2019,5647451,537.12,REVENUE,Acumen Solutions Ltd,03320506,ACU0004U
North Lincolnshire Council,http://data.ordnancesurvey.co.uk/id/7000000000025623,Corporate And Democratic Core,Repair & Maintenance Costs,3000,13/03/2019,5647504,283.72,REVENUE,Acumen Solutions Ltd,03320506,ACU0004U
North Lincolnshire Council,http://data.ordnancesurvey.co.uk/id/7000000000025623,Corporate And Democratic Core,Repair & Maintenance Costs,3000,13/03/2019,5647506,435.00,REVENUE,Acumen Solutions Ltd,03320506,ACU0004U
North Lincolnshire Council,http://data.ordnancesurvey.co.uk/id/7000000000025623,Corporate And Democratic Core,Repair & Maintenance Costs,3000,13/03/2019,5647508,290.00,REVENUE,Acumen Solutions Ltd,03320506,ACU0004U
North Lincolnshire Council,http://data.ordnancesurvey.co.uk/id/7000000000025623,Corporate And Democratic Core,Repair & Maintenance Costs,3000,13/03/2019,5647509,435.00,REVENUE,Acumen Solutions Ltd,03320506,ACU0004U
North Lincolnshire Council,http://data.ordnancesurvey.co.uk/id/7000000000025623,Corporate And Democratic Core,Repair & Maintenance Costs,3000,13/03/2019,5647646,813.33,REVENUE,Acumen Solutions Ltd,03320506,ACU0004U
North Lincolnshire Council,http://data.ordnancesurvey.co.uk/id/7000000000025623,Corporate And Democratic Core,Repair & Maintenance Costs,3000,15/03/2019,5648435,"1,574.54",REVENUE,Acumen Solutions Ltd,03320506,ACU0004U
North Lincolnshire Council,http://data.ordnancesurvey.co.uk/id/7000000000025623,Corporate And Democratic Core,Repair & Maintenance Costs,3000,20/03/2019,5648090,"8,528.86",REVENUE,Acumen Solutions Ltd,03320506,ACU0004U
North Lincolnshire Council,http://data.ordnancesurvey.co.uk/id/7000000000025623,Corporate And Democratic Core,Repair & Maintenance Costs,3000,20/03/2019,5651300,0,REVENUE,Acumen Solutions Ltd,03320506,ACU0004U
North Lincolnshire Council,http://data.ordnancesurvey.co.uk/id/7000000000025623,Corporate And Democratic Core,Repair & Maintenance Costs,3000,20/03/2019,5651302,0,REVENUE,Acumen Solutions Ltd,03320506,ACU0004U
North Lincolnshire Council,http://data.ordnancesurvey.co.uk/id/7000000000025623,Corporate And Democratic Core,Repair & Maintenance Costs,3000,20/03/2019,5651320,537.12,REVENUE,Acumen Solutions Ltd,03320506,ACU0004U
North Lincolnshire Council,http://data.ordnancesurvey.co.uk/id/7000000000025623,Corporate And Democratic Core,Repair & Maintenance Costs,3000,20/03/2019,5651328,0,REVENUE,Acumen Solutions Ltd,03320506,ACU0004U
North Lincolnshire Council,http://data.ordnancesurvey.co.uk/id/7000000000025623,Corporate And Democratic Core,Repair & Maintenance Costs,3000,20/03/2019,5651329,0,REVENUE,Acumen Solutions Ltd,03320506,ACU0004U
North Lincolnshire Council,http://data.ordnancesurvey.co.uk/id/7000000000025623,Corporate And Democratic Core,Repair & Maintenance Costs,3000,20/03/2019,5651334,0,REVENUE,Acumen Solutions Ltd,03320506,ACU0004U
North Lincolnshire Council,http://data.ordnancesurvey.co.uk/id/7000000000025623,Corporate And Democratic Core,Repair & Maintenance Costs,3000,20/03/2019,5651339,358.08,REVENUE,Acumen Solutions Ltd,03320506,ACU0004U
North Lincolnshire Council,http://data.ordnancesurvey.co.uk/id/7000000000025623,Corporate And Democratic Core,Repair & Maintenance Costs,3000,20/03/2019,5651345,0,REVENUE,Acumen Solutions Ltd,03320506,ACU0004U
North Lincolnshire Council,http://data.ordnancesurvey.co.uk/id/7000000000025623,Corporate And Democratic Core,Repair & Maintenance Costs,3000,20/03/2019,5651660,660.00,REVENUE,Acumen Solutions Ltd,03320506,ACU0004U
North Lincolnshire Council,http://data.ordnancesurvey.co.uk/id/7000000000025623,Corporate And Democratic Core,Repair & Maintenance Costs,3000,20/03/2019,5651662,720.00,REVENUE,Acumen Solutions Ltd,03320506,ACU0004U
North Lincolnshire Council,http://data.ordnancesurvey.co.uk/id/7000000000025623,Corporate And Democratic Core,Repair & Maintenance Costs,3000,20/03/2019,5651664,780.00,REVENUE,Acumen Solutions Ltd,03320506,ACU0004U
North Lincolnshire Council,http://data.ordnancesurvey.co.uk/id/7000000000025623,Corporate And Democratic Core,Repair & Maintenance Costs,3000,20/03/2019,5651673,0,REVENUE,Acumen Solutions Ltd,03320506,ACU0004U
North Lincolnshire Council,http://data.ordnancesurvey.co.uk/id/7000000000025623,Corporate And Democratic Core,Repair & Maintenance Costs,3000,20/03/2019,5651676,0,REVENUE,Acumen Solutions Ltd,03320506,ACU0004U
North Lincolnshire Council,http://data.ordnancesurvey.co.uk/id/7000000000025623,Corporate And Democratic Core,Repair & Maintenance Costs,3000,20/03/2019,5651677,0,REVENUE,Acumen Solutions Ltd,03320506,ACU0004U
North Lincolnshire Council,http://data.ordnancesurvey.co.uk/id/7000000000025623,Corporate And Democratic Core,Repair & Maintenance Costs,3000,20/03/2019,5651679,0,REVENUE,Acumen Solutions Ltd,03320506,ACU0004U
North Lincolnshire Council,http://data.ordnancesurvey.co.uk/id/7000000000025623,Corporate And Democratic Core,Repair & Maintenance Costs,3000,20/03/2019,5651750,0,REVENUE,Acumen Solutions Ltd,03320506,ACU0004U
North Lincolnshire Council,http://data.ordnancesurvey.co.uk/id/7000000000025623,Corporate And Democratic Core,Repair & Maintenance Costs,3000,20/03/2019,5651760,358.08,REVENUE,Acumen Solutions Ltd,03320506,ACU0004U
North Lincolnshire Council,http://data.ordnancesurvey.co.uk/id/7000000000025623,Corporate And Democratic Core,Repair & Maintenance Costs,3000,20/03/2019,5651766,0,REVENUE,Acumen Solutions Ltd,03320506,ACU0004U
North Lincolnshire Council,http://data.ordnancesurvey.co.uk/id/7000000000025623,Corporate And Democratic Core,Repair & Maintenance Costs,3000,20/03/2019,5651768,0,REVENUE,Acumen Solutions Ltd,03320506,ACU0004U
North Lincolnshire Council,http://data.ordnancesurvey.co.uk/id/7000000000025623,Corporate And Democratic Core,Repair & Maintenance Costs,3000,20/03/2019,5651771,0,REVENUE,Acumen Solutions Ltd,03320506,ACU0004U
North Lincolnshire Council,http://data.ordnancesurvey.co.uk/id/7000000000025623,Corporate And Democratic Core,Repair & Maintenance Costs,3000,20/03/2019,5651786,358.08,REVENUE,Acumen Solutions Ltd,03320506,ACU0004U
North Lincolnshire Council,http://data.ordnancesurvey.co.uk/id/7000000000025623,Corporate And Democratic Core,Repair & Maintenance Costs,3000,20/03/2019,5651877,"5,630.00",REVENUE,Acumen Solutions Ltd,03320506,ACU0004U
North Lincolnshire Council,http://data.ordnancesurvey.co.uk/id/7000000000025623,Corporate And Democratic Core,Repair & Maintenance Costs,3000,22/03/2019,5652508,"4,000.00",REVENUE,Acumen Solutions Ltd,03320506,ACU0004U
North Lincolnshire Council,http://data.ordnancesurvey.co.uk/id/7000000000025623,Corporate And Democratic Core,Repair & Maintenance Costs,3000,22/03/2019,5652527,540.00,REVENUE,Acumen Solutions Ltd,03320506,ACU0004U
North Lincolnshire Council,http://data.ordnancesurvey.co.uk/id/7000000000025623,Corporate And Democratic Core,Repair & Maintenance Costs,3000,22/03/2019,5652549,225.00,REVENUE,Acumen Solutions Ltd,03320506,ACU0004U
North Lincolnshire Council,http://data.ordnancesurvey.co.uk/id/7000000000025623,Corporate And Democratic Core,Repair & Maintenance Costs,3000,22/03/2019,5653650,0,REVENUE,Acumen Solutions Ltd,03320506,ACU0004U
North Lincolnshire Council,http://data.ordnancesurvey.co.uk/id/7000000000025623,Corporate And Democratic Core,Repair & Maintenance Costs,3000,22/03/2019,5653727,255.03,REVENUE,Acumen Solutions Ltd,03320506,ACU0004U
North Lincolnshire Council,http://data.ordnancesurvey.co.uk/id/7000000000025623,Corporate And Democratic Core,Repair & Maintenance Costs,3000,27/03/2019,5653791,961.99,REVENUE,Acumen Solutions Ltd,03320506,ACU0004U
North Lincolnshire Council,http://data.ordnancesurvey.co.uk/id/7000000000025623,Corporate And Democratic Core,Repair & Maintenance Costs,3000,27/03/2019,5654075,"1,680.00",REVENUE,Acumen Solutions Ltd,03320506,ACU0004U
North Lincolnshire Council,http://data.ordnancesurvey.co.uk/id/7000000000025623,Corporate And Democratic Core,Repair & Maintenance Costs,3000,27/03/2019,5654092,0,REVENUE,Acumen Solutions Ltd,03320506,ACU0004U
North Lincolnshire Council,http://data.ordnancesurvey.co.uk/id/7000000000025623,Corporate And Democratic Core,Repair & Maintenance Costs,3000,27/03/2019,5654096,"1,482.34",REVENUE,Acumen Solutions Ltd,03320506,ACU0004U
North Lincolnshire Council,http://data.ordnancesurvey.co.uk/id/7000000000025623,Corporate And Democratic Core,Repair & Maintenance Costs,3000,27/03/2019,5654100,0,REVENUE,Acumen Solutions Ltd,03320506,ACU0004U
North Lincolnshire Council,http://data.ordnancesurvey.co.uk/id/7000000000025623,Corporate And Democratic Core,Repair & Maintenance Costs,3000,27/03/2019,5654106,0,REVENUE,Acumen Solutions Ltd,03320506,ACU0004U
North Lincolnshire Council,http://data.ordnancesurvey.co.uk/id/7000000000025623,Corporate And Democratic Core,Repair & Maintenance Costs,3000,27/03/2019,5655838,"2,022.32",REVENUE,Acumen Solutions Ltd,03320506,ACU0004U
North Lincolnshire Council,http://data.ordnancesurvey.co.uk/id/7000000000025623,Corporate And Democratic Core,Repair & Maintenance Costs,3000,27/03/2019,5655840,330.00,REVENUE,Acumen Solutions Ltd,03320506,ACU0004U
North Lincolnshire Council,http://data.ordnancesurvey.co.uk/id/7000000000025623,Corporate And Democratic Core,Repair & Maintenance Costs,3000,27/03/2019,5655841,0,REVENUE,Acumen Solutions Ltd,03320506,ACU0004U
North Lincolnshire Council,http://data.ordnancesurvey.co.uk/id/7000000000025623,Corporate And Democratic Core,Repair & Maintenance Costs,3000,27/03/2019,5655842,575.95,REVENUE,Acumen Solutions Ltd,03320506,ACU0004U
North Lincolnshire Council,http://data.ordnancesurvey.co.uk/id/7000000000025623,Corporate And Democratic Core,Repair & Maintenance Costs,3000,27/03/2019,5655843,553.39,REVENUE,Acumen Solutions Ltd,03320506,ACU0004U
North Lincolnshire Council,http://data.ordnancesurvey.co.uk/id/7000000000025623,Corporate And Democratic Core,Repair & Maintenance Costs,3000,27/03/2019,5655848,"1,200.00",REVENUE,Acumen Solutions Ltd,03320506,ACU0004U
North Lincolnshire Council,http://data.ordnancesurvey.co.uk/id/7000000000025623,"Culture,Env,Reg & Planning Cap",Building/Construction,A082,27/03/2019,5655714,739.95,CAPITAL,Acumen Solutions Ltd,03320506,ACU0004U
North Lincolnshire Council,http://data.ordnancesurvey.co.uk/id/7000000000025623,"Culture,Env,Reg & Planning Cap",Building/Construction,A082,27/03/2019,5655854,"8,370.00",CAPITAL,Acumen Solutions Ltd,03320506,ACU0004U
North Lincolnshire Council,http://data.ordnancesurvey.co.uk/id/7000000000025623,Culture & Related Services,Repair & Maintenance Costs,3000,13/03/2019,5646564,720.00,REVENUE,Acumen Solutions Ltd,03320506,ACU0004U
North Lincolnshire Council,http://data.ordnancesurvey.co.uk/id/7000000000025623,Culture & Related Services,Repair & Maintenance Costs,3000,13/03/2019,5646593,360.00,REVENUE,Acumen Solutions Ltd,03320506,ACU0004U
North Lincolnshire Council,http://data.ordnancesurvey.co.uk/id/7000000000025623,Culture & Related Services,Repair & Maintenance Costs,3000,13/03/2019,5647514,342.40,REVENUE,Acumen Solutions Ltd,03320506,ACU0004U
North Lincolnshire Council,http://data.ordnancesurvey.co.uk/id/7000000000025623,Culture & Related Services,Repair & Maintenance Costs,3000,20/03/2019,5648090,"1,305.71",REVENUE,Acumen Solutions Ltd,03320506,ACU0004U
North Lincolnshire Council,http://data.ordnancesurvey.co.uk/id/7000000000025623,Culture & Related Services,Repair & Maintenance Costs,3000,20/03/2019,5651302,358.08,REVENUE,Acumen Solutions Ltd,03320506,ACU0004U
North Lincolnshire Council,http://data.ordnancesurvey.co.uk/id/7000000000025623,Culture & Related Services,Repair & Maintenance Costs,3000,20/03/2019,5651663,811.83,REVENUE,Acumen Solutions Ltd,03320506,ACU0004U
North Lincolnshire Council,http://data.ordnancesurvey.co.uk/id/7000000000025623,Culture & Related Services,Repair & Maintenance Costs,3000,20/03/2019,5651673,358.08,REVENUE,Acumen Solutions Ltd,03320506,ACU0004U
North Lincolnshire Council,http://data.ordnancesurvey.co.uk/id/7000000000025623,Culture & Related Services,Repair & Maintenance Costs,3000,20/03/2019,5651889,"1,783.60",REVENUE,Acumen Solutions Ltd,03320506,ACU0004U
North Lincolnshire Council,http://data.ordnancesurvey.co.uk/id/7000000000025623,Culture & Related Services,Repair & Maintenance Costs,3000,22/03/2019,5652573,"5,886.00",REVENUE,Acumen Solutions Ltd,03320506,ACU0004U
North Lincolnshire Council,http://data.ordnancesurvey.co.uk/id/7000000000025623,Culture & Related Services,Repair & Maintenance Costs,3000,27/03/2019,5654074,208.57,REVENUE,Acumen Solutions Ltd,03320506,ACU0004U
North Lincolnshire Council,http://data.ordnancesurvey.co.uk/id/7000000000025623,Culture & Related Services,Repair & Maintenance Costs,3000,27/03/2019,5654100,240.00,REVENUE,Acumen Solutions Ltd,03320506,ACU0004U
North Lincolnshire Council,http://data.ordnancesurvey.co.uk/id/7000000000025623,Culture & Related Services,Repair & Maintenance Costs,3000,27/03/2019,5655839,620.00,REVENUE,Acumen Solutions Ltd,03320506,ACU0004U
North Lincolnshire Council,http://data.ordnancesurvey.co.uk/id/7000000000025623,Culture & Related Services,Repair & Maintenance Costs,3000,27/03/2019,5655852,322.67,REVENUE,Acumen Solutions Ltd,03320506,ACU0004U
North Lincolnshire Council,http://data.ordnancesurvey.co.uk/id/7000000000025623,Environmental & Regulatory Svs,Repair & Maintenance Costs,3000,27/03/2019,5653791,62.05,REVENUE,Acumen Solutions Ltd,03320506,ACU0004U
North Lincolnshire Council,http://data.ordnancesurvey.co.uk/id/7000000000025623,Fin&Inv I&E,Equipment Maint.& Repair,5003,27/03/2019,5655848,60.00,REVENUE,Acumen Solutions Ltd,03320506,ACU0004U
North Lincolnshire Council,http://data.ordnancesurvey.co.uk/id/7000000000025623,Fin&Inv I&E,Repair & Maintenance Costs,3000,20/03/2019,5648090,811.97,REVENUE,Acumen Solutions Ltd,03320506,ACU0004U
North Lincolnshire Council,http://data.ordnancesurvey.co.uk/id/7000000000025623,Fin&Inv I&E,Repair & Maintenance Costs,3000,20/03/2019,5651789,0,REVENUE,Acumen Solutions Ltd,03320506,ACU0004U
North Lincolnshire Council,http://data.ordnancesurvey.co.uk/id/7000000000025623,Fin&Inv I&E,Repair & Maintenance Costs,3000,22/03/2019,5653642,459.06,REVENUE,Acumen Solutions Ltd,03320506,ACU0004U
North Lincolnshire Council,http://data.ordnancesurvey.co.uk/id/7000000000025623,Fin&Inv I&E,Repair & Maintenance Costs,3000,27/03/2019,5653791,246.46,REVENUE,Acumen Solutions Ltd,03320506,ACU0004U
North Lincolnshire Council,http://data.ordnancesurvey.co.uk/id/7000000000025623,Fin&Inv I&E,Repair & Maintenance Costs,3000,27/03/2019,5654075,60.00,REVENUE,Acumen Solutions Ltd,03320506,ACU0004U
North Lincolnshire Council,http://data.ordnancesurvey.co.uk/id/7000000000025623,Fin&Inv I&E,Repair & Maintenance Costs,3000,27/03/2019,5654075,180.00,REVENUE,Acumen Solutions Ltd,03320506,ACU0004U
North Lincolnshire Council,http://data.ordnancesurvey.co.uk/id/7000000000025623,Fin&Inv I&E,Repair & Maintenance Costs,3000,27/03/2019,5654088,0,REVENUE,Acumen Solutions Ltd,03320506,ACU0004U
North Lincolnshire Council,http://data.ordnancesurvey.co.uk/id/7000000000025623,Non Distributed Costs,Repair & Maintenance Costs,3000,13/03/2019,5647498,350.00,REVENUE,Acumen Solutions Ltd,03320506,ACU0004U
North Lincolnshire Council,http://data.ordnancesurvey.co.uk/id/7000000000025623,Non Distributed Costs,Repair & Maintenance Costs,3000,20/03/2019,5651745,"2,000.00",REVENUE,Acumen Solutions Ltd,03320506,ACU0004U
North Lincolnshire Council,http://data.ordnancesurvey.co.uk/id/7000000000025623,Non Distributed Costs,Repair & Maintenance Costs,3000,22/03/2019,5652529,350.00,REVENUE,Acumen Solutions Ltd,03320506,ACU0004U
North Lincolnshire Council,http://data.ordnancesurvey.co.uk/id/7000000000025623,Non Distributed Costs,Repair & Maintenance Costs,3000,27/03/2019,5655847,220.00,REVENUE,Acumen Solutions Ltd,03320506,ACU0004U
North Lincolnshire Council,http://data.ordnancesurvey.co.uk/id/7000000000025623,Childrens & Education,Course Fees/Training,2002,08/03/2019,5642822,260.00,REVENUE,Adso,7068088,ASD0033D
North Lincolnshire Council,http://data.ordnancesurvey.co.uk/id/7000000000025623,Corporate And Democratic Core,It Software-Maintenance,5053,22/03/2019,5641260,"30,000.00",REVENUE,Advanced Business Solutions,3214465,CED0008D
North Lincolnshire Council,http://data.ordnancesurvey.co.uk/id/7000000000025623,Corporate And Democratic Core,It Software-Maintenance,5053,27/03/2019,5645765,552.00,REVENUE,Advanced Business Solutions,3214465,CED0008D
North Lincolnshire Council,http://data.ordnancesurvey.co.uk/id/7000000000025623,Culture & Related Services,Repair & Maintenance Costs,3000,06/03/2019,5642810,575.00,REVENUE,A F Carpets,,AFC0001C
North Lincolnshire Council,http://data.ordnancesurvey.co.uk/id/7000000000025623,Fin&Inv I&E,Repair & Maintenance Costs,3000,13/03/2019,5647637,568.96,REVENUE,A F Carpets,,AFC0001C
North Lincolnshire Council,http://data.ordnancesurvey.co.uk/id/7000000000025623,Public Health,Payments To Health Providers,6019,20/04/2019,5653812,"14,474.42",REVENUE,Agencia Consulting Ltd,3448042,AGE0032E
North Lincolnshire Council,http://data.ordnancesurvey.co.uk/id/7000000000025623,Childrens & Education,Payments To Private Orgs,6002,08/03/2019,5643197,"2,000.00",REVENUE,A Hodgson,,HOD0008D
North Lincolnshire Council,http://data.ordnancesurvey.co.uk/id/7000000000025623,"Culture,Env,Reg & Planning Cap",Consultants,A087,27/03/2019,5654863,"1,178.67",CAPITAL,Ahr Building Consultancy Ltd,,AED0001D
North Lincolnshire Council,http://data.ordnancesurvey.co.uk/id/7000000000025623,Fin&Inv I&E,Repair & Maintenance Costs,3000,15/03/2019,5648485,637.50,REVENUE,Ahr Building Consultancy Ltd,,AED0001D
North Lincolnshire Council,http://data.ordnancesurvey.co.uk/id/7000000000025623,Culture & Related Services,Equipment Purchase,5001,15/03/2019,5645716,440.00,REVENUE,Aitkens Sportsturf Ltd,,AIT0006T
North Lincolnshire Council,http://data.ordnancesurvey.co.uk/id/7000000000025623,Culture & Related Services,Materials,5004,22/03/2019,5649333,450.00,REVENUE,Aitkens Sportsturf Ltd,,AIT0006T
North Lincolnshire Council,http://data.ordnancesurvey.co.uk/id/7000000000025623,Environmental & Regulatory Svs,Other Supplies & Services,5799,22/03/2019,5649358,"5,447.36",REVENUE,Aligned Assets Ltd,,ALI0016I
North Lincolnshire Council,http://data.ordnancesurvey.co.uk/id/7000000000025623,Childrens & Education,Payments To Private Orgs,6002,06/03/2019,5643041,"1,942.16",REVENUE,Alison Fixter,,FIX0036X
North Lincolnshire Council,http://data.ordnancesurvey.co.uk/id/7000000000025623,Adult Social Care,Gen Office Exp (Incl Postage),5603,20/04/2019,5653532,319.77,REVENUE,Allied Publicity Services (Manchester) Ltd,681528,APS0013S
North Lincolnshire Council,http://data.ordnancesurvey.co.uk/id/7000000000025623,Highways & Transport,Course Fees/Training,2002,27/03/2019,5648685,"3,590.00",REVENUE,Alpha Parking Ltd,,ALP0031P
North Lincolnshire Council,http://data.ordnancesurvey.co.uk/id/7000000000025623,Adult Social Care,Course Fees/Training,2002,19/04/2019,5656471,940.00,REVENUE,Alzheimer'S Society,2115499,ALZ0008Z
North Lincolnshire Council,http://data.ordnancesurvey.co.uk/id/7000000000025623,Adult Social Care,Course Fees/Training,2002,19/04/2019,5656474,940.00,REVENUE,Alzheimer'S Society,2115499,ALZ0008Z
North Lincolnshire Council,http://data.ordnancesurvey.co.uk/id/7000000000025623,Adult Social Care,Course Fees/Training,2002,19/04/2019,5656486,940.00,REVENUE,Alzheimer'S Society,2115499,ALZ0008Z
North Lincolnshire Council,http://data.ordnancesurvey.co.uk/id/7000000000025623,Adult Social Care,Course Fees/Training,2002,19/04/2019,5656489,781.84,REVENUE,Alzheimer'S Society,2115499,ALZ0008Z
North Lincolnshire Council,http://data.ordnancesurvey.co.uk/id/7000000000025623,Adult Social Care,Course Fees/Training,2002,19/04/2019,5656492,936.00,REVENUE,Alzheimer'S Society,2115499,ALZ0008Z
North Lincolnshire Council,http://data.ordnancesurvey.co.uk/id/7000000000025623,Adult Social Care,Course Fees/Training,2002,19/04/2019,5656494,936.00,REVENUE,Alzheimer'S Society,2115499,ALZ0008Z
North Lincolnshire Council,http://data.ordnancesurvey.co.uk/id/7000000000025623,Childrens & Education,Course Fees/Training,2002,27/03/2019,5643578,215.00,REVENUE,Amac,04779660,AMA0120A
North Lincolnshire Council,http://data.ordnancesurvey.co.uk/id/7000000000025623,Culture & Related Services,Course Fees/Training,2002,27/03/2019,5643577,"2,250.00",REVENUE,Amac,04779660,AMA0120A
North Lincolnshire Council,http://data.ordnancesurvey.co.uk/id/7000000000025623,Childrens & Education,Payments To Private Orgs,6002,06/03/2019,5643022,473.85,REVENUE,Amanda Batty,,BAT0081T
North Lincolnshire Council,http://data.ordnancesurvey.co.uk/id/7000000000025623,Childrens & Education,Payments To Private Orgs,6002,06/03/2019,5643042,"1,759.50",REVENUE,Amanda Foley,,FOL0034L
North Lincolnshire Council,http://data.ordnancesurvey.co.uk/id/7000000000025623,Adult Social Care,Payments To Private Orgs,6002,06/03/2019,5644925,"7,451.44",REVENUE,Amara Care,,ISF0006F
North Lincolnshire Council,http://data.ordnancesurvey.co.uk/id/7000000000025623,Adult Social Care,Payments To Private Orgs,6002,06/03/2019,5644925,"7,860.80",REVENUE,Amara Care,,ISF0006F
North Lincolnshire Council,http://data.ordnancesurvey.co.uk/id/7000000000025623,Adult Social Care,Payments To Private Orgs,6002,08/03/2019,5644902,434.52,REVENUE,Amara Care,4459044,AMA0002A
North Lincolnshire Council,http://data.ordnancesurvey.co.uk/id/7000000000025623,Adult Social Care,Payments To Private Orgs,6002,08/03/2019,5644902,"6,029.36",REVENUE,Amara Care,4459044,AMA0002A
North Lincolnshire Council,http://data.ordnancesurvey.co.uk/id/7000000000025623,Childrens & Education,Payments To Private Orgs,6002,22/03/2019,5653923,457.65,REVENUE,Amara Care,4459044,AMA0002A
North Lincolnshire Council,http://data.ordnancesurvey.co.uk/id/7000000000025623,Adult Social Care,Payments To Private Orgs,6002,06/03/2019,5644943,"1,456.56",REVENUE,Amber Care (Lincolnshire) Ltd,,ISF0038F
North Lincolnshire Council,http://data.ordnancesurvey.co.uk/id/7000000000025623,Adult Social Care,Payments To Private Orgs,6002,06/03/2019,5644943,"1,400.00",REVENUE,Amber Care (Lincolnshire) Ltd,,ISF0038F
North Lincolnshire Council,http://data.ordnancesurvey.co.uk/id/7000000000025623,Adult Social Care Capital,Other Costs,A085,22/03/2019,5653108,330.00,CAPITAL,Ambre-Stone Ltd,11108770,AMB0080B
North Lincolnshire Council,http://data.ordnancesurvey.co.uk/id/7000000000025623,Culture & Related Services,Heating Fuels,3104,15/03/2019,5646515,"2,018.77",REVENUE,Amp Clean Energy,5735950,AMP0041P
North Lincolnshire Council,http://data.ordnancesurvey.co.uk/id/7000000000025623,Culture & Related Services,Heating Fuels,3104,22/03/2019,5653703,"1,850.54",REVENUE,Amp Clean Energy,5735950,AMP0041P
North Lincolnshire Council,http://data.ordnancesurvey.co.uk/id/7000000000025623,Highways & Transport,Heating Fuels,3104,22/03/2019,5647585,"1,288.25",REVENUE,Amp Clean Energy,5735950,AMP0041P
North Lincolnshire Council,http://data.ordnancesurvey.co.uk/id/7000000000025623,Adult Social Care,Payments To Private Orgs,6002,06/03/2019,5644924,"5,561.24",REVENUE,Amphion Home Care Services Ltd,,ISF0005F
North Lincolnshire Council,http://data.ordnancesurvey.co.uk/id/7000000000025623,Adult Social Care,Payments To Private Orgs,6002,06/03/2019,5644924,"-4,928.00",REVENUE,Amphion Home Care Services Ltd,,ISF0005F
North Lincolnshire Council,http://data.ordnancesurvey.co.uk/id/7000000000025623,Adult Social Care,Payments To Private Orgs,6002,08/03/2019,5644905,"84,511.55",REVENUE,Amphion Home Care Services Ltd,03480829,AMP0002P
North Lincolnshire Council,http://data.ordnancesurvey.co.uk/id/7000000000025623,Adult Social Care,Payments To Private Orgs,6002,08/03/2019,5644905,"1,065.03",REVENUE,Amphion Home Care Services Ltd,03480829,AMP0002P
North Lincolnshire Council,http://data.ordnancesurvey.co.uk/id/7000000000025623,Childrens & Education,Gen Office Exp (Incl Postage),5603,22/03/2019,5653230,389.00,REVENUE,Ams Bobcat Ltd,3742489,AMS0001S
North Lincolnshire Council,http://data.ordnancesurvey.co.uk/id/7000000000025623,Childrens & Education,Home To School Transport,4201,15/03/2019,5648053,"26,481.00",REVENUE,Amvale Medical Transport Ltd,,AMV0003V
North Lincolnshire Council,http://data.ordnancesurvey.co.uk/id/7000000000025623,Childrens & Education,Home To School Transport,4201,15/03/2019,5648674,"6,415.00",REVENUE,Amvale Medical Transport Ltd,,AMV0003V
North Lincolnshire Council,http://data.ordnancesurvey.co.uk/id/7000000000025623,Childrens & Education,Home To School Transport,4201,20/03/2019,5650134,"10,815.00",REVENUE,Amvale Medical Transport Ltd,,AMV0003V
North Lincolnshire Council,http://data.ordnancesurvey.co.uk/id/7000000000025623,Childrens & Education,Home To School Transport,4201,22/03/2019,5650144,"37,149.00",REVENUE,Amvale Medical Transport Ltd,,AMV0003V
North Lincolnshire Council,http://data.ordnancesurvey.co.uk/id/7000000000025623,Culture & Related Services,Cleaning Costs/ Materials,3301,10/04/2019,5651989,390.95,REVENUE,Anapos,5316263,ANA0010A
North Lincolnshire Council,http://data.ordnancesurvey.co.uk/id/7000000000025623,Culture & Related Services,Payments To Private Orgs,6002,20/03/2019,5649223,920.00,REVENUE,Ancientcraft,,ANC0074C
North Lincolnshire Council,http://data.ordnancesurvey.co.uk/id/7000000000025623,Adult Social Care,Payments To Health Providers,6019,22/03/2019,5650999,"1,393.69",REVENUE,Ancora Medical Practice,,KEN0064N
North Lincolnshire Council,http://data.ordnancesurvey.co.uk/id/7000000000025623,Adult Social Care,Payments To Health Providers,6019,22/03/2019,5651095,"2,675.00",REVENUE,Ancora Medical Practice,,KEN0064N
North Lincolnshire Council,http://data.ordnancesurvey.co.uk/id/7000000000025623,Public Health,Payments To Health Providers,6019,22/03/2019,5650999,280.00,REVENUE,Ancora Medical Practice,,KEN0064N
North Lincolnshire Council,http://data.ordnancesurvey.co.uk/id/7000000000025623,Childrens & Education,It Software-Maintenance,5053,15/03/2019,5648059,"11,000.00",REVENUE,Angel Solutions,,ANG0061G
North Lincolnshire Council,http://data.ordnancesurvey.co.uk/id/7000000000025623,Childrens & Education,Equipment Hire/Rent,5002,27/03/2019,5653719,685.26,REVENUE,Angel Springs Ltd,2418453,ANG0018G
North Lincolnshire Council,http://data.ordnancesurvey.co.uk/id/7000000000025623,Culture & Related Services,Equipment Hire/Rent,5002,22/03/2019,5649334,297.72,REVENUE,Angel Springs Ltd,2418453,ANG0018G
North Lincolnshire Council,http://data.ordnancesurvey.co.uk/id/7000000000025623,Fin&Inv I&E,Water (Meter/Rate) & Sewerage,3221,27/03/2019,5654072,570.32,REVENUE,Anglian Water Services Ltd,,ANG0003G
North Lincolnshire Council,http://data.ordnancesurvey.co.uk/id/7000000000025623,Culture & Related Services,Equipment Purchase,5001,22/03/2019,5646513,462.60,REVENUE,Ankef Ltd,5379286,ANK0001K
North Lincolnshire Council,http://data.ordnancesurvey.co.uk/id/7000000000025623,Childrens & Education,Payments To Private Orgs,6002,06/03/2019,5643013,"9,077.12",REVENUE,Apple Tree Day Nursery Ltd,,APP0007P
North Lincolnshire Council,http://data.ordnancesurvey.co.uk/id/7000000000025623,Childrens & Education,Payments To Private Orgs,6002,06/03/2019,5643014,"15,433.30",REVENUE,Apple Tree Day Nursery Ltd,,APP0024P
North Lincolnshire Council,http://data.ordnancesurvey.co.uk/id/7000000000025623,Childrens & Education,Payments To Private Orgs,6002,06/03/2019,5643015,426.60,REVENUE,Arc Childminding,,ARC0011C
North Lincolnshire Council,http://data.ordnancesurvey.co.uk/id/7000000000025623,Environmental & Regulatory Svs,Equipment Purchase,5001,27/03/2019,5655805,845.62,REVENUE,Arco Ltd,133804,ARC0001C
North Lincolnshire Council,http://data.ordnancesurvey.co.uk/id/7000000000025623,Highways & Transport,Equipment Purchase,5001,22/03/2019,5651011,"2,128.50",REVENUE,Arco Ltd,133804,ARC0001C
North Lincolnshire Council,http://data.ordnancesurvey.co.uk/id/7000000000025623,Childrens & Education,Home To School Transport,4201,15/03/2019,5648667,600.00,REVENUE,Aria Cars,,ARI0002I
North Lincolnshire Council,http://data.ordnancesurvey.co.uk/id/7000000000025623,Childrens & Education,Home To School Transport,4201,15/03/2019,5648668,720.00,REVENUE,Aria Cars,,ARI0002I
North Lincolnshire Council,http://data.ordnancesurvey.co.uk/id/7000000000025623,Childrens & Education,Home To School Transport,4201,20/03/2019,5650138,840.00,REVENUE,Aria Cars,,ARI0002I
North Lincolnshire Council,http://data.ordnancesurvey.co.uk/id/7000000000025623,Highways & Transport,Concessionary Fares,6010,14/04/2019,5651803,727.77,REVENUE,Arriva Rail Northern Ltd,04337712,NOR0761R
North Lincolnshire Council,http://data.ordnancesurvey.co.uk/id/7000000000025623,Housing Services,Other Supplies & Services,5799,06/03/2019,5641113,233.33,REVENUE,Arties Mill,,ART0028T
North Lincolnshire Council,http://data.ordnancesurvey.co.uk/id/7000000000025623,Housing Services,Other Supplies & Services,5799,13/03/2019,5645531,345.83,REVENUE,Arties Mill,,ART0028T
North Lincolnshire Council,http://data.ordnancesurvey.co.uk/id/7000000000025623,Housing Services,Other Supplies & Services,5799,13/03/2019,5645537,233.33,REVENUE,Arties Mill,,ART0028T
North Lincolnshire Council,http://data.ordnancesurvey.co.uk/id/7000000000025623,Housing Services,Other Supplies & Services,5799,13/03/2019,5645553,233.33,REVENUE,Arties Mill,,ART0028T
North Lincolnshire Council,http://data.ordnancesurvey.co.uk/id/7000000000025623,Housing Services,Other Supplies & Services,5799,27/03/2019,5655768,262.50,REVENUE,Arties Mill,,ART0028T
North Lincolnshire Council,http://data.ordnancesurvey.co.uk/id/7000000000025623,Housing Services,Other Supplies & Services,5799,27/03/2019,5655769,233.33,REVENUE,Arties Mill,,ART0028T
North Lincolnshire Council,http://data.ordnancesurvey.co.uk/id/7000000000025623,Housing Services,Other Supplies & Services,5799,27/03/2019,5655770,233.33,REVENUE,Arties Mill,,ART0028T
North Lincolnshire Council,http://data.ordnancesurvey.co.uk/id/7000000000025623,Childrens & Education,Home To School Transport,4201,15/03/2019,5648474,"15,525.50",REVENUE,Ashby Cars Ltd,,ROQ0001Q
North Lincolnshire Council,http://data.ordnancesurvey.co.uk/id/7000000000025623,Childrens & Education,Home To School Transport,4201,15/03/2019,5648665,"20,929.50",REVENUE,Ashby Cars Ltd,,ROQ0001Q
North Lincolnshire Council,http://data.ordnancesurvey.co.uk/id/7000000000025623,Adult Social Care,Payments To Health Providers,6019,22/03/2019,5651055,722.99,REVENUE,Ashby Turn Primary Care Partners,,ASH0208H
North Lincolnshire Council,http://data.ordnancesurvey.co.uk/id/7000000000025623,Adult Social Care,Payments To Health Providers,6019,22/03/2019,5653682,927.87,REVENUE,Ashby Turn Primary Care Partners,,ASH0208H
North Lincolnshire Council,http://data.ordnancesurvey.co.uk/id/7000000000025623,Public Health,Payments To Health Providers,6019,22/03/2019,5651055,40.00,REVENUE,Ashby Turn Primary Care Partners,,ASH0208H
North Lincolnshire Council,http://data.ordnancesurvey.co.uk/id/7000000000025623,Childrens & Education,Home To School Transport,4201,15/03/2019,5648475,"14,180.00",REVENUE,Ash Taxis,,ASH0070H
North Lincolnshire Council,http://data.ordnancesurvey.co.uk/id/7000000000025623,Childrens & Education,Home To School Transport,4201,15/03/2019,5648476,"10,502.50",REVENUE,Ash Taxis,,ASH0070H
North Lincolnshire Council,http://data.ordnancesurvey.co.uk/id/7000000000025623,Fin&Inv I&E,Gen Office Exp (Incl Postage),5603,06/03/2019,5641276,"1,600.00",REVENUE,Ask4 Business Ltd,03614661,ASK0163K
North Lincolnshire Council,http://data.ordnancesurvey.co.uk/id/7000000000025623,Fin&Inv I&E,Gen Office Exp (Incl Postage),5603,08/03/2019,5641277,444.75,REVENUE,Ask4 Business Ltd,03614661,ASK0163K
North Lincolnshire Council,http://data.ordnancesurvey.co.uk/id/7000000000025623,Culture & Related Services,Books (Libraries+Schools Only),5005,13/03/2019,5641642,"1,015.63",REVENUE,Askews & Holts Library Services Ltd,,ASK0005K
North Lincolnshire Council,http://data.ordnancesurvey.co.uk/id/7000000000025623,Culture & Related Services,Books (Libraries+Schools Only),5005,13/03/2019,5643506,314.32,REVENUE,Askews & Holts Library Services Ltd,,ASK0005K
North Lincolnshire Council,http://data.ordnancesurvey.co.uk/id/7000000000025623,Environmental & Regulatory Svs,Other Supplies & Services,5799,29/03/2019,5646259,"2,500.00",REVENUE,Astun Technology Ltd,5410695,AST0040T
North Lincolnshire Council,http://data.ordnancesurvey.co.uk/id/7000000000025623,Adult Social Care,Payments To Private Orgs,6002,06/03/2019,5644926,"8,532.08",REVENUE,A.T.C.S. Ltd,,ISF0007F
North Lincolnshire Council,http://data.ordnancesurvey.co.uk/id/7000000000025623,Adult Social Care,Payments To Private Orgs,6002,06/03/2019,5644926,"9,641.35",REVENUE,A.T.C.S. Ltd,,ISF0007F
North Lincolnshire Council,http://data.ordnancesurvey.co.uk/id/7000000000025623,Adult Social Care,Payments To Private Orgs,6002,08/03/2019,5644907,"12,803.59",REVENUE,A.T.C.S. Ltd,05057212,ATC0006C
North Lincolnshire Council,http://data.ordnancesurvey.co.uk/id/7000000000025623,Adult Social Care,Payments To Private Orgs,6002,08/03/2019,5644907,638.00,REVENUE,A.T.C.S. Ltd,05057212,ATC0006C
North Lincolnshire Council,http://data.ordnancesurvey.co.uk/id/7000000000025623,Culture & Related Services,Equipment Maint.& Repair,5003,20/04/2019,5655697,"1,652.80",REVENUE,Atlas Washroom Systems Ltd,,ATL0018L
North Lincolnshire Council,http://data.ordnancesurvey.co.uk/id/7000000000025623,Culture & Related Services,Gen Office Exp (Incl Postage),5603,20/04/2019,5655697,50.00,REVENUE,Atlas Washroom Systems Ltd,,ATL0018L
North Lincolnshire Council,http://data.ordnancesurvey.co.uk/id/7000000000025623,Corporate And Democratic Core,Gen Office Exp (Incl Postage),5603,13/04/2019,5653943,34.60,REVENUE,Avenue Stores,,AVE0005E
North Lincolnshire Council,http://data.ordnancesurvey.co.uk/id/7000000000025623,Corporate And Democratic Core,Gen Office Exp (Incl Postage),5603,13/04/2019,5653943,282.05,REVENUE,Avenue Stores,,AVE0005E
North Lincolnshire Council,http://data.ordnancesurvey.co.uk/id/7000000000025623,Environmental & Regulatory Svs,Equipment Maint.& Repair,5003,13/03/2019,5645764,"1,863.38",REVENUE,Avery Weigh-Tronix,,AVE0002E
North Lincolnshire Council,http://data.ordnancesurvey.co.uk/id/7000000000025623,Environmental & Regulatory Svs,Other Vehicle Costs,4005,29/03/2019,5655832,507.00,REVENUE,Avery Weigh-Tronix,,AVE0002E
North Lincolnshire Council,http://data.ordnancesurvey.co.uk/id/7000000000025623,Culture & Related Services,Equipment Maint.& Repair,5003,08/03/2019,5643153,370.00,REVENUE,Axholme Cleaning Services,,AXH0030H
North Lincolnshire Council,http://data.ordnancesurvey.co.uk/id/7000000000025623,Childrens & Education,Home To School Transport,4201,15/03/2019,5648470,450.00,REVENUE,Axholme Taxis,,GLE0073E
North Lincolnshire Council,http://data.ordnancesurvey.co.uk/id/7000000000025623,Childrens & Education,Home To School Transport,4201,15/03/2019,5648471,459.00,REVENUE,Axholme Taxis,,GLE0073E
North Lincolnshire Council,http://data.ordnancesurvey.co.uk/id/7000000000025623,Childrens & Education,Home To School Transport,4201,15/03/2019,5648472,994.50,REVENUE,Axholme Taxis,,GLE0073E
North Lincolnshire Council,http://data.ordnancesurvey.co.uk/id/7000000000025623,Childrens & Education,Home To School Transport,4201,25/03/2019,5650173,600.00,REVENUE,Axholme Taxis,,GLE0073E
North Lincolnshire Council,http://data.ordnancesurvey.co.uk/id/7000000000025623,Childrens & Education,Home To School Transport,4201,25/03/2019,5650174,"1,326.00",REVENUE,Axholme Taxis,,GLE0073E
North Lincolnshire Council,http://data.ordnancesurvey.co.uk/id/7000000000025623,Childrens & Education,Home To School Transport,4201,25/03/2019,5650175,612.00,REVENUE,Axholme Taxis,,GLE0073E
North Lincolnshire Council,http://data.ordnancesurvey.co.uk/id/7000000000025623,Fin&Inv I&E,Other Vehicle Costs,4005,06/03/2019,5642894,287.20,REVENUE,B A Bush & Sons  Ltd,,BUS0283S
North Lincolnshire Council,http://data.ordnancesurvey.co.uk/id/7000000000025623,Fin&Inv I&E,Other Vehicle Costs,4005,06/03/2019,5642895,302.51,REVENUE,B A Bush & Sons  Ltd,,BUS0283S
North Lincolnshire Council,http://data.ordnancesurvey.co.uk/id/7000000000025623,Fin&Inv I&E,Other Vehicle Costs,4005,17/04/2019,5656203,371.80,REVENUE,B A Bush & Sons  Ltd,,BUS0283S
North Lincolnshire Council,http://data.ordnancesurvey.co.uk/id/7000000000025623,Fin&Inv I&E,Other Vehicle Costs,4005,22/04/2019,5657407,473.80,REVENUE,B A Bush & Sons  Ltd,,BUS0283S
North Lincolnshire Council,http://data.ordnancesurvey.co.uk/id/7000000000025623,Fin&Inv I&E,Other Vehicle Costs,4005,22/04/2019,5657413,396.80,REVENUE,B A Bush & Sons  Ltd,,BUS0283S
North Lincolnshire Council,http://data.ordnancesurvey.co.uk/id/7000000000025623,Fin&Inv I&E,Other Vehicle Costs,4005,22/04/2019,5657415,274.56,REVENUE,B A Bush & Sons  Ltd,,BUS0283S
North Lincolnshire Council,http://data.ordnancesurvey.co.uk/id/7000000000025623,Culture & Related Services,Stock Purchases & Adjustments,5030,15/03/2019,5649336,"3,025.00",REVENUE,Badger Badges,,BAD0014D
North Lincolnshire Council,http://data.ordnancesurvey.co.uk/id/7000000000025623,Childrens & Education,Rents,3201,27/03/2019,5653683,500.00,REVENUE,Ballpool Heaven,,FRO0043O
North Lincolnshire Council,http://data.ordnancesurvey.co.uk/id/7000000000025623,Childrens & Education,Payments To Private Orgs,6002,13/03/2019,5645627,"19,499.40",REVENUE,Barnardo Services Ltd,,BAR0182R
North Lincolnshire Council,http://data.ordnancesurvey.co.uk/id/7000000000025623,Childrens & Education,Home To School Transport,4201,15/03/2019,5648032,"3,254.00",REVENUE,Barnetby Private Hire,,BAR0764R
North Lincolnshire Council,http://data.ordnancesurvey.co.uk/id/7000000000025623,Childrens & Education,Home To School Transport,4201,20/03/2019,5650137,"4,404.00",REVENUE,Barnetby Private Hire,,BAR0764R
North Lincolnshire Council,http://data.ordnancesurvey.co.uk/id/7000000000025623,Childrens & Education,Payments To Voluntary Orgs,6001,06/03/2019,5643020,"5,981.79",REVENUE,Barnetby Under Fives Playgroup,,BAR0021R
North Lincolnshire Council,http://data.ordnancesurvey.co.uk/id/7000000000025623,Childrens & Education,Payments To Voluntary Orgs,6001,20/03/2019,5651704,624.00,REVENUE,Barnetby Under Fives Playgroup,,BAR0021R
North Lincolnshire Council,http://data.ordnancesurvey.co.uk/id/7000000000025623,Childrens & Education,Repair & Maintenance Costs,3000,20/03/2019,5651239,425.00,REVENUE,Barrier Security,,BAR0421R
North Lincolnshire Council,http://data.ordnancesurvey.co.uk/id/7000000000025623,Childrens & Education,Repair & Maintenance Costs,3000,20/03/2019,5652056,555.52,REVENUE,Barrier Security,,BAR0421R
North Lincolnshire Council,http://data.ordnancesurvey.co.uk/id/7000000000025623,Childrens & Education,Repair & Maintenance Costs,3000,20/03/2019,5652114,22.05,REVENUE,Barrier Security,,BAR0421R
North Lincolnshire Council,http://data.ordnancesurvey.co.uk/id/7000000000025623,Childrens & Education,Repair & Maintenance Costs,3000,20/03/2019,5652114,441.00,REVENUE,Barrier Security,,BAR0421R
North Lincolnshire Council,http://data.ordnancesurvey.co.uk/id/7000000000025623,Childrens & Education,Repair & Maintenance Costs,3000,27/03/2019,5654098,"1,325.00",REVENUE,Barrier Security,,BAR0421R
North Lincolnshire Council,http://data.ordnancesurvey.co.uk/id/7000000000025623,Childrens & Education,Repair & Maintenance Costs,3000,27/03/2019,5655518,"3,978.00",REVENUE,Barrier Security,,BAR0421R
North Lincolnshire Council,http://data.ordnancesurvey.co.uk/id/7000000000025623,Corporate And Democratic Core,Other Supplies & Services,5799,07/04/2019,5646284,"5,250.00",REVENUE,Barrier Security,,BAR0421R
North Lincolnshire Council,http://data.ordnancesurvey.co.uk/id/7000000000025623,Corporate And Democratic Core,Repair & Maintenance Costs,3000,13/03/2019,5647570,"3,945.00",REVENUE,Barrier Security,,BAR0421R
North Lincolnshire Council,http://data.ordnancesurvey.co.uk/id/7000000000025623,Corporate And Democratic Core,Repair & Maintenance Costs,3000,15/03/2019,5648442,"1,450.00",REVENUE,Barrier Security,,BAR0421R
North Lincolnshire Council,http://data.ordnancesurvey.co.uk/id/7000000000025623,Corporate And Democratic Core,Repair & Maintenance Costs,3000,20/03/2019,5651246,535.00,REVENUE,Barrier Security,,BAR0421R
North Lincolnshire Council,http://data.ordnancesurvey.co.uk/id/7000000000025623,Corporate And Democratic Core,Repair & Maintenance Costs,3000,20/03/2019,5652056,0,REVENUE,Barrier Security,,BAR0421R
North Lincolnshire Council,http://data.ordnancesurvey.co.uk/id/7000000000025623,Corporate And Democratic Core,Repair & Maintenance Costs,3000,20/03/2019,5652066,"4,126.72",REVENUE,Barrier Security,,BAR0421R
North Lincolnshire Council,http://data.ordnancesurvey.co.uk/id/7000000000025623,Corporate And Democratic Core,Repair & Maintenance Costs,3000,20/03/2019,5652076,0,REVENUE,Barrier Security,,BAR0421R
North Lincolnshire Council,http://data.ordnancesurvey.co.uk/id/7000000000025623,Corporate And Democratic Core,Repair & Maintenance Costs,3000,20/03/2019,5652079,100.00,REVENUE,Barrier Security,,BAR0421R
North Lincolnshire Council,http://data.ordnancesurvey.co.uk/id/7000000000025623,Corporate And Democratic Core,Repair & Maintenance Costs,3000,20/03/2019,5652088,594.00,REVENUE,Barrier Security,,BAR0421R
North Lincolnshire Council,http://data.ordnancesurvey.co.uk/id/7000000000025623,Corporate And Democratic Core,Repair & Maintenance Costs,3000,20/03/2019,5652100,476.16,REVENUE,Barrier Security,,BAR0421R
North Lincolnshire Council,http://data.ordnancesurvey.co.uk/id/7000000000025623,Corporate And Democratic Core,Repair & Maintenance Costs,3000,20/03/2019,5652112,"3,658.18",REVENUE,Barrier Security,,BAR0421R
North Lincolnshire Council,http://data.ordnancesurvey.co.uk/id/7000000000025623,Corporate And Democratic Core,Repair & Maintenance Costs,3000,20/03/2019,5652114,"5,468.40",REVENUE,Barrier Security,,BAR0421R
North Lincolnshire Council,http://data.ordnancesurvey.co.uk/id/7000000000025623,Corporate And Democratic Core,Repair & Maintenance Costs,3000,22/03/2019,5652504,850.00,REVENUE,Barrier Security,,BAR0421R
North Lincolnshire Council,http://data.ordnancesurvey.co.uk/id/7000000000025623,Corporate And Democratic Core,Repair & Maintenance Costs,3000,22/03/2019,5653747,96.00,REVENUE,Barrier Security,,BAR0421R
North Lincolnshire Council,http://data.ordnancesurvey.co.uk/id/7000000000025623,Corporate And Democratic Core,Repair & Maintenance Costs,3000,27/03/2019,5654043,409.44,REVENUE,Barrier Security,,BAR0421R
North Lincolnshire Council,http://data.ordnancesurvey.co.uk/id/7000000000025623,Corporate And Democratic Core,Repair & Maintenance Costs,3000,27/03/2019,5654105,"1,371.16",REVENUE,Barrier Security,,BAR0421R
North Lincolnshire Council,http://data.ordnancesurvey.co.uk/id/7000000000025623,Corporate And Democratic Core,Repair & Maintenance Costs,3000,27/03/2019,5655712,"2,795.00",REVENUE,Barrier Security,,BAR0421R
North Lincolnshire Council,http://data.ordnancesurvey.co.uk/id/7000000000025623,Culture & Related Services,Repair & Maintenance Costs,3000,20/03/2019,5652066,476.16,REVENUE,Barrier Security,,BAR0421R
North Lincolnshire Council,http://data.ordnancesurvey.co.uk/id/7000000000025623,Culture & Related Services,Repair & Maintenance Costs,3000,20/03/2019,5652114,330.75,REVENUE,Barrier Security,,BAR0421R
North Lincolnshire Council,http://data.ordnancesurvey.co.uk/id/7000000000025623,Culture & Related Services,Repair & Maintenance Costs,3000,22/03/2019,5653747,93.25,REVENUE,Barrier Security,,BAR0421R
North Lincolnshire Council,http://data.ordnancesurvey.co.uk/id/7000000000025623,Culture & Related Services,Repair & Maintenance Costs,3000,27/03/2019,5654043,324.14,REVENUE,Barrier Security,,BAR0421R
North Lincolnshire Council,http://data.ordnancesurvey.co.uk/id/7000000000025623,Environmental & Regulatory Svs,Repair & Maintenance Costs,3000,20/03/2019,5652079,50.00,REVENUE,Barrier Security,,BAR0421R
North Lincolnshire Council,http://data.ordnancesurvey.co.uk/id/7000000000025623,Environmental & Regulatory Svs,Repair & Maintenance Costs,3000,20/03/2019,5652100,39.68,REVENUE,Barrier Security,,BAR0421R
North Lincolnshire Council,http://data.ordnancesurvey.co.uk/id/7000000000025623,Environmental & Regulatory Svs,Repair & Maintenance Costs,3000,20/03/2019,5652114,22.05,REVENUE,Barrier Security,,BAR0421R
North Lincolnshire Council,http://data.ordnancesurvey.co.uk/id/7000000000025623,Environmental & Regulatory Svs,Repair & Maintenance Costs,3000,20/03/2019,5652114,22.05,REVENUE,Barrier Security,,BAR0421R
North Lincolnshire Council,http://data.ordnancesurvey.co.uk/id/7000000000025623,Fin&Inv I&E,Repair & Maintenance Costs,3000,20/03/2019,5651252,425.00,REVENUE,Barrier Security,,BAR0421R
North Lincolnshire Council,http://data.ordnancesurvey.co.uk/id/7000000000025623,Fin&Inv I&E,Repair & Maintenance Costs,3000,20/03/2019,5651258,559.50,REVENUE,Barrier Security,,BAR0421R
North Lincolnshire Council,http://data.ordnancesurvey.co.uk/id/7000000000025623,Fin&Inv I&E,Repair & Maintenance Costs,3000,20/03/2019,5652066,238.08,REVENUE,Barrier Security,,BAR0421R
North Lincolnshire Council,http://data.ordnancesurvey.co.uk/id/7000000000025623,Fin&Inv I&E,Repair & Maintenance Costs,3000,20/03/2019,5652100,79.36,REVENUE,Barrier Security,,BAR0421R
North Lincolnshire Council,http://data.ordnancesurvey.co.uk/id/7000000000025623,Fin&Inv I&E,Repair & Maintenance Costs,3000,20/03/2019,5652114,551.25,REVENUE,Barrier Security,,BAR0421R
North Lincolnshire Council,http://data.ordnancesurvey.co.uk/id/7000000000025623,Fin&Inv I&E,Repair & Maintenance Costs,3000,20/03/2019,5652114,44.10,REVENUE,Barrier Security,,BAR0421R
North Lincolnshire Council,http://data.ordnancesurvey.co.uk/id/7000000000025623,Fin&Inv I&E,Repair & Maintenance Costs,3000,22/03/2019,5653747,53.00,REVENUE,Barrier Security,,BAR0421R
North Lincolnshire Council,http://data.ordnancesurvey.co.uk/id/7000000000025623,Fin&Inv I&E,Repair & Maintenance Costs,3000,27/03/2019,5654043,85.30,REVENUE,Barrier Security,,BAR0421R
North Lincolnshire Council,http://data.ordnancesurvey.co.uk/id/7000000000025623,Childrens & Education,Payments To Voluntary Orgs,6001,06/03/2019,5643021,"14,795.27",REVENUE,Barrow Preschool Playgroup,,BAR0072R
North Lincolnshire Council,http://data.ordnancesurvey.co.uk/id/7000000000025623,"Culture,Env,Reg & Planning Cap",Other Costs,A085,08/03/2019,5643880,"1,800.00",CAPITAL,Barton Allotment Society,,BAR0741R
North Lincolnshire Council,http://data.ordnancesurvey.co.uk/id/7000000000025623,"Culture,Env,Reg & Planning Cap",Other Costs,A085,06/03/2019,5641286,"7,045.20",CAPITAL,Barton Civic Society,,BAR0483R
North Lincolnshire Council,http://data.ordnancesurvey.co.uk/id/7000000000025623,"Culture,Env,Reg & Planning Cap",Other Costs,A085,13/03/2019,5646277,920.36,CAPITAL,Barton On Humber Town Council,,BAR0032R
North Lincolnshire Council,http://data.ordnancesurvey.co.uk/id/7000000000025623,Culture & Related Services,Payments To Voluntary Orgs,6001,13/03/2019,5646277,"2,050.00",REVENUE,Barton On Humber Town Council,,BAR0032R
North Lincolnshire Council,http://data.ordnancesurvey.co.uk/id/7000000000025623,Childrens & Education,Client Transport Costs,6092,13/03/2019,5647727,"14,767.20",REVENUE,Barton Tt Taxis Ltd,07405760,BAR0888R
North Lincolnshire Council,http://data.ordnancesurvey.co.uk/id/7000000000025623,Childrens & Education,Home To School Transport,4201,15/03/2019,5648054,210.00,REVENUE,Barton Tt Taxis Ltd,07405760,BAR0888R
North Lincolnshire Council,http://data.ordnancesurvey.co.uk/id/7000000000025623,Childrens & Education,Home To School Transport,4201,15/03/2019,5648056,210.00,REVENUE,Barton Tt Taxis Ltd,07405760,BAR0888R
North Lincolnshire Council,http://data.ordnancesurvey.co.uk/id/7000000000025623,Childrens & Education,Home To School Transport,4201,15/03/2019,5648426,265.50,REVENUE,Barton Tt Taxis Ltd,07405760,BAR0888R
North Lincolnshire Council,http://data.ordnancesurvey.co.uk/id/7000000000025623,Childrens & Education,Home To School Transport,4201,15/03/2019,5648436,240.00,REVENUE,Barton Tt Taxis Ltd,07405760,BAR0888R
North Lincolnshire Council,http://data.ordnancesurvey.co.uk/id/7000000000025623,Childrens & Education,Home To School Transport,4201,15/03/2019,5648439,412.50,REVENUE,Barton Tt Taxis Ltd,07405760,BAR0888R
North Lincolnshire Council,http://data.ordnancesurvey.co.uk/id/7000000000025623,Childrens & Education,Home To School Transport,4201,27/03/2019,5650124,294.00,REVENUE,Barton Tt Taxis Ltd,07405760,BAR0888R
North Lincolnshire Council,http://data.ordnancesurvey.co.uk/id/7000000000025623,Childrens & Education,Home To School Transport,4201,27/03/2019,5650125,294.00,REVENUE,Barton Tt Taxis Ltd,07405760,BAR0888R
North Lincolnshire Council,http://data.ordnancesurvey.co.uk/id/7000000000025623,Childrens & Education,Home To School Transport,4201,27/03/2019,5650126,404.00,REVENUE,Barton Tt Taxis Ltd,07405760,BAR0888R
North Lincolnshire Council,http://data.ordnancesurvey.co.uk/id/7000000000025623,Childrens & Education,Home To School Transport,4201,27/03/2019,5650127,336.00,REVENUE,Barton Tt Taxis Ltd,07405760,BAR0888R
North Lincolnshire Council,http://data.ordnancesurvey.co.uk/id/7000000000025623,Childrens & Education,Home To School Transport,4201,27/03/2019,5650128,577.50,REVENUE,Barton Tt Taxis Ltd,07405760,BAR0888R
North Lincolnshire Council,http://data.ordnancesurvey.co.uk/id/7000000000025623,Culture & Related Services,Other Professional Fees,5829,20/03/2019,5647326,600.00,REVENUE,Bauer Radio Ltd,,BAU0005U
North Lincolnshire Council,http://data.ordnancesurvey.co.uk/id/7000000000025623,Culture & Related Services,Equipment Purchase,5001,10/04/2019,5651226,309.00,REVENUE,Bb-Interpretive Products Ltd,,BLA0262A
North Lincolnshire Council,http://data.ordnancesurvey.co.uk/id/7000000000025623,Childrens & Education,Examination Fees,5730,21/04/2019,5655682,637.50,REVENUE,Bcs Learning & Development Ltd,1005485,BRI0664I
North Lincolnshire Council,http://data.ordnancesurvey.co.uk/id/7000000000025623,Housing Services,Fees & Charges Income,9002,20/03/2019,5649270,-700.00,REVENUE,Belton Construction,08003557,BEL0219L
North Lincolnshire Council,http://data.ordnancesurvey.co.uk/id/7000000000025623,Childrens & Education,Payments To Voluntary Orgs,6001,06/03/2019,5643080,"3,937.08",REVENUE,Belwood Playgroup,,PLA0049A
North Lincolnshire Council,http://data.ordnancesurvey.co.uk/id/7000000000025623,Childrens & Education,Payments To Voluntary Orgs,6001,20/03/2019,5651720,312.00,REVENUE,Belwood Playgroup,,PLA0049A
North Lincolnshire Council,http://data.ordnancesurvey.co.uk/id/7000000000025623,Corporate And Democratic Core,Legal Fees,5823,22/03/2019,5652187,258.00,REVENUE,Bevan Brittan Llp Client Account,,BEV0120V
North Lincolnshire Council,http://data.ordnancesurvey.co.uk/id/7000000000025623,Culture & Related Services,Subscriptions & Memberships,5510,08/03/2019,5644160,"3,208.00",REVENUE,Bibliographic Data Services Ltd,154602,BIB0027B
North Lincolnshire Council,http://data.ordnancesurvey.co.uk/id/7000000000025623,Corporate And Democratic Core,Repair & Maintenance Costs,3000,20/03/2019,5651165,"3,870.00",REVENUE,Birkdale Manufacturing Group Ltd,,BIR0003R
North Lincolnshire Council,http://data.ordnancesurvey.co.uk/id/7000000000025623,Childrens & Education,Payments To Private Orgs,6002,20/03/2019,5651306,"3,024.00",REVENUE,Bishop Burton College,,BIS0030S
North Lincolnshire Council,http://data.ordnancesurvey.co.uk/id/7000000000025623,Childrens & Education,Equipment Purchase,5001,15/03/2019,5646488,634.95,REVENUE,Bishop Sports & Leisure Ltd,00842463,BIS0004S
North Lincolnshire Council,http://data.ordnancesurvey.co.uk/id/7000000000025623,Culture & Related Services,Equipment Purchase,5001,14/04/2019,5652466,221.95,REVENUE,Bishop Sports & Leisure Ltd,00842463,BIS0004S
North Lincolnshire Council,http://data.ordnancesurvey.co.uk/id/7000000000025623,Childrens & Education,Subscriptions & Memberships,5510,29/03/2019,5649199,259.00,REVENUE,Bksb Ltd,,BSK0032K
North Lincolnshire Council,http://data.ordnancesurvey.co.uk/id/7000000000025623,Childrens & Education,Home To School Transport,4201,15/03/2019,5648035,"3,300.00",REVENUE,Black And White Coaches,,BLA0209A
North Lincolnshire Council,http://data.ordnancesurvey.co.uk/id/7000000000025623,Childrens & Education,Home To School Transport,4201,15/03/2019,5648037,"2,308.35",REVENUE,Black And White Coaches,,BLA0209A
North Lincolnshire Council,http://data.ordnancesurvey.co.uk/id/7000000000025623,Childrens & Education,Home To School Transport,4201,15/03/2019,5648039,"2,249.85",REVENUE,Black And White Coaches,,BLA0209A
North Lincolnshire Council,http://data.ordnancesurvey.co.uk/id/7000000000025623,Childrens & Education,Home To School Transport,4201,15/03/2019,5648675,"3,149.79",REVENUE,Black And White Coaches,,BLA0209A
North Lincolnshire Council,http://data.ordnancesurvey.co.uk/id/7000000000025623,Childrens & Education,Home To School Transport,4201,15/03/2019,5648676,"3,231.69",REVENUE,Black And White Coaches,,BLA0209A
North Lincolnshire Council,http://data.ordnancesurvey.co.uk/id/7000000000025623,Childrens & Education,Home To School Transport,4201,15/03/2019,5648677,"4,620.00",REVENUE,Black And White Coaches,,BLA0209A
North Lincolnshire Council,http://data.ordnancesurvey.co.uk/id/7000000000025623,Highways & Transport,Passenger Transport,6011,13/03/2019,5646273,"2,473.05",REVENUE,Black And White Coaches,,BLA0209A
North Lincolnshire Council,http://data.ordnancesurvey.co.uk/id/7000000000025623,Highways & Transport,Passenger Transport,6011,13/03/2019,5646274,"3,947.80",REVENUE,Black And White Coaches,,BLA0209A
North Lincolnshire Council,http://data.ordnancesurvey.co.uk/id/7000000000025623,Highways & Transport,Passenger Transport,6011,13/03/2019,5646275,"3,488.00",REVENUE,Black And White Coaches,,BLA0209A
North Lincolnshire Council,http://data.ordnancesurvey.co.uk/id/7000000000025623,Highways & Transport,Passenger Transport,6011,13/03/2019,5646276,"4,150.00",REVENUE,Black And White Coaches,,BLA0209A
North Lincolnshire Council,http://data.ordnancesurvey.co.uk/id/7000000000025623,Childrens & Education,Course Fees/Training,2002,15/03/2019,5641136,250.00,REVENUE,Blackridge Archery Ltd,,BLA0197A
North Lincolnshire Council,http://data.ordnancesurvey.co.uk/id/7000000000025623,Environmental & Regulatory Svs,Repair & Maintenance Costs,3000,20/03/2019,5641232,295.00,REVENUE,Bold Communications Ltd,,BOL0037L
North Lincolnshire Council,http://data.ordnancesurvey.co.uk/id/7000000000025623,Childrens & Education,Payments To Voluntary Orgs,6001,06/03/2019,5643023,"3,840.83",REVENUE,Bonby Pre-School,,BON0005N
North Lincolnshire Council,http://data.ordnancesurvey.co.uk/id/7000000000025623,Corporate And Democratic Core,Repair & Maintenance Costs,3000,22/03/2019,5653739,424.00,REVENUE,Boon Edam Limited,01877418,BOO0035O
North Lincolnshire Council,http://data.ordnancesurvey.co.uk/id/7000000000025623,Childrens & Education,Payments To Private Orgs,6002,06/03/2019,5643024,"11,721.79",REVENUE,Bottesford Bunnies Ltd,,BOT0226T
North Lincolnshire Council,http://data.ordnancesurvey.co.uk/id/7000000000025623,Public Health,Payments To Private Orgs,6002,20/03/2019,5649276,"3,000.00",REVENUE,Bottesford Bunnies Ltd,,BOT0226T
North Lincolnshire Council,http://data.ordnancesurvey.co.uk/id/7000000000025623,Culture & Related Services,Payments To Voluntary Orgs,6001,20/03/2019,5651862,"1,341.45",REVENUE,Bottesford In Bloom,,BOT0034T
North Lincolnshire Council,http://data.ordnancesurvey.co.uk/id/7000000000025623,Culture & Related Services,Provisions,5201,13/04/2019,5652457,300.52,REVENUE,Brakes Catering Equipment,,BRA0322A
North Lincolnshire Council,http://data.ordnancesurvey.co.uk/id/7000000000025623,Environmental & Regulatory Svs,Equipment Purchase,5001,13/03/2019,5645808,"4,891.25",REVENUE,Brendon Powerwashers,02291340,BRE0131E
North Lincolnshire Council,http://data.ordnancesurvey.co.uk/id/7000000000025623,"Culture,Env,Reg & Planning Cap",Other Costs,A085,20/03/2019,5651864,"1,000.00",CAPITAL,Brigg Town Council,,BRI0036I
North Lincolnshire Council,http://data.ordnancesurvey.co.uk/id/7000000000025623,Culture & Related Services,Payments To Voluntary Orgs,6001,20/03/2019,5651864,400.00,REVENUE,Brigg Town Council,,BRI0036I
North Lincolnshire Council,http://data.ordnancesurvey.co.uk/id/7000000000025623,Culture & Related Services,Exhibitions/Events,5709,29/03/2019,5655675,458.86,REVENUE,Bright Bricks Ltd,10257756,BRI0416I
North Lincolnshire Council,http://data.ordnancesurvey.co.uk/id/7000000000025623,Public Health,Other Supplies & Services,5799,20/03/2019,5648679,"2,721.66",REVENUE,Britcon (Scunthorpe) Ltd,,BRI0032I
North Lincolnshire Council,http://data.ordnancesurvey.co.uk/id/7000000000025623,Corporate And Democratic Core,Telephone Rent/Calls,5403,27/03/2019,5654809,348.79,REVENUE,British Telecom Plc,1800000,BRI0020I
North Lincolnshire Council,http://data.ordnancesurvey.co.uk/id/7000000000025623,Corporate And Democratic Core,Telephone Rent/Calls,5403,27/03/2019,5654810,348.34,REVENUE,British Telecom Plc,1800000,BRI0020I
North Lincolnshire Council,http://data.ordnancesurvey.co.uk/id/7000000000025623,Corporate And Democratic Core,Telephone Rent/Calls,5403,27/03/2019,5654811,351.67,REVENUE,British Telecom Plc,1800000,BRI0020I
North Lincolnshire Council,http://data.ordnancesurvey.co.uk/id/7000000000025623,Corporate And Democratic Core,Telephone Rent/Calls,5403,27/03/2019,5654812,350.17,REVENUE,British Telecom Plc,1800000,BRI0020I
North Lincolnshire Council,http://data.ordnancesurvey.co.uk/id/7000000000025623,Corporate And Democratic Core,Telephone Rent/Calls,5403,27/03/2019,5654813,350.17,REVENUE,British Telecom Plc,1800000,BRI0020I
North Lincolnshire Council,http://data.ordnancesurvey.co.uk/id/7000000000025623,Corporate And Democratic Core,Telephone Rent/Calls,5403,27/03/2019,5654814,352.42,REVENUE,British Telecom Plc,1800000,BRI0020I
North Lincolnshire Council,http://data.ordnancesurvey.co.uk/id/7000000000025623,Corporate And Democratic Core,Telephone Rent/Calls,5403,27/03/2019,5654816,353.95,REVENUE,British Telecom Plc,1800000,BRI0020I
North Lincolnshire Council,http://data.ordnancesurvey.co.uk/id/7000000000025623,Corporate And Democratic Core,Telephone Rent/Calls,5403,27/03/2019,5654817,323.92,REVENUE,British Telecom Plc,1800000,BRI0020I
North Lincolnshire Council,http://data.ordnancesurvey.co.uk/id/7000000000025623,Corporate And Democratic Core,Telephone Rent/Calls,5403,27/03/2019,5654819,607.20,REVENUE,British Telecom Plc,1800000,BRI0020I
North Lincolnshire Council,http://data.ordnancesurvey.co.uk/id/7000000000025623,"Culture,Env,Reg & Planning Cap",Other Costs,A085,06/03/2019,5641287,923.43,CAPITAL,Broughton Town Council,,BRO0451O
North Lincolnshire Council,http://data.ordnancesurvey.co.uk/id/7000000000025623,Culture & Related Services,Payments To Voluntary Orgs,6001,06/03/2019,5641287,450.00,REVENUE,Broughton Town Council,,BRO0451O
North Lincolnshire Council,http://data.ordnancesurvey.co.uk/id/7000000000025623,Childrens & Education,Rents,3201,22/03/2019,5651325,"2,000.00",REVENUE,Brumby Community Centre,,BRU0087U
North Lincolnshire Council,http://data.ordnancesurvey.co.uk/id/7000000000025623,Childrens & Education,Payments To Private Orgs,6002,27/03/2019,5645211,"2,760.00",REVENUE,Brumby Junior School Fund,,BRU0219U
North Lincolnshire Council,http://data.ordnancesurvey.co.uk/id/7000000000025623,Childrens & Education,Payments To Private Orgs,6002,27/03/2019,5645529,"2,520.00",REVENUE,Brumby Junior School Fund,,BRU0219U
North Lincolnshire Council,http://data.ordnancesurvey.co.uk/id/7000000000025623,Childrens & Education,Payments To Private Orgs,6002,27/03/2019,5656631,"-2,760.00",REVENUE,Brumby Junior School Fund,,BRU0219U
North Lincolnshire Council,http://data.ordnancesurvey.co.uk/id/7000000000025623,Childrens & Education,Payments To Private Orgs,6002,27/03/2019,5656632,"-2,520.00",REVENUE,Brumby Junior School Fund,,BRU0219U
North Lincolnshire Council,http://data.ordnancesurvey.co.uk/id/7000000000025623,Highways & Transport,Other Supplies & Services,5799,12/04/2019,5649300,"13,260.00",REVENUE,Building Software Ltd,,BUI0021I
North Lincolnshire Council,http://data.ordnancesurvey.co.uk/id/7000000000025623,Childrens & Education,Payments To Voluntary Orgs,6001,06/03/2019,5643027,"10,947.71",REVENUE,Burton Play,,BUR0352R
North Lincolnshire Council,http://data.ordnancesurvey.co.uk/id/7000000000025623,Childrens & Education,Payments To Voluntary Orgs,6001,20/03/2019,5651754,"6,000.00",REVENUE,Burton Play,,BUR0352R
North Lincolnshire Council,http://data.ordnancesurvey.co.uk/id/7000000000025623,"Culture,Env,Reg & Planning Cap",Furniture & Fittings,A097,27/03/2019,5654531,"2,759.44",CAPITAL,Bushboard Washroom Systems Ltd,,BUS0174S
North Lincolnshire Council,http://data.ordnancesurvey.co.uk/id/7000000000025623,Childrens & Education,Client Related Costs,5534,22/03/2019,5653976,403.30,REVENUE,Busi Bodies Day Nursery,,BUS0015S
North Lincolnshire Council,http://data.ordnancesurvey.co.uk/id/7000000000025623,Childrens & Education,Client Related Costs,5534,22/03/2019,5653978,406.20,REVENUE,Busi Bodies Day Nursery,,BUS0015S
North Lincolnshire Council,http://data.ordnancesurvey.co.uk/id/7000000000025623,Childrens & Education,Payments To Private Orgs,6002,06/03/2019,5643028,"12,586.59",REVENUE,Busi Bodies Day Nursery,,BUS0015S
North Lincolnshire Council,http://data.ordnancesurvey.co.uk/id/7000000000025623,Childrens & Education,Client Related Costs,5534,01/03/2019,5641192,"1,188.00",REVENUE,Busy Bea Childminding,,BUS0165S
North Lincolnshire Council,http://data.ordnancesurvey.co.uk/id/7000000000025623,Childrens & Education,Client Related Costs,5534,22/03/2019,5653968,967.50,REVENUE,Busy Bea Childminding,,BUS0165S
North Lincolnshire Council,http://data.ordnancesurvey.co.uk/id/7000000000025623,Childrens & Education,Payments To Private Orgs,6002,06/03/2019,5643029,280.80,REVENUE,Busy Bea Childminding,,BUS0165S
North Lincolnshire Council,http://data.ordnancesurvey.co.uk/id/7000000000025623,Environmental & Regulatory Svs,Other Supplies & Services,5799,20/03/2019,5649294,"1,320.00",REVENUE,Cadpoint Ltd,,CAD0025D
North Lincolnshire Council,http://data.ordnancesurvey.co.uk/id/7000000000025623,Childrens & Education,Client Transport Costs,6092,13/03/2019,5647735,773.00,REVENUE,Call A Cab,,CAL0176L
North Lincolnshire Council,http://data.ordnancesurvey.co.uk/id/7000000000025623,Childrens & Education,Client Transport Costs,6092,13/03/2019,5647736,386.50,REVENUE,Call A Cab,,CAL0176L
North Lincolnshire Council,http://data.ordnancesurvey.co.uk/id/7000000000025623,Childrens & Education,Client Transport Costs,6092,13/03/2019,5647738,560.24,REVENUE,Call A Cab,,CAL0176L
North Lincolnshire Council,http://data.ordnancesurvey.co.uk/id/7000000000025623,Childrens & Education,Home To School Transport,4201,20/03/2019,5650135,600.00,REVENUE,Call A Cab,,CAL0176L
North Lincolnshire Council,http://data.ordnancesurvey.co.uk/id/7000000000025623,Childrens & Education,Home To School Transport,4201,20/03/2019,5650136,840.00,REVENUE,Call A Cab,,CAL0176L
North Lincolnshire Council,http://data.ordnancesurvey.co.uk/id/7000000000025623,Culture & Related Services,Gas,3101,22/03/2019,5643850,"1,029.45",REVENUE,Calor Gas Ltd,303703,CAL0063L
North Lincolnshire Council,http://data.ordnancesurvey.co.uk/id/7000000000025623,Adult Social Care,Payments To Health Providers,6019,22/03/2019,5651059,569.61,REVENUE,Cambridge Avenue Medical Centre,,CAM0007M
North Lincolnshire Council,http://data.ordnancesurvey.co.uk/id/7000000000025623,Adult Social Care,Payments To Health Providers,6019,22/03/2019,5651063,629.46,REVENUE,Cambridge Avenue Medical Centre,,CAM0007M
North Lincolnshire Council,http://data.ordnancesurvey.co.uk/id/7000000000025623,Public Health,Payments To Health Providers,6019,22/03/2019,5651059,300.00,REVENUE,Cambridge Avenue Medical Centre,,CAM0007M
North Lincolnshire Council,http://data.ordnancesurvey.co.uk/id/7000000000025623,Public Health,Payments To Health Providers,6019,22/03/2019,5651063,220.00,REVENUE,Cambridge Avenue Medical Centre,,CAM0007M
North Lincolnshire Council,http://data.ordnancesurvey.co.uk/id/7000000000025623,Environmental & Regulatory Svs,Equipment Maint.& Repair,5003,22/03/2019,5644122,521.00,REVENUE,Campbell Associates,,CAM0198M
North Lincolnshire Council,http://data.ordnancesurvey.co.uk/id/7000000000025623,Culture & Related Services,"Skips/Sanitary Collections,Etc",3321,27/03/2019,5649306,402.62,REVENUE,Cannon Hygiene Ltd,3056469,CAN0001N
North Lincolnshire Council,http://data.ordnancesurvey.co.uk/id/7000000000025623,Childrens & Education,It Software-Maintenance,5053,27/03/2019,5652453,"-1,016.59",REVENUE,Capita Business Services Ltd,2299747,CAP0021P
North Lincolnshire Council,http://data.ordnancesurvey.co.uk/id/7000000000025623,Corporate And Democratic Core,Gen Office Exp (Incl Postage),5603,20/03/2019,5652211,"2,708.68",REVENUE,Capita Business Services Ltd,2299747,CAP0021P
North Lincolnshire Council,http://data.ordnancesurvey.co.uk/id/7000000000025623,Culture & Related Services,Payments To Private Orgs,6002,20/03/2019,5648712,681.00,REVENUE,Cardiff University,,CAR0072R
North Lincolnshire Council,http://data.ordnancesurvey.co.uk/id/7000000000025623,Childrens & Education,Licences,4002,10/04/2019,5649304,713.00,REVENUE,Careervision Ltd,,CAR0695R
North Lincolnshire Council,http://data.ordnancesurvey.co.uk/id/7000000000025623,Adult Social Care,Payments To Private Orgs,6002,08/03/2019,5644909,"7,863.33",REVENUE,Care Plus Care Ltd,,CAR0337R
North Lincolnshire Council,http://data.ordnancesurvey.co.uk/id/7000000000025623,Adult Social Care,Payments To Private Orgs,6002,06/03/2019,5644921,924.00,REVENUE,Care Plus Care Uk Ltd,,ISF0002F
North Lincolnshire Council,http://data.ordnancesurvey.co.uk/id/7000000000025623,Adult Social Care,Payments To Private Orgs,6002,06/03/2019,5644921,880.00,REVENUE,Care Plus Care Uk Ltd,,ISF0002F
North Lincolnshire Council,http://data.ordnancesurvey.co.uk/id/7000000000025623,Adult Social Care,Payments To Private Orgs,6002,08/03/2019,5644910,"17,681.00",REVENUE,Care Plus Care (Uk) Ltd (Isle),,CAR0542R
North Lincolnshire Council,http://data.ordnancesurvey.co.uk/id/7000000000025623,Adult Social Care,Payments To Private Orgs,6002,06/03/2019,5644922,156.00,REVENUE,Carers' Support Centre,,ISF0003F
North Lincolnshire Council,http://data.ordnancesurvey.co.uk/id/7000000000025623,Adult Social Care,Payments To Private Orgs,6002,06/03/2019,5644922,"3,706.36",REVENUE,Carers' Support Centre,,ISF0003F
North Lincolnshire Council,http://data.ordnancesurvey.co.uk/id/7000000000025623,Adult Social Care,Payments To Private Orgs,6002,08/03/2019,5644908,"7,333.92",REVENUE,Carers' Support Centre,,CAR0131R
North Lincolnshire Council,http://data.ordnancesurvey.co.uk/id/7000000000025623,Adult Social Care,Payments To Private Orgs,6002,08/03/2019,5644908,114.00,REVENUE,Carers' Support Centre,,CAR0131R
North Lincolnshire Council,http://data.ordnancesurvey.co.uk/id/7000000000025623,Adult Social Care,Payments To Private Orgs,6002,22/03/2019,5652208,"102,224.37",REVENUE,Carers' Support Centre,,CAR0131R
North Lincolnshire Council,http://data.ordnancesurvey.co.uk/id/7000000000025623,Adult Social Care,Payments To Voluntary Orgs,6001,20/03/2019,5651321,"1,360.85",REVENUE,Carers' Support Centre,,CAR0131R
North Lincolnshire Council,http://data.ordnancesurvey.co.uk/id/7000000000025623,Culture & Related Services,Fuel,4001,15/04/2019,5649337,284.55,REVENUE,Carlton Fuels,04168225,CAR0127R
North Lincolnshire Council,http://data.ordnancesurvey.co.uk/id/7000000000025623,Culture & Related Services,Fuel,4001,15/04/2019,5650085,"2,519.55",REVENUE,Carlton Fuels,04168225,CAR0127R
North Lincolnshire Council,http://data.ordnancesurvey.co.uk/id/7000000000025623,Culture & Related Services,Heating Fuels,3104,08/03/2019,5641070,280.42,REVENUE,Carlton Fuels,04168225,CAR0127R
North Lincolnshire Council,http://data.ordnancesurvey.co.uk/id/7000000000025623,Culture & Related Services,Heating Fuels,3104,15/04/2019,5649338,"1,118.20",REVENUE,Carlton Fuels,04168225,CAR0127R
North Lincolnshire Council,http://data.ordnancesurvey.co.uk/id/7000000000025623,Culture & Related Services,Heating Fuels,3104,15/04/2019,5655708,822.90,REVENUE,Carlton Fuels,04168225,CAR0127R
North Lincolnshire Council,http://data.ordnancesurvey.co.uk/id/7000000000025623,Fin&Inv I&E,Fuel,4001,15/04/2019,5656226,"35,092.49",REVENUE,Carlton Fuels,04168225,CAR0127R
North Lincolnshire Council,http://data.ordnancesurvey.co.uk/id/7000000000025623,Fin&Inv I&E,Fuel,4001,15/04/2019,5656227,"35,269.50",REVENUE,Carlton Fuels,04168225,CAR0127R
North Lincolnshire Council,http://data.ordnancesurvey.co.uk/id/7000000000025623,Corporate And Democratic Core,Legal Fees,5823,14/04/2019,5653950,270.97,REVENUE,Carter Brown The Expert Service Limited,,CAR0564R
North Lincolnshire Council,http://data.ordnancesurvey.co.uk/id/7000000000025623,Childrens & Education,Payments To Private Orgs,6002,06/03/2019,5643032,"6,618.01",REVENUE,Castledyke Ltd,,CAS0095S
North Lincolnshire Council,http://data.ordnancesurvey.co.uk/id/7000000000025623,Adult Social Care,Rents,3201,20/03/2019,5650804,790.00,REVENUE,Central Community Centre Association,,CEN0034N
North Lincolnshire Council,http://data.ordnancesurvey.co.uk/id/7000000000025623,Adult Social Care,Rents,3201,07/04/2019,5650805,678.00,REVENUE,Central Community Centre Association,,CEN0034N
North Lincolnshire Council,http://data.ordnancesurvey.co.uk/id/7000000000025623,Adult Social Care,"Clothing, Uniforms & Laundry",5301,15/03/2019,5647707,268.29,REVENUE,Central Laundry Ltd,06765045,CEN0085N
North Lincolnshire Council,http://data.ordnancesurvey.co.uk/id/7000000000025623,Adult Social Care,"Clothing, Uniforms & Laundry",5301,20/03/2019,5646237,"1,532.00",REVENUE,Central Laundry Ltd,06765045,CEN0085N
North Lincolnshire Council,http://data.ordnancesurvey.co.uk/id/7000000000025623,Adult Social Care,"Clothing, Uniforms & Laundry",5301,14/04/2019,5651830,542.00,REVENUE,Central Laundry Ltd,06765045,CEN0085N
North Lincolnshire Council,http://data.ordnancesurvey.co.uk/id/7000000000025623,Adult Social Care,Payments To Health Providers,6019,22/03/2019,5651090,800.00,REVENUE,Central Surgery,,DIC0005C
North Lincolnshire Council,http://data.ordnancesurvey.co.uk/id/7000000000025623,Adult Social Care,Payments To Health Providers,6019,22/03/2019,5651092,"1,103.74",REVENUE,Central Surgery,,DIC0005C
North Lincolnshire Council,http://data.ordnancesurvey.co.uk/id/7000000000025623,Public Health,Payments To Health Providers,6019,22/03/2019,5651090,300.00,REVENUE,Central Surgery,,DIC0005C
North Lincolnshire Council,http://data.ordnancesurvey.co.uk/id/7000000000025623,Public Health,Payments To Private Orgs,6002,15/03/2019,5646469,"9,082.99",REVENUE,Cgl,3861209,CRI0001I
North Lincolnshire Council,http://data.ordnancesurvey.co.uk/id/7000000000025623,Public Health,Payments To Private Orgs,6002,15/03/2019,5646474,"8,596.33",REVENUE,Cgl,3861209,CRI0001I
North Lincolnshire Council,http://data.ordnancesurvey.co.uk/id/7000000000025623,Childrens & Education,Client Related Costs,5534,13/03/2019,5645865,"1,440.00",REVENUE,Changing Lives,10624046,CHA0547A
North Lincolnshire Council,http://data.ordnancesurvey.co.uk/id/7000000000025623,Childrens & Education,Payments To Private Orgs,6002,13/03/2019,5646508,450.00,REVENUE,Charanga Ltd,,CHA0486A
North Lincolnshire Council,http://data.ordnancesurvey.co.uk/id/7000000000025623,Highways & Transport,Stock Purchases & Adjustments,5030,20/03/2019,5640320,"2,972.00",REVENUE,Charles Endirect Ltd,,CHA0183A
North Lincolnshire Council,http://data.ordnancesurvey.co.uk/id/7000000000025623,Corporate And Democratic Core,Other Professional Fees,5829,15/03/2019,5646578,220.00,REVENUE,Chartered Institute Of Building,,CHA0203A
North Lincolnshire Council,http://data.ordnancesurvey.co.uk/id/7000000000025623,Adult Social Care,Payments To Private Orgs,6002,06/03/2019,5644937,"6,293.52",REVENUE,Chestnut Homecare Ltd,,ISF0027F
North Lincolnshire Council,http://data.ordnancesurvey.co.uk/id/7000000000025623,Adult Social Care,Payments To Private Orgs,6002,06/03/2019,5644937,210.00,REVENUE,Chestnut Homecare Ltd,,ISF0027F
North Lincolnshire Council,http://data.ordnancesurvey.co.uk/id/7000000000025623,Adult Social Care,Payments To Private Orgs,6002,08/03/2019,5644911,"-1,496.28",REVENUE,Chestnut Homecare Ltd,,CHE0222E
North Lincolnshire Council,http://data.ordnancesurvey.co.uk/id/7000000000025623,Adult Social Care,Payments To Private Orgs,6002,08/03/2019,5644912,"18,724.93",REVENUE,Chestnut Homecare Ltd,,CHE0222E
North Lincolnshire Council,http://data.ordnancesurvey.co.uk/id/7000000000025623,Childrens & Education,Payments To Private Orgs,6002,08/03/2019,5644018,399.75,REVENUE,Christopher Barton,,BAR0895R
North Lincolnshire Council,http://data.ordnancesurvey.co.uk/id/7000000000025623,Culture & Related Services,Other Professional Fees,5829,15/03/2019,5648465,620.00,REVENUE,Christopher Hawes,,HAW0124W
North Lincolnshire Council,http://data.ordnancesurvey.co.uk/id/7000000000025623,Childrens & Education,Repair & Maintenance Costs,3000,13/03/2019,5647630,224.47,REVENUE,Chubb Fire Limited,524469,CHU0021U
North Lincolnshire Council,http://data.ordnancesurvey.co.uk/id/7000000000025623,Childrens & Education,Repair & Maintenance Costs,3000,20/03/2019,5651169,"1,059.75",REVENUE,Chubb Fire Limited,524469,CHU0021U
North Lincolnshire Council,http://data.ordnancesurvey.co.uk/id/7000000000025623,Childrens & Education,Repair & Maintenance Costs,3000,22/03/2019,5652565,-300.00,REVENUE,Chubb Fire Limited,524469,CHU0021U
North Lincolnshire Council,http://data.ordnancesurvey.co.uk/id/7000000000025623,Corporate And Democratic Core,Repair & Maintenance Costs,3000,13/03/2019,5647627,0,REVENUE,Chubb Fire Limited,524469,CHU0021U
North Lincolnshire Council,http://data.ordnancesurvey.co.uk/id/7000000000025623,Corporate And Democratic Core,Repair & Maintenance Costs,3000,13/03/2019,5647630,0,REVENUE,Chubb Fire Limited,524469,CHU0021U
North Lincolnshire Council,http://data.ordnancesurvey.co.uk/id/7000000000025623,Corporate And Democratic Core,Repair & Maintenance Costs,3000,20/03/2019,5651169,0,REVENUE,Chubb Fire Limited,524469,CHU0021U
North Lincolnshire Council,http://data.ordnancesurvey.co.uk/id/7000000000025623,Corporate And Democratic Core,Repair & Maintenance Costs,3000,22/03/2019,5652564,0,REVENUE,Chubb Fire Limited,524469,CHU0021U
North Lincolnshire Council,http://data.ordnancesurvey.co.uk/id/7000000000025623,Corporate And Democratic Core,Repair & Maintenance Costs,3000,22/03/2019,5652565,0,REVENUE,Chubb Fire Limited,524469,CHU0021U
North Lincolnshire Council,http://data.ordnancesurvey.co.uk/id/7000000000025623,Culture & Related Services,Repair & Maintenance Costs,3000,13/03/2019,5647627,355.23,REVENUE,Chubb Fire Limited,524469,CHU0021U
North Lincolnshire Council,http://data.ordnancesurvey.co.uk/id/7000000000025623,Highways & Transport,Repair & Maintenance Costs,3000,22/03/2019,5652564,280.20,REVENUE,Chubb Fire Limited,524469,CHU0021U
North Lincolnshire Council,http://data.ordnancesurvey.co.uk/id/7000000000025623,Corporate And Democratic Core,Repair & Maintenance Costs,3000,13/03/2019,5647581,519.31,REVENUE,Chubb  Fire & Security Ltd,524469,SHO0001O
North Lincolnshire Council,http://data.ordnancesurvey.co.uk/id/7000000000025623,Corporate And Democratic Core,Repair & Maintenance Costs,3000,20/03/2019,5651183,532.07,REVENUE,Chubb  Fire & Security Ltd,524469,SHO0001O
North Lincolnshire Council,http://data.ordnancesurvey.co.uk/id/7000000000025623,Adult Social Care,Payments To Health Providers,6019,22/03/2019,5651069,489.78,REVENUE,Church Lane Medical Centre,,CHU0022U
North Lincolnshire Council,http://data.ordnancesurvey.co.uk/id/7000000000025623,Adult Social Care,Payments To Health Providers,6019,22/03/2019,5651073,206.82,REVENUE,Church Lane Medical Centre,,CHU0022U
North Lincolnshire Council,http://data.ordnancesurvey.co.uk/id/7000000000025623,Public Health,Payments To Health Providers,6019,22/03/2019,5651069,340.00,REVENUE,Church Lane Medical Centre,,CHU0022U
North Lincolnshire Council,http://data.ordnancesurvey.co.uk/id/7000000000025623,Public Health,Payments To Health Providers,6019,22/03/2019,5651073,300.00,REVENUE,Church Lane Medical Centre,,CHU0022U
North Lincolnshire Council,http://data.ordnancesurvey.co.uk/id/7000000000025623,Corporate And Democratic Core,Course Fees/Training,2002,27/03/2019,5641285,345.00,REVENUE,C.I.P.F.A.,,CIP0001P
North Lincolnshire Council,http://data.ordnancesurvey.co.uk/id/7000000000025623,Childrens & Education,Examination Fees,5730,13/04/2019,5652978,569.10,REVENUE,City & Guilds,312832,CIT0025T
North Lincolnshire Council,http://data.ordnancesurvey.co.uk/id/7000000000025623,Adult Social Care,Payments To Health Providers,6019,29/03/2019,5656503,"1,713.00",REVENUE,City Health Care Partnership Cic,,HUL0022L
North Lincolnshire Council,http://data.ordnancesurvey.co.uk/id/7000000000025623,Adult Social Care,Payments To Health Providers,6019,29/03/2019,5656504,"2,459.00",REVENUE,City Health Care Partnership Cic,,HUL0022L
North Lincolnshire Council,http://data.ordnancesurvey.co.uk/id/7000000000025623,Adult Social Care,Payments To Health Providers,6019,29/03/2019,5656505,"1,014.00",REVENUE,City Health Care Partnership Cic,,HUL0022L
North Lincolnshire Council,http://data.ordnancesurvey.co.uk/id/7000000000025623,Adult Social Care,Payments To Health Providers,6019,29/03/2019,5656506,-365.00,REVENUE,City Health Care Partnership Cic,,HUL0022L
North Lincolnshire Council,http://data.ordnancesurvey.co.uk/id/7000000000025623,Public Health,Payments To Health Providers,6019,22/03/2019,5651048,"1,647.00",REVENUE,City Health Care Partnership Cic,,HUL0022L
North Lincolnshire Council,http://data.ordnancesurvey.co.uk/id/7000000000025623,Environmental & Regulatory Svs,Subscriptions & Memberships,5510,27/03/2019,5645297,"3,270.90",REVENUE,City Of York Council,,CIT0047T
North Lincolnshire Council,http://data.ordnancesurvey.co.uk/id/7000000000025623,Adult Social Care,Other Supplies & Services,5799,22/03/2019,5652501,"1,039.50",REVENUE,Civica Uk Ltd,1628868,CIV0010V
North Lincolnshire Council,http://data.ordnancesurvey.co.uk/id/7000000000025623,Adult Social Care,Other Supplies & Services,5799,22/03/2019,5652506,"4,410.50",REVENUE,Civica Uk Ltd,1628868,CIV0010V
North Lincolnshire Council,http://data.ordnancesurvey.co.uk/id/7000000000025623,Adult Social Care,Other Supplies & Services,5799,22/03/2019,5653339,"3,154.25",REVENUE,Civica Uk Ltd,1628868,CIV0010V
North Lincolnshire Council,http://data.ordnancesurvey.co.uk/id/7000000000025623,Corporate And Democratic Core,Course Fees/Training,2002,27/03/2019,5645279,"2,150.00",REVENUE,Civica Uk Ltd,1628868,CIV0010V
North Lincolnshire Council,http://data.ordnancesurvey.co.uk/id/7000000000025623,Adult Social Care,Payments To Private Orgs,6002,08/03/2019,5644915,"15,283.68",REVENUE,Clarity Homecare Ltd,,CLA0252A
North Lincolnshire Council,http://data.ordnancesurvey.co.uk/id/7000000000025623,Highways & Transport,Other Supplies & Services,5799,22/03/2019,5642790,"1,156.00",REVENUE,Clearway Environmental Services Ltd,,CLE0018E
North Lincolnshire Council,http://data.ordnancesurvey.co.uk/id/7000000000025623,Adult Social Care,Car And Travel Allowances,4306,27/03/2019,5645276,177.76,REVENUE,Click Travel Limited,03770815,CLI0015I
North Lincolnshire Council,http://data.ordnancesurvey.co.uk/id/7000000000025623,Adult Social Care,Client Transport Costs,6092,27/03/2019,5645276,298.90,REVENUE,Click Travel Limited,03770815,CLI0015I
North Lincolnshire Council,http://data.ordnancesurvey.co.uk/id/7000000000025623,Adult Social Care,Client Transport Costs,6092,27/03/2019,5645277,-575.70,REVENUE,Click Travel Limited,03770815,CLI0015I
North Lincolnshire Council,http://data.ordnancesurvey.co.uk/id/7000000000025623,Adult Social Care,Equipment Purchase,5001,27/03/2019,5645276,51.60,REVENUE,Click Travel Limited,03770815,CLI0015I
North Lincolnshire Council,http://data.ordnancesurvey.co.uk/id/7000000000025623,Adult Social Care,Other Professional Fees,5829,27/03/2019,5645276,19.60,REVENUE,Click Travel Limited,03770815,CLI0015I
North Lincolnshire Council,http://data.ordnancesurvey.co.uk/id/7000000000025623,Adult Social Care,Rail & Other Fares,4121,27/03/2019,5645276,313.40,REVENUE,Click Travel Limited,03770815,CLI0015I
North Lincolnshire Council,http://data.ordnancesurvey.co.uk/id/7000000000025623,Adult Social Care,Rail & Other Fares,4121,27/03/2019,5645276,911.90,REVENUE,Click Travel Limited,03770815,CLI0015I
North Lincolnshire Council,http://data.ordnancesurvey.co.uk/id/7000000000025623,Adult Social Care,Rail & Other Fares,4121,27/03/2019,5645277,-130.40,REVENUE,Click Travel Limited,03770815,CLI0015I
North Lincolnshire Council,http://data.ordnancesurvey.co.uk/id/7000000000025623,Adult Social Care,Subsistence & Expenses (Staff),5720,27/03/2019,5645276,92.60,REVENUE,Click Travel Limited,03770815,CLI0015I
North Lincolnshire Council,http://data.ordnancesurvey.co.uk/id/7000000000025623,Adult Social Care,Vehicle Hire,4101,27/03/2019,5645276,59.80,REVENUE,Click Travel Limited,03770815,CLI0015I
North Lincolnshire Council,http://data.ordnancesurvey.co.uk/id/7000000000025623,Childrens & Education,Client Transport Costs,6092,27/03/2019,5645276,391.85,REVENUE,Click Travel Limited,03770815,CLI0015I
North Lincolnshire Council,http://data.ordnancesurvey.co.uk/id/7000000000025623,Childrens & Education,Client Transport Costs,6092,27/03/2019,5645277,-33.90,REVENUE,Click Travel Limited,03770815,CLI0015I
North Lincolnshire Council,http://data.ordnancesurvey.co.uk/id/7000000000025623,Childrens & Education,Rail & Other Fares,4121,27/03/2019,5645276,425.15,REVENUE,Click Travel Limited,03770815,CLI0015I
North Lincolnshire Council,http://data.ordnancesurvey.co.uk/id/7000000000025623,Childrens & Education,Rail & Other Fares,4121,27/03/2019,5645276,435.75,REVENUE,Click Travel Limited,03770815,CLI0015I
North Lincolnshire Council,http://data.ordnancesurvey.co.uk/id/7000000000025623,Childrens & Education,Rail & Other Fares,4121,27/03/2019,5645277,-41.60,REVENUE,Click Travel Limited,03770815,CLI0015I
North Lincolnshire Council,http://data.ordnancesurvey.co.uk/id/7000000000025623,Corporate And Democratic Core,Car And Travel Allowances,4306,27/03/2019,5645276,51.60,REVENUE,Click Travel Limited,03770815,CLI0015I
North Lincolnshire Council,http://data.ordnancesurvey.co.uk/id/7000000000025623,Corporate And Democratic Core,Course Fees/Training,2002,27/03/2019,5645276,95.55,REVENUE,Click Travel Limited,03770815,CLI0015I
North Lincolnshire Council,http://data.ordnancesurvey.co.uk/id/7000000000025623,Corporate And Democratic Core,Leased Cars Rental,4301,27/03/2019,5645276,25.80,REVENUE,Click Travel Limited,03770815,CLI0015I
North Lincolnshire Council,http://data.ordnancesurvey.co.uk/id/7000000000025623,Corporate And Democratic Core,Other Professional Fees,5829,27/03/2019,5645276,120.00,REVENUE,Click Travel Limited,03770815,CLI0015I
North Lincolnshire Council,http://data.ordnancesurvey.co.uk/id/7000000000025623,Corporate And Democratic Core,Rail & Other Fares,4121,27/03/2019,5645276,307.85,REVENUE,Click Travel Limited,03770815,CLI0015I
North Lincolnshire Council,http://data.ordnancesurvey.co.uk/id/7000000000025623,Corporate And Democratic Core,Rail & Other Fares,4121,27/03/2019,5645276,"1,008.32",REVENUE,Click Travel Limited,03770815,CLI0015I
North Lincolnshire Council,http://data.ordnancesurvey.co.uk/id/7000000000025623,Culture & Related Services,Rail & Other Fares,4121,27/03/2019,5645276,402.42,REVENUE,Click Travel Limited,03770815,CLI0015I
North Lincolnshire Council,http://data.ordnancesurvey.co.uk/id/7000000000025623,Environmental & Regulatory Svs,Car And Travel Allowances,4306,27/03/2019,5645276,30.70,REVENUE,Click Travel Limited,03770815,CLI0015I
North Lincolnshire Council,http://data.ordnancesurvey.co.uk/id/7000000000025623,Environmental & Regulatory Svs,Car And Travel Allowances,4306,27/03/2019,5645276,743.20,REVENUE,Click Travel Limited,03770815,CLI0015I
North Lincolnshire Council,http://data.ordnancesurvey.co.uk/id/7000000000025623,Environmental & Regulatory Svs,Rail & Other Fares,4121,27/03/2019,5645276,109.40,REVENUE,Click Travel Limited,03770815,CLI0015I
North Lincolnshire Council,http://data.ordnancesurvey.co.uk/id/7000000000025623,Highways & Transport,Rail & Other Fares,4121,27/03/2019,5645276,207.15,REVENUE,Click Travel Limited,03770815,CLI0015I
North Lincolnshire Council,http://data.ordnancesurvey.co.uk/id/7000000000025623,Housing Services,Rail & Other Fares,4121,27/03/2019,5645276,41.20,REVENUE,Click Travel Limited,03770815,CLI0015I
North Lincolnshire Council,http://data.ordnancesurvey.co.uk/id/7000000000025623,Non Distributed Costs,Car And Travel Allowances,4306,27/03/2019,5645276,193.70,REVENUE,Click Travel Limited,03770815,CLI0015I
North Lincolnshire Council,http://data.ordnancesurvey.co.uk/id/7000000000025623,Planning Services,Rail & Other Fares,4121,27/03/2019,5645276,49.50,REVENUE,Click Travel Limited,03770815,CLI0015I
North Lincolnshire Council,http://data.ordnancesurvey.co.uk/id/7000000000025623,Public Health,Rail & Other Fares,4121,27/03/2019,5645276,231.00,REVENUE,Click Travel Limited,03770815,CLI0015I
North Lincolnshire Council,http://data.ordnancesurvey.co.uk/id/7000000000025623,Adult Social Care,Payments To Private Orgs,6002,22/03/2019,5652450,"11,733.61",REVENUE,Cloverleaf Advocacy 2000 Ltd,,CLO0101O
North Lincolnshire Council,http://data.ordnancesurvey.co.uk/id/7000000000025623,Adult Social Care,Payments To Private Orgs,6002,22/03/2019,5652451,"11,959.20",REVENUE,Cloverleaf Advocacy 2000 Ltd,,CLO0101O
North Lincolnshire Council,http://data.ordnancesurvey.co.uk/id/7000000000025623,Adult Social Care,Payments To Private Orgs,6002,27/03/2019,5645635,"12,115.49",REVENUE,Cloverleaf Advocacy 2000 Ltd,,CLO0101O
North Lincolnshire Council,http://data.ordnancesurvey.co.uk/id/7000000000025623,Adult Social Care,Payments To Private Orgs,6002,19/04/2019,5653301,0,REVENUE,Cloverleaf Advocacy 2000 Ltd,,CLO0101O
North Lincolnshire Council,http://data.ordnancesurvey.co.uk/id/7000000000025623,Adult Social Care,Payments To Private Orgs (Inv),6026,19/04/2019,5653301,"7,242.50",REVENUE,Cloverleaf Advocacy 2000 Ltd,,CLO0101O
North Lincolnshire Council,http://data.ordnancesurvey.co.uk/id/7000000000025623,"Culture,Env,Reg & Planning Cap",Other Costs,A085,06/04/2019,5645655,"11,781.83",CAPITAL,Clugston Construction Limited,681537,CLU0007U
North Lincolnshire Council,http://data.ordnancesurvey.co.uk/id/7000000000025623,Fin&Inv I&E,Other Vehicle Costs,4005,22/03/2019,5653924,"4,000.00",REVENUE,Clugston Distribution Services Ltd,5517733,CLU0013U
North Lincolnshire Council,http://data.ordnancesurvey.co.uk/id/7000000000025623,Environmental & Regulatory Svs,Vehicle Hire,4101,27/03/2019,5650816,"3,000.00",REVENUE,Cms Hire Ltd,,COO0073O
North Lincolnshire Council,http://data.ordnancesurvey.co.uk/id/7000000000025623,Environmental & Regulatory Svs,Vehicle Hire,4101,27/03/2019,5650817,"1,900.00",REVENUE,Cms Hire Ltd,,COO0073O
North Lincolnshire Council,http://data.ordnancesurvey.co.uk/id/7000000000025623,Environmental & Regulatory Svs,Vehicle Hire,4101,27/03/2019,5650819,"3,000.00",REVENUE,Cms Hire Ltd,,COO0073O
North Lincolnshire Council,http://data.ordnancesurvey.co.uk/id/7000000000025623,Fin&Inv I&E,Vehicle Hire,4101,27/03/2019,5650818,"2,980.00",REVENUE,Cms Hire Ltd,,COO0073O
North Lincolnshire Council,http://data.ordnancesurvey.co.uk/id/7000000000025623,Highways & Transport,Other Professional Fees,5829,27/03/2019,5648687,716.15,REVENUE,Cobalt Telephone Technologies Ltd,3151938,COB0031B
North Lincolnshire Council,http://data.ordnancesurvey.co.uk/id/7000000000025623,Fin&Inv I&E,Other Supplies & Services,5799,13/03/2019,5645814,"5,000.00",REVENUE,Cobweb Crystal & Engraving Services,,COB0016B
North Lincolnshire Council,http://data.ordnancesurvey.co.uk/id/7000000000025623,Environmental & Regulatory Svs,Equipment Purchase,5001,20/03/2019,5641237,290.00,REVENUE,Combined Precision Components Plc,860093,PRE0028E
North Lincolnshire Council,http://data.ordnancesurvey.co.uk/id/7000000000025623,Corporate And Democratic Core,It Software-Maintenance,5053,20/03/2019,5649531,"507,498.00",REVENUE,Comparex Uk Ltd,02973781,COM0151M
North Lincolnshire Council,http://data.ordnancesurvey.co.uk/id/7000000000025623,Childrens & Education,Subscriptions & Memberships,5510,13/03/2019,5645311,"17,705.98",REVENUE,Compass Computer Consultants Ltd,2211500,COM0072M
North Lincolnshire Council,http://data.ordnancesurvey.co.uk/id/7000000000025623,"Culture,Env,Reg & Planning Cap",Furniture & Fittings,A097,13/03/2019,5639634,"1,345.00",CAPITAL,Complete Office Solutions (Uk) Ltd,3045607,AQU0001U
North Lincolnshire Council,http://data.ordnancesurvey.co.uk/id/7000000000025623,Childrens & Education,Payments To Private Orgs,6002,06/03/2019,5643034,"21,185.45",REVENUE,Coneygarth Farm Day Nursery,,CON0013N
North Lincolnshire Council,http://data.ordnancesurvey.co.uk/id/7000000000025623,Childrens & Education,Payments To Private Orgs,6002,20/03/2019,5651707,468.00,REVENUE,Coneygarth Farm Day Nursery,,CON0013N
North Lincolnshire Council,http://data.ordnancesurvey.co.uk/id/7000000000025623,Adult Social Care,Payments To Private Orgs,6002,22/03/2019,5653290,502.95,REVENUE,Connevans Limited,,CON0120N
North Lincolnshire Council,http://data.ordnancesurvey.co.uk/id/7000000000025623,Fin&Inv I&E,Equipment Purchase,5001,06/03/2019,5642347,"7,996.00",REVENUE,Containerking Ltd,3402386,CON0338N
North Lincolnshire Council,http://data.ordnancesurvey.co.uk/id/7000000000025623,Childrens & Education,Payments To Private Orgs,6002,08/03/2019,5645205,"1,890.00",REVENUE,Coomb Briggs Primary School,,COO0152O
North Lincolnshire Council,http://data.ordnancesurvey.co.uk/id/7000000000025623,Corporate And Democratic Core,Other Supplies & Services,5799,15/03/2019,5648891,"7,715.13",REVENUE,Copyright Licensing Agency Ltd,,COP0035P
North Lincolnshire Council,http://data.ordnancesurvey.co.uk/id/7000000000025623,Childrens & Education,Course Fees/Training,2002,13/03/2019,5646314,277.50,REVENUE,Corambaaf,09697712,COR0183R
North Lincolnshire Council,http://data.ordnancesurvey.co.uk/id/7000000000025623,Childrens & Education,Subscriptions & Memberships,5510,13/03/2019,5646307,"2,793.47",REVENUE,Corambaaf,09697712,COR0183R
North Lincolnshire Council,http://data.ordnancesurvey.co.uk/id/7000000000025623,Adult Social Care,Payments To Health Providers,6019,22/03/2019,5651025,21.78,REVENUE,Core Care Links Ltd,07230653,COR0130R
North Lincolnshire Council,http://data.ordnancesurvey.co.uk/id/7000000000025623,Public Health,Payments To Health Providers,6019,22/03/2019,5651025,300.00,REVENUE,Core Care Links Ltd,07230653,COR0130R
North Lincolnshire Council,http://data.ordnancesurvey.co.uk/id/7000000000025623,Adult Social Care,Gas,3101,15/03/2019,5643711,470.22,REVENUE,Corona Energy Retail 4 Ltd,,COR0300R
North Lincolnshire Council,http://data.ordnancesurvey.co.uk/id/7000000000025623,Adult Social Care,Gas,3101,15/03/2019,5643805,"1,133.85",REVENUE,Corona Energy Retail 4 Ltd,,COR0300R
North Lincolnshire Council,http://data.ordnancesurvey.co.uk/id/7000000000025623,Adult Social Care,Gas,3101,15/03/2019,5643816,506.41,REVENUE,Corona Energy Retail 4 Ltd,,COR0300R
North Lincolnshire Council,http://data.ordnancesurvey.co.uk/id/7000000000025623,Adult Social Care,Gas,3101,15/03/2019,5643818,428.18,REVENUE,Corona Energy Retail 4 Ltd,,COR0300R
North Lincolnshire Council,http://data.ordnancesurvey.co.uk/id/7000000000025623,Adult Social Care,Gas,3101,15/03/2019,5643829,455.43,REVENUE,Corona Energy Retail 4 Ltd,,COR0300R
North Lincolnshire Council,http://data.ordnancesurvey.co.uk/id/7000000000025623,Adult Social Care,Gas,3101,15/03/2019,5643830,622.84,REVENUE,Corona Energy Retail 4 Ltd,,COR0300R
North Lincolnshire Council,http://data.ordnancesurvey.co.uk/id/7000000000025623,Adult Social Care,Gas,3101,19/04/2019,5655564,"1,028.94",REVENUE,Corona Energy Retail 4 Ltd,,COR0300R
North Lincolnshire Council,http://data.ordnancesurvey.co.uk/id/7000000000025623,Adult Social Care,Gas,3101,19/04/2019,5655570,105.56,REVENUE,Corona Energy Retail 4 Ltd,,COR0300R
North Lincolnshire Council,http://data.ordnancesurvey.co.uk/id/7000000000025623,Adult Social Care,Gas,3101,19/04/2019,5655609,"1,000.15",REVENUE,Corona Energy Retail 4 Ltd,,COR0300R
North Lincolnshire Council,http://data.ordnancesurvey.co.uk/id/7000000000025623,Adult Social Care,Gas,3101,19/04/2019,5655620,445.19,REVENUE,Corona Energy Retail 4 Ltd,,COR0300R
North Lincolnshire Council,http://data.ordnancesurvey.co.uk/id/7000000000025623,Adult Social Care,Gas,3101,19/04/2019,5655622,342.85,REVENUE,Corona Energy Retail 4 Ltd,,COR0300R
North Lincolnshire Council,http://data.ordnancesurvey.co.uk/id/7000000000025623,Adult Social Care,Gas,3101,19/04/2019,5655633,367.15,REVENUE,Corona Energy Retail 4 Ltd,,COR0300R
North Lincolnshire Council,http://data.ordnancesurvey.co.uk/id/7000000000025623,Adult Social Care,Gas,3101,19/04/2019,5655634,501.14,REVENUE,Corona Energy Retail 4 Ltd,,COR0300R
North Lincolnshire Council,http://data.ordnancesurvey.co.uk/id/7000000000025623,Childrens & Education,Gas,3101,15/03/2019,5643615,604.74,REVENUE,Corona Energy Retail 4 Ltd,,COR0300R
North Lincolnshire Council,http://data.ordnancesurvey.co.uk/id/7000000000025623,Childrens & Education,Gas,3101,15/03/2019,5643783,680.80,REVENUE,Corona Energy Retail 4 Ltd,,COR0300R
North Lincolnshire Council,http://data.ordnancesurvey.co.uk/id/7000000000025623,Childrens & Education,Gas,3101,15/03/2019,5643796,219.39,REVENUE,Corona Energy Retail 4 Ltd,,COR0300R
North Lincolnshire Council,http://data.ordnancesurvey.co.uk/id/7000000000025623,Childrens & Education,Gas,3101,15/03/2019,5643799,304.38,REVENUE,Corona Energy Retail 4 Ltd,,COR0300R
North Lincolnshire Council,http://data.ordnancesurvey.co.uk/id/7000000000025623,Childrens & Education,Gas,3101,15/03/2019,5643832,370.82,REVENUE,Corona Energy Retail 4 Ltd,,COR0300R
North Lincolnshire Council,http://data.ordnancesurvey.co.uk/id/7000000000025623,Childrens & Education,Gas,3101,15/03/2019,5643842,215.76,REVENUE,Corona Energy Retail 4 Ltd,,COR0300R
North Lincolnshire Council,http://data.ordnancesurvey.co.uk/id/7000000000025623,Childrens & Education,Gas,3101,15/03/2019,5643843,436.71,REVENUE,Corona Energy Retail 4 Ltd,,COR0300R
North Lincolnshire Council,http://data.ordnancesurvey.co.uk/id/7000000000025623,Childrens & Education,Gas,3101,15/03/2019,5643846,375.12,REVENUE,Corona Energy Retail 4 Ltd,,COR0300R
North Lincolnshire Council,http://data.ordnancesurvey.co.uk/id/7000000000025623,Childrens & Education,Gas,3101,19/04/2019,5655550,475.75,REVENUE,Corona Energy Retail 4 Ltd,,COR0300R
North Lincolnshire Council,http://data.ordnancesurvey.co.uk/id/7000000000025623,Childrens & Education,Gas,3101,19/04/2019,5655570,42.22,REVENUE,Corona Energy Retail 4 Ltd,,COR0300R
North Lincolnshire Council,http://data.ordnancesurvey.co.uk/id/7000000000025623,Childrens & Education,Gas,3101,19/04/2019,5655570,63.32,REVENUE,Corona Energy Retail 4 Ltd,,COR0300R
North Lincolnshire Council,http://data.ordnancesurvey.co.uk/id/7000000000025623,Childrens & Education,Gas,3101,19/04/2019,5655587,825.21,REVENUE,Corona Energy Retail 4 Ltd,,COR0300R
North Lincolnshire Council,http://data.ordnancesurvey.co.uk/id/7000000000025623,Childrens & Education,Gas,3101,19/04/2019,5655603,216.60,REVENUE,Corona Energy Retail 4 Ltd,,COR0300R
North Lincolnshire Council,http://data.ordnancesurvey.co.uk/id/7000000000025623,Childrens & Education,Gas,3101,19/04/2019,5655647,385.55,REVENUE,Corona Energy Retail 4 Ltd,,COR0300R
North Lincolnshire Council,http://data.ordnancesurvey.co.uk/id/7000000000025623,Childrens & Education,Gas,3101,19/04/2019,5655650,286.03,REVENUE,Corona Energy Retail 4 Ltd,,COR0300R
North Lincolnshire Council,http://data.ordnancesurvey.co.uk/id/7000000000025623,Corporate And Democratic Core,Gas,3101,15/03/2019,5643786,"2,127.48",REVENUE,Corona Energy Retail 4 Ltd,,COR0300R
North Lincolnshire Council,http://data.ordnancesurvey.co.uk/id/7000000000025623,Corporate And Democratic Core,Gas,3101,15/03/2019,5643809,782.05,REVENUE,Corona Energy Retail 4 Ltd,,COR0300R
North Lincolnshire Council,http://data.ordnancesurvey.co.uk/id/7000000000025623,Corporate And Democratic Core,Gas,3101,15/03/2019,5643831,377.87,REVENUE,Corona Energy Retail 4 Ltd,,COR0300R
North Lincolnshire Council,http://data.ordnancesurvey.co.uk/id/7000000000025623,Corporate And Democratic Core,Gas,3101,15/03/2019,5643834,"1,808.76",REVENUE,Corona Energy Retail 4 Ltd,,COR0300R
North Lincolnshire Council,http://data.ordnancesurvey.co.uk/id/7000000000025623,Corporate And Democratic Core,Gas,3101,15/03/2019,5643841,"2,670.00",REVENUE,Corona Energy Retail 4 Ltd,,COR0300R
North Lincolnshire Council,http://data.ordnancesurvey.co.uk/id/7000000000025623,Corporate And Democratic Core,Gas,3101,19/04/2019,5655590,"1,958.47",REVENUE,Corona Energy Retail 4 Ltd,,COR0300R
North Lincolnshire Council,http://data.ordnancesurvey.co.uk/id/7000000000025623,Corporate And Democratic Core,Gas,3101,19/04/2019,5655613,561.43,REVENUE,Corona Energy Retail 4 Ltd,,COR0300R
North Lincolnshire Council,http://data.ordnancesurvey.co.uk/id/7000000000025623,Corporate And Democratic Core,Gas,3101,19/04/2019,5655635,320.90,REVENUE,Corona Energy Retail 4 Ltd,,COR0300R
North Lincolnshire Council,http://data.ordnancesurvey.co.uk/id/7000000000025623,Corporate And Democratic Core,Gas,3101,19/04/2019,5655638,"1,769.55",REVENUE,Corona Energy Retail 4 Ltd,,COR0300R
North Lincolnshire Council,http://data.ordnancesurvey.co.uk/id/7000000000025623,Corporate And Democratic Core,Gas,3101,19/04/2019,5655645,"1,946.45",REVENUE,Corona Energy Retail 4 Ltd,,COR0300R
North Lincolnshire Council,http://data.ordnancesurvey.co.uk/id/7000000000025623,Culture & Related Services,Gas,3101,15/03/2019,5643599,279.71,REVENUE,Corona Energy Retail 4 Ltd,,COR0300R
North Lincolnshire Council,http://data.ordnancesurvey.co.uk/id/7000000000025623,Culture & Related Services,Gas,3101,15/03/2019,5643619,489.07,REVENUE,Corona Energy Retail 4 Ltd,,COR0300R
North Lincolnshire Council,http://data.ordnancesurvey.co.uk/id/7000000000025623,Culture & Related Services,Gas,3101,15/03/2019,5643633,640.67,REVENUE,Corona Energy Retail 4 Ltd,,COR0300R
North Lincolnshire Council,http://data.ordnancesurvey.co.uk/id/7000000000025623,Culture & Related Services,Gas,3101,15/03/2019,5643688,"1,619.65",REVENUE,Corona Energy Retail 4 Ltd,,COR0300R
North Lincolnshire Council,http://data.ordnancesurvey.co.uk/id/7000000000025623,Culture & Related Services,Gas,3101,15/03/2019,5643777,"2,887.47",REVENUE,Corona Energy Retail 4 Ltd,,COR0300R
North Lincolnshire Council,http://data.ordnancesurvey.co.uk/id/7000000000025623,Culture & Related Services,Gas,3101,15/03/2019,5643779,"1,438.82",REVENUE,Corona Energy Retail 4 Ltd,,COR0300R
North Lincolnshire Council,http://data.ordnancesurvey.co.uk/id/7000000000025623,Culture & Related Services,Gas,3101,15/03/2019,5643810,464.17,REVENUE,Corona Energy Retail 4 Ltd,,COR0300R
North Lincolnshire Council,http://data.ordnancesurvey.co.uk/id/7000000000025623,Culture & Related Services,Gas,3101,15/03/2019,5643821,764.03,REVENUE,Corona Energy Retail 4 Ltd,,COR0300R
North Lincolnshire Council,http://data.ordnancesurvey.co.uk/id/7000000000025623,Culture & Related Services,Gas,3101,15/03/2019,5643822,"1,000.67",REVENUE,Corona Energy Retail 4 Ltd,,COR0300R
North Lincolnshire Council,http://data.ordnancesurvey.co.uk/id/7000000000025623,Culture & Related Services,Gas,3101,15/03/2019,5643825,343.66,REVENUE,Corona Energy Retail 4 Ltd,,COR0300R
North Lincolnshire Council,http://data.ordnancesurvey.co.uk/id/7000000000025623,Culture & Related Services,Gas,3101,15/03/2019,5643838,"2,808.33",REVENUE,Corona Energy Retail 4 Ltd,,COR0300R
North Lincolnshire Council,http://data.ordnancesurvey.co.uk/id/7000000000025623,Culture & Related Services,Gas,3101,15/03/2019,5643847,332.02,REVENUE,Corona Energy Retail 4 Ltd,,COR0300R
North Lincolnshire Council,http://data.ordnancesurvey.co.uk/id/7000000000025623,Culture & Related Services,Gas,3101,19/04/2019,5655533,245.99,REVENUE,Corona Energy Retail 4 Ltd,,COR0300R
North Lincolnshire Council,http://data.ordnancesurvey.co.uk/id/7000000000025623,Culture & Related Services,Gas,3101,19/04/2019,5655553,429.60,REVENUE,Corona Energy Retail 4 Ltd,,COR0300R
North Lincolnshire Council,http://data.ordnancesurvey.co.uk/id/7000000000025623,Culture & Related Services,Gas,3101,19/04/2019,5655557,357.57,REVENUE,Corona Energy Retail 4 Ltd,,COR0300R
North Lincolnshire Council,http://data.ordnancesurvey.co.uk/id/7000000000025623,Culture & Related Services,Gas,3101,19/04/2019,5655562,"1,908.23",REVENUE,Corona Energy Retail 4 Ltd,,COR0300R
North Lincolnshire Council,http://data.ordnancesurvey.co.uk/id/7000000000025623,Culture & Related Services,Gas,3101,19/04/2019,5655581,"2,166.96",REVENUE,Corona Energy Retail 4 Ltd,,COR0300R
North Lincolnshire Council,http://data.ordnancesurvey.co.uk/id/7000000000025623,Culture & Related Services,Gas,3101,19/04/2019,5655583,"1,134.12",REVENUE,Corona Energy Retail 4 Ltd,,COR0300R
North Lincolnshire Council,http://data.ordnancesurvey.co.uk/id/7000000000025623,Culture & Related Services,Gas,3101,19/04/2019,5655614,406.75,REVENUE,Corona Energy Retail 4 Ltd,,COR0300R
North Lincolnshire Council,http://data.ordnancesurvey.co.uk/id/7000000000025623,Culture & Related Services,Gas,3101,19/04/2019,5655625,559.28,REVENUE,Corona Energy Retail 4 Ltd,,COR0300R
North Lincolnshire Council,http://data.ordnancesurvey.co.uk/id/7000000000025623,Culture & Related Services,Gas,3101,19/04/2019,5655626,740.32,REVENUE,Corona Energy Retail 4 Ltd,,COR0300R
North Lincolnshire Council,http://data.ordnancesurvey.co.uk/id/7000000000025623,Culture & Related Services,Gas,3101,19/04/2019,5655629,255.14,REVENUE,Corona Energy Retail 4 Ltd,,COR0300R
North Lincolnshire Council,http://data.ordnancesurvey.co.uk/id/7000000000025623,Culture & Related Services,Gas,3101,19/04/2019,5655642,"2,418.43",REVENUE,Corona Energy Retail 4 Ltd,,COR0300R
North Lincolnshire Council,http://data.ordnancesurvey.co.uk/id/7000000000025623,Culture & Related Services,Gas,3101,19/04/2019,5655651,265.23,REVENUE,Corona Energy Retail 4 Ltd,,COR0300R
North Lincolnshire Council,http://data.ordnancesurvey.co.uk/id/7000000000025623,Environmental & Regulatory Svs,Gas,3101,15/03/2019,5643813,268.96,REVENUE,Corona Energy Retail 4 Ltd,,COR0300R
North Lincolnshire Council,http://data.ordnancesurvey.co.uk/id/7000000000025623,Environmental & Regulatory Svs,Gas,3101,15/03/2019,5643827,581.33,REVENUE,Corona Energy Retail 4 Ltd,,COR0300R
North Lincolnshire Council,http://data.ordnancesurvey.co.uk/id/7000000000025623,Environmental & Regulatory Svs,Gas,3101,15/03/2019,5643839,511.89,REVENUE,Corona Energy Retail 4 Ltd,,COR0300R
North Lincolnshire Council,http://data.ordnancesurvey.co.uk/id/7000000000025623,Environmental & Regulatory Svs,Gas,3101,15/03/2019,5643840,"1,976.10",REVENUE,Corona Energy Retail 4 Ltd,,COR0300R
North Lincolnshire Council,http://data.ordnancesurvey.co.uk/id/7000000000025623,Environmental & Regulatory Svs,Gas,3101,19/04/2019,5655617,210.25,REVENUE,Corona Energy Retail 4 Ltd,,COR0300R
North Lincolnshire Council,http://data.ordnancesurvey.co.uk/id/7000000000025623,Environmental & Regulatory Svs,Gas,3101,19/04/2019,5655631,433.82,REVENUE,Corona Energy Retail 4 Ltd,,COR0300R
North Lincolnshire Council,http://data.ordnancesurvey.co.uk/id/7000000000025623,Environmental & Regulatory Svs,Gas,3101,19/04/2019,5655643,424.11,REVENUE,Corona Energy Retail 4 Ltd,,COR0300R
North Lincolnshire Council,http://data.ordnancesurvey.co.uk/id/7000000000025623,Environmental & Regulatory Svs,Gas,3101,19/04/2019,5655644,"1,786.34",REVENUE,Corona Energy Retail 4 Ltd,,COR0300R
North Lincolnshire Council,http://data.ordnancesurvey.co.uk/id/7000000000025623,Fin&Inv I&E,Gas,3101,15/03/2019,5643620,"3,021.55",REVENUE,Corona Energy Retail 4 Ltd,,COR0300R
North Lincolnshire Council,http://data.ordnancesurvey.co.uk/id/7000000000025623,Fin&Inv I&E,Gas,3101,15/03/2019,5643621,"-3,474.05",REVENUE,Corona Energy Retail 4 Ltd,,COR0300R
North Lincolnshire Council,http://data.ordnancesurvey.co.uk/id/7000000000025623,Fin&Inv I&E,Gas,3101,15/03/2019,5643624,297.89,REVENUE,Corona Energy Retail 4 Ltd,,COR0300R
North Lincolnshire Council,http://data.ordnancesurvey.co.uk/id/7000000000025623,Fin&Inv I&E,Gas,3101,15/03/2019,5643625,-344.97,REVENUE,Corona Energy Retail 4 Ltd,,COR0300R
North Lincolnshire Council,http://data.ordnancesurvey.co.uk/id/7000000000025623,Fin&Inv I&E,Gas,3101,15/03/2019,5643627,261.38,REVENUE,Corona Energy Retail 4 Ltd,,COR0300R
North Lincolnshire Council,http://data.ordnancesurvey.co.uk/id/7000000000025623,Fin&Inv I&E,Gas,3101,15/03/2019,5643628,-300.13,REVENUE,Corona Energy Retail 4 Ltd,,COR0300R
North Lincolnshire Council,http://data.ordnancesurvey.co.uk/id/7000000000025623,Fin&Inv I&E,Gas,3101,15/03/2019,5643631,-220.69,REVENUE,Corona Energy Retail 4 Ltd,,COR0300R
North Lincolnshire Council,http://data.ordnancesurvey.co.uk/id/7000000000025623,Fin&Inv I&E,Gas,3101,15/03/2019,5643636,-412.89,REVENUE,Corona Energy Retail 4 Ltd,,COR0300R
North Lincolnshire Council,http://data.ordnancesurvey.co.uk/id/7000000000025623,Fin&Inv I&E,Gas,3101,15/03/2019,5643643,-240.99,REVENUE,Corona Energy Retail 4 Ltd,,COR0300R
North Lincolnshire Council,http://data.ordnancesurvey.co.uk/id/7000000000025623,Fin&Inv I&E,Gas,3101,15/03/2019,5643644,986.29,REVENUE,Corona Energy Retail 4 Ltd,,COR0300R
North Lincolnshire Council,http://data.ordnancesurvey.co.uk/id/7000000000025623,Fin&Inv I&E,Gas,3101,15/03/2019,5643666,492.93,REVENUE,Corona Energy Retail 4 Ltd,,COR0300R
North Lincolnshire Council,http://data.ordnancesurvey.co.uk/id/7000000000025623,Fin&Inv I&E,Gas,3101,15/03/2019,5643667,-226.97,REVENUE,Corona Energy Retail 4 Ltd,,COR0300R
North Lincolnshire Council,http://data.ordnancesurvey.co.uk/id/7000000000025623,Fin&Inv I&E,Gas,3101,15/03/2019,5643674,-327.46,REVENUE,Corona Energy Retail 4 Ltd,,COR0300R
North Lincolnshire Council,http://data.ordnancesurvey.co.uk/id/7000000000025623,Fin&Inv I&E,Gas,3101,15/03/2019,5643676,213.16,REVENUE,Corona Energy Retail 4 Ltd,,COR0300R
North Lincolnshire Council,http://data.ordnancesurvey.co.uk/id/7000000000025623,Fin&Inv I&E,Gas,3101,15/03/2019,5643678,-245.14,REVENUE,Corona Energy Retail 4 Ltd,,COR0300R
North Lincolnshire Council,http://data.ordnancesurvey.co.uk/id/7000000000025623,Fin&Inv I&E,Gas,3101,15/03/2019,5643680,-229.50,REVENUE,Corona Energy Retail 4 Ltd,,COR0300R
North Lincolnshire Council,http://data.ordnancesurvey.co.uk/id/7000000000025623,Fin&Inv I&E,Gas,3101,15/03/2019,5643682,-460.42,REVENUE,Corona Energy Retail 4 Ltd,,COR0300R
North Lincolnshire Council,http://data.ordnancesurvey.co.uk/id/7000000000025623,Fin&Inv I&E,Gas,3101,15/03/2019,5643684,243.96,REVENUE,Corona Energy Retail 4 Ltd,,COR0300R
North Lincolnshire Council,http://data.ordnancesurvey.co.uk/id/7000000000025623,Fin&Inv I&E,Gas,3101,15/03/2019,5643685,-287.93,REVENUE,Corona Energy Retail 4 Ltd,,COR0300R
North Lincolnshire Council,http://data.ordnancesurvey.co.uk/id/7000000000025623,Fin&Inv I&E,Gas,3101,15/03/2019,5643687,-268.96,REVENUE,Corona Energy Retail 4 Ltd,,COR0300R
North Lincolnshire Council,http://data.ordnancesurvey.co.uk/id/7000000000025623,Fin&Inv I&E,Gas,3101,15/03/2019,5643690,-554.59,REVENUE,Corona Energy Retail 4 Ltd,,COR0300R
North Lincolnshire Council,http://data.ordnancesurvey.co.uk/id/7000000000025623,Fin&Inv I&E,Gas,3101,15/03/2019,5643692,255.20,REVENUE,Corona Energy Retail 4 Ltd,,COR0300R
North Lincolnshire Council,http://data.ordnancesurvey.co.uk/id/7000000000025623,Fin&Inv I&E,Gas,3101,15/03/2019,5643693,-302.42,REVENUE,Corona Energy Retail 4 Ltd,,COR0300R
North Lincolnshire Council,http://data.ordnancesurvey.co.uk/id/7000000000025623,Fin&Inv I&E,Gas,3101,15/03/2019,5643695,-282.38,REVENUE,Corona Energy Retail 4 Ltd,,COR0300R
North Lincolnshire Council,http://data.ordnancesurvey.co.uk/id/7000000000025623,Fin&Inv I&E,Gas,3101,15/03/2019,5643698,-583.05,REVENUE,Corona Energy Retail 4 Ltd,,COR0300R
North Lincolnshire Council,http://data.ordnancesurvey.co.uk/id/7000000000025623,Fin&Inv I&E,Gas,3101,15/03/2019,5643699,286.13,REVENUE,Corona Energy Retail 4 Ltd,,COR0300R
North Lincolnshire Council,http://data.ordnancesurvey.co.uk/id/7000000000025623,Fin&Inv I&E,Gas,3101,15/03/2019,5643701,-342.48,REVENUE,Corona Energy Retail 4 Ltd,,COR0300R
North Lincolnshire Council,http://data.ordnancesurvey.co.uk/id/7000000000025623,Fin&Inv I&E,Gas,3101,15/03/2019,5643703,-319.98,REVENUE,Corona Energy Retail 4 Ltd,,COR0300R
North Lincolnshire Council,http://data.ordnancesurvey.co.uk/id/7000000000025623,Fin&Inv I&E,Gas,3101,15/03/2019,5643705,-660.48,REVENUE,Corona Energy Retail 4 Ltd,,COR0300R
North Lincolnshire Council,http://data.ordnancesurvey.co.uk/id/7000000000025623,Fin&Inv I&E,Gas,3101,15/03/2019,5643706,264.81,REVENUE,Corona Energy Retail 4 Ltd,,COR0300R
North Lincolnshire Council,http://data.ordnancesurvey.co.uk/id/7000000000025623,Fin&Inv I&E,Gas,3101,15/03/2019,5643707,-314.29,REVENUE,Corona Energy Retail 4 Ltd,,COR0300R
North Lincolnshire Council,http://data.ordnancesurvey.co.uk/id/7000000000025623,Fin&Inv I&E,Gas,3101,15/03/2019,5643709,-293.16,REVENUE,Corona Energy Retail 4 Ltd,,COR0300R
North Lincolnshire Council,http://data.ordnancesurvey.co.uk/id/7000000000025623,Fin&Inv I&E,Gas,3101,15/03/2019,5643713,-605.63,REVENUE,Corona Energy Retail 4 Ltd,,COR0300R
North Lincolnshire Council,http://data.ordnancesurvey.co.uk/id/7000000000025623,Fin&Inv I&E,Gas,3101,15/03/2019,5643714,231.85,REVENUE,Corona Energy Retail 4 Ltd,,COR0300R
North Lincolnshire Council,http://data.ordnancesurvey.co.uk/id/7000000000025623,Fin&Inv I&E,Gas,3101,15/03/2019,5643715,-270.45,REVENUE,Corona Energy Retail 4 Ltd,,COR0300R
North Lincolnshire Council,http://data.ordnancesurvey.co.uk/id/7000000000025623,Fin&Inv I&E,Gas,3101,15/03/2019,5643717,-252.21,REVENUE,Corona Energy Retail 4 Ltd,,COR0300R
North Lincolnshire Council,http://data.ordnancesurvey.co.uk/id/7000000000025623,Fin&Inv I&E,Gas,3101,15/03/2019,5643719,-520.07,REVENUE,Corona Energy Retail 4 Ltd,,COR0300R
North Lincolnshire Council,http://data.ordnancesurvey.co.uk/id/7000000000025623,Fin&Inv I&E,Gas,3101,15/03/2019,5643726,-367.12,REVENUE,Corona Energy Retail 4 Ltd,,COR0300R
North Lincolnshire Council,http://data.ordnancesurvey.co.uk/id/7000000000025623,Fin&Inv I&E,Gas,3101,15/03/2019,5643732,-218.00,REVENUE,Corona Energy Retail 4 Ltd,,COR0300R
North Lincolnshire Council,http://data.ordnancesurvey.co.uk/id/7000000000025623,Fin&Inv I&E,Gas,3101,15/03/2019,5643756,342.25,REVENUE,Corona Energy Retail 4 Ltd,,COR0300R
North Lincolnshire Council,http://data.ordnancesurvey.co.uk/id/7000000000025623,Fin&Inv I&E,Gas,3101,15/03/2019,5643758,-292.77,REVENUE,Corona Energy Retail 4 Ltd,,COR0300R
North Lincolnshire Council,http://data.ordnancesurvey.co.uk/id/7000000000025623,Fin&Inv I&E,Gas,3101,15/03/2019,5643765,-385.02,REVENUE,Corona Energy Retail 4 Ltd,,COR0300R
North Lincolnshire Council,http://data.ordnancesurvey.co.uk/id/7000000000025623,Fin&Inv I&E,Gas,3101,15/03/2019,5643771,513.39,REVENUE,Corona Energy Retail 4 Ltd,,COR0300R
North Lincolnshire Council,http://data.ordnancesurvey.co.uk/id/7000000000025623,Fin&Inv I&E,Gas,3101,15/03/2019,5643780,353.64,REVENUE,Corona Energy Retail 4 Ltd,,COR0300R
North Lincolnshire Council,http://data.ordnancesurvey.co.uk/id/7000000000025623,Fin&Inv I&E,Gas,3101,15/03/2019,5643817,"2,202.76",REVENUE,Corona Energy Retail 4 Ltd,,COR0300R
North Lincolnshire Council,http://data.ordnancesurvey.co.uk/id/7000000000025623,Fin&Inv I&E,Gas,3101,15/03/2019,5643823,"1,023.77",REVENUE,Corona Energy Retail 4 Ltd,,COR0300R
North Lincolnshire Council,http://data.ordnancesurvey.co.uk/id/7000000000025623,Fin&Inv I&E,Gas,3101,15/03/2019,5643835,"1,418.97",REVENUE,Corona Energy Retail 4 Ltd,,COR0300R
North Lincolnshire Council,http://data.ordnancesurvey.co.uk/id/7000000000025623,Fin&Inv I&E,Gas,3101,15/03/2019,5643836,244.92,REVENUE,Corona Energy Retail 4 Ltd,,COR0300R
North Lincolnshire Council,http://data.ordnancesurvey.co.uk/id/7000000000025623,Fin&Inv I&E,Gas,3101,19/04/2019,5655558,910.85,REVENUE,Corona Energy Retail 4 Ltd,,COR0300R
North Lincolnshire Council,http://data.ordnancesurvey.co.uk/id/7000000000025623,Fin&Inv I&E,Gas,3101,19/04/2019,5655560,326.07,REVENUE,Corona Energy Retail 4 Ltd,,COR0300R
North Lincolnshire Council,http://data.ordnancesurvey.co.uk/id/7000000000025623,Fin&Inv I&E,Gas,3101,19/04/2019,5655569,300.68,REVENUE,Corona Energy Retail 4 Ltd,,COR0300R
North Lincolnshire Council,http://data.ordnancesurvey.co.uk/id/7000000000025623,Fin&Inv I&E,Gas,3101,19/04/2019,5655575,272.03,REVENUE,Corona Energy Retail 4 Ltd,,COR0300R
North Lincolnshire Council,http://data.ordnancesurvey.co.uk/id/7000000000025623,Fin&Inv I&E,Gas,3101,19/04/2019,5655584,348.36,REVENUE,Corona Energy Retail 4 Ltd,,COR0300R
North Lincolnshire Council,http://data.ordnancesurvey.co.uk/id/7000000000025623,Fin&Inv I&E,Gas,3101,19/04/2019,5655621,"1,467.35",REVENUE,Corona Energy Retail 4 Ltd,,COR0300R
North Lincolnshire Council,http://data.ordnancesurvey.co.uk/id/7000000000025623,Fin&Inv I&E,Gas,3101,19/04/2019,5655627,898.67,REVENUE,Corona Energy Retail 4 Ltd,,COR0300R
North Lincolnshire Council,http://data.ordnancesurvey.co.uk/id/7000000000025623,Fin&Inv I&E,Gas,3101,19/04/2019,5655639,215.95,REVENUE,Corona Energy Retail 4 Ltd,,COR0300R
North Lincolnshire Council,http://data.ordnancesurvey.co.uk/id/7000000000025623,Fin&Inv I&E,Gas,3101,19/04/2019,5655640,"1,124.65",REVENUE,Corona Energy Retail 4 Ltd,,COR0300R
North Lincolnshire Council,http://data.ordnancesurvey.co.uk/id/7000000000025623,Adult Social Care,Equipment Purchase,5001,20/03/2019,5646231,255.00,REVENUE,Countrywide Healthcare Supplies Ltd,3209242,COU0041U
North Lincolnshire Council,http://data.ordnancesurvey.co.uk/id/7000000000025623,Adult Social Care,Payments To Private Orgs,6002,08/03/2019,5644916,"60,122.51",REVENUE,Creative Support,,CRE0144E
North Lincolnshire Council,http://data.ordnancesurvey.co.uk/id/7000000000025623,Adult Social Care,Payments To Private Orgs,6002,08/03/2019,5644916,"3,271.52",REVENUE,Creative Support,,CRE0144E
North Lincolnshire Council,http://data.ordnancesurvey.co.uk/id/7000000000025623,Adult Social Care,Payments To Private Orgs,6002,06/03/2019,5644932,"1,351.76",REVENUE,Creative Support Ltd,,ISF0013F
North Lincolnshire Council,http://data.ordnancesurvey.co.uk/id/7000000000025623,Adult Social Care,Payments To Private Orgs,6002,06/03/2019,5644932,"22,332.52",REVENUE,Creative Support Ltd,,ISF0013F
North Lincolnshire Council,http://data.ordnancesurvey.co.uk/id/7000000000025623,Housing Services,Payments To Private Orgs,6002,22/03/2019,5653280,"10,184.00",REVENUE,Creative Support Ltd,,CRE0034E
North Lincolnshire Council,http://data.ordnancesurvey.co.uk/id/7000000000025623,Housing Services,Payments To Private Orgs,6002,22/03/2019,5653281,"149,177.25",REVENUE,Creative Support Ltd,,CRE0034E
North Lincolnshire Council,http://data.ordnancesurvey.co.uk/id/7000000000025623,Environmental & Regulatory Svs,Other Premises Costs,3390,27/03/2019,5655831,365.00,REVENUE,Crestwood Environmental Ltd,06544898,CRE0250E
North Lincolnshire Council,http://data.ordnancesurvey.co.uk/id/7000000000025623,Environmental & Regulatory Svs,Materials,5004,08/03/2019,5647365,-691.20,REVENUE,Cromwell Polythene Ltd,2230104,CRO0048O
North Lincolnshire Council,http://data.ordnancesurvey.co.uk/id/7000000000025623,Childrens & Education,Home To School Transport,4201,25/03/2019,5650154,420.00,REVENUE,Crosby Cabz,,CRO0242O
North Lincolnshire Council,http://data.ordnancesurvey.co.uk/id/7000000000025623,Childrens & Education,Home To School Transport,4201,25/03/2019,5650155,810.00,REVENUE,Crosby Cabz,,CRO0242O
North Lincolnshire Council,http://data.ordnancesurvey.co.uk/id/7000000000025623,Childrens & Education,Home To School Transport,4201,25/03/2019,5650156,"1,080.00",REVENUE,Crosby Cabz,,CRO0242O
North Lincolnshire Council,http://data.ordnancesurvey.co.uk/id/7000000000025623,Childrens & Education,Home To School Transport,4201,25/03/2019,5650157,882.00,REVENUE,Crosby Cabz,,CRO0242O
North Lincolnshire Council,http://data.ordnancesurvey.co.uk/id/7000000000025623,Childrens & Education,Home To School Transport,4201,25/03/2019,5650158,577.50,REVENUE,Crosby Cabz,,CRO0242O
North Lincolnshire Council,http://data.ordnancesurvey.co.uk/id/7000000000025623,Childrens & Education,Home To School Transport,4201,25/03/2019,5650159,504.00,REVENUE,Crosby Cabz,,CRO0242O
North Lincolnshire Council,http://data.ordnancesurvey.co.uk/id/7000000000025623,Childrens & Education,Home To School Transport,4201,25/03/2019,5650160,"1,785.00",REVENUE,Crosby Cabz,,CRO0242O
North Lincolnshire Council,http://data.ordnancesurvey.co.uk/id/7000000000025623,Childrens & Education,Home To School Transport,4201,25/03/2019,5650162,304.30,REVENUE,Crosby Cabz,,CRO0242O
North Lincolnshire Council,http://data.ordnancesurvey.co.uk/id/7000000000025623,Childrens & Education,Home To School Transport,4201,25/03/2019,5650163,840.00,REVENUE,Crosby Cabz,,CRO0242O
North Lincolnshire Council,http://data.ordnancesurvey.co.uk/id/7000000000025623,Childrens & Education,Home To School Transport,4201,25/03/2019,5650164,"1,890.00",REVENUE,Crosby Cabz,,CRO0242O
North Lincolnshire Council,http://data.ordnancesurvey.co.uk/id/7000000000025623,Childrens & Education,Home To School Transport,4201,25/03/2019,5650165,840.00,REVENUE,Crosby Cabz,,CRO0242O
North Lincolnshire Council,http://data.ordnancesurvey.co.uk/id/7000000000025623,Childrens & Education,Home To School Transport,4201,25/03/2019,5650166,"2,215.00",REVENUE,Crosby Cabz,,CRO0242O
North Lincolnshire Council,http://data.ordnancesurvey.co.uk/id/7000000000025623,Childrens & Education,Home To School Transport,4201,25/03/2019,5650167,420.00,REVENUE,Crosby Cabz,,CRO0242O
North Lincolnshire Council,http://data.ordnancesurvey.co.uk/id/7000000000025623,Childrens & Education,Home To School Transport,4201,25/03/2019,5650168,"1,239.00",REVENUE,Crosby Cabz,,CRO0242O
North Lincolnshire Council,http://data.ordnancesurvey.co.uk/id/7000000000025623,Childrens & Education,Home To School Transport,4201,25/03/2019,5650169,"1,680.00",REVENUE,Crosby Cabz,,CRO0242O
North Lincolnshire Council,http://data.ordnancesurvey.co.uk/id/7000000000025623,Childrens & Education,Rents,3201,27/03/2019,5653969,396.00,REVENUE,Crosby Together,,CRO0159O
North Lincolnshire Council,http://data.ordnancesurvey.co.uk/id/7000000000025623,Childrens & Education,Other Premises Costs,3390,13/03/2019,5646211,822.23,REVENUE,Crowle County Primary School Fund,,CRO0118O
North Lincolnshire Council,http://data.ordnancesurvey.co.uk/id/7000000000025623,Culture & Related Services,Other Supplies & Services,5799,20/03/2019,5649220,436.26,REVENUE,Crowle Peatland Railway,,CRO0463O
North Lincolnshire Council,http://data.ordnancesurvey.co.uk/id/7000000000025623,Culture & Related Services,Other Supplies & Services,5799,20/03/2019,5649225,458.13,REVENUE,Crowle Peatland Railway,,CRO0463O
North Lincolnshire Council,http://data.ordnancesurvey.co.uk/id/7000000000025623,Culture & Related Services,Other Supplies & Services,5799,22/03/2019,5652180,968.30,REVENUE,Crowle Peatland Railway,,CRO0463O
North Lincolnshire Council,http://data.ordnancesurvey.co.uk/id/7000000000025623,Culture & Related Services,Other Supplies & Services,5799,27/03/2019,5655819,"1,036.22",REVENUE,Crowle Peatland Railway,,CRO0463O
North Lincolnshire Council,http://data.ordnancesurvey.co.uk/id/7000000000025623,Childrens & Education,Payments To Private Orgs,6002,08/03/2019,5645229,"1,890.00",REVENUE,Crowle Primary Academy,,CRO0346O
North Lincolnshire Council,http://data.ordnancesurvey.co.uk/id/7000000000025623,Childrens & Education,Payments To Private Orgs,6002,08/03/2019,5645234,"23,568.30",REVENUE,Crowle Primary Academy,,CRO0346O
North Lincolnshire Council,http://data.ordnancesurvey.co.uk/id/7000000000025623,Housing Services,Fees & Charges Income,9002,06/03/2019,5640811,-700.00,REVENUE,Crown Building Services,,HIN0039N
North Lincolnshire Council,http://data.ordnancesurvey.co.uk/id/7000000000025623,Housing Services,Fees & Charges Income,9002,06/03/2019,5640813,-700.00,REVENUE,Crown Building Services,,HIN0039N
North Lincolnshire Council,http://data.ordnancesurvey.co.uk/id/7000000000025623,Housing Services,Fees & Charges Income,9002,08/03/2019,5643536,-700.00,REVENUE,Crown Building Services,,HIN0039N
North Lincolnshire Council,http://data.ordnancesurvey.co.uk/id/7000000000025623,Housing Services,Fees & Charges Income,9002,08/03/2019,5643544,-700.00,REVENUE,Crown Building Services,,HIN0039N
North Lincolnshire Council,http://data.ordnancesurvey.co.uk/id/7000000000025623,Housing Services,Fees & Charges Income,9002,20/03/2019,5649268,-700.00,REVENUE,Crown Building Services,,HIN0039N
North Lincolnshire Council,http://data.ordnancesurvey.co.uk/id/7000000000025623,Housing Services,Fees & Charges Income,9002,20/03/2019,5651097,-700.00,REVENUE,Crown Building Services,,HIN0039N
North Lincolnshire Council,http://data.ordnancesurvey.co.uk/id/7000000000025623,Housing Services,Fees & Charges Income,9002,20/03/2019,5651810,-700.00,REVENUE,Crown Building Services,,HIN0039N
North Lincolnshire Council,http://data.ordnancesurvey.co.uk/id/7000000000025623,Childrens & Education,Payments To Private Orgs,6002,18/04/2019,5652531,"8,400.00",REVENUE,Cyc Huntington School,,HUN0023N
North Lincolnshire Council,http://data.ordnancesurvey.co.uk/id/7000000000025623,Support Servs Capital,It Equipment,A098,13/03/2019,5646601,"11,300.00",CAPITAL,Daisy Communications Ltd,4145329,DAI0009I
North Lincolnshire Council,http://data.ordnancesurvey.co.uk/id/7000000000025623,Childrens & Education,Payments To Private Orgs,6002,13/03/2019,5645535,467.50,REVENUE,Dandi'S Diner Ltd T/A Dandi'S,,DAN0200N
North Lincolnshire Council,http://data.ordnancesurvey.co.uk/id/7000000000025623,Childrens & Education,Payments To Private Orgs,6002,15/03/2019,5645540,485.00,REVENUE,Dandi'S Diner Ltd T/A Dandi'S,,DAN0200N
North Lincolnshire Council,http://data.ordnancesurvey.co.uk/id/7000000000025623,Childrens & Education,Payments To Private Orgs,6002,15/03/2019,5645543,475.00,REVENUE,Dandi'S Diner Ltd T/A Dandi'S,,DAN0200N
North Lincolnshire Council,http://data.ordnancesurvey.co.uk/id/7000000000025623,Childrens & Education,Payments To Private Orgs,6002,20/03/2019,5649530,529.70,REVENUE,Dandi'S Diner Ltd T/A Dandi'S,,DAN0200N
North Lincolnshire Council,http://data.ordnancesurvey.co.uk/id/7000000000025623,Fin&Inv I&E,Materials,5004,27/03/2019,5656330,"2,728.97",REVENUE,Dan Page Accident Repairs,,PAG0044G
North Lincolnshire Council,http://data.ordnancesurvey.co.uk/id/7000000000025623,Fin&Inv I&E,Materials,5004,27/03/2019,5656331,817.95,REVENUE,Dan Page Accident Repairs,,PAG0044G
North Lincolnshire Council,http://data.ordnancesurvey.co.uk/id/7000000000025623,Fin&Inv I&E,Materials,5004,07/04/2019,5650935,836.87,REVENUE,Dan Page Accident Repairs,,PAG0044G
North Lincolnshire Council,http://data.ordnancesurvey.co.uk/id/7000000000025623,Environmental & Regulatory Svs,Other Professional Fees,5829,27/03/2019,5648900,"1,525.00",REVENUE,Davies & Co (Environmental) Ltd,,DAV0235V
North Lincolnshire Council,http://data.ordnancesurvey.co.uk/id/7000000000025623,Childrens & Education,Equipment Purchase,5001,15/03/2019,5641077,265.96,REVENUE,Davies Sports,1135827,DAV0195V
North Lincolnshire Council,http://data.ordnancesurvey.co.uk/id/7000000000025623,Public Health,Payments To Private Orgs,6002,27/03/2019,5647401,372.36,REVENUE,Day Lewis Pharmacy Plc,,DAY0132Y
North Lincolnshire Council,http://data.ordnancesurvey.co.uk/id/7000000000025623,Childrens & Education,Payments To Private Orgs,6002,08/03/2019,5645206,630.00,REVENUE,De Aston School,,DEA0011A
North Lincolnshire Council,http://data.ordnancesurvey.co.uk/id/7000000000025623,Childrens & Education,Payments To Private Orgs,6002,08/03/2019,5645230,630.00,REVENUE,De Aston School,,DEA0011A
North Lincolnshire Council,http://data.ordnancesurvey.co.uk/id/7000000000025623,Culture & Related Services,Other Professional Fees,5829,06/03/2019,5641133,"2,314.07",REVENUE,Debit Finance Collections Plc,3422873,DEB0189B
North Lincolnshire Council,http://data.ordnancesurvey.co.uk/id/7000000000025623,Culture & Related Services,Other Professional Fees,5829,29/03/2019,5651075,"2,368.72",REVENUE,Debit Finance Collections Plc,3422873,DEB0189B
North Lincolnshire Council,http://data.ordnancesurvey.co.uk/id/7000000000025623,Childrens & Education,Repair & Maintenance Costs,3000,13/03/2019,5647588,"3,688.00",REVENUE,Delta Security Systems Ltd,06373017,DEL0004L
North Lincolnshire Council,http://data.ordnancesurvey.co.uk/id/7000000000025623,Corporate And Democratic Core,Other Supplies & Services,5799,20/03/2019,5640377,"1,753.00",REVENUE,Delta Security Systems Ltd,06373017,DEL0004L
North Lincolnshire Council,http://data.ordnancesurvey.co.uk/id/7000000000025623,Corporate And Democratic Core,Repair & Maintenance Costs,3000,13/03/2019,5647590,391.00,REVENUE,Delta Security Systems Ltd,06373017,DEL0004L
North Lincolnshire Council,http://data.ordnancesurvey.co.uk/id/7000000000025623,Childrens & Education,Payments To Private Orgs,6002,06/03/2019,5643035,"5,087.27",REVENUE,Demeter House (England) Ltd,5774107,DEM0021M
North Lincolnshire Council,http://data.ordnancesurvey.co.uk/id/7000000000025623,Culture & Related Services,Equipment Purchase,5001,29/03/2019,5654859,"1,970.00",REVENUE,Denby Catering Equipment Ltd,4399476,DEN0060N
North Lincolnshire Council,http://data.ordnancesurvey.co.uk/id/7000000000025623,Childrens & Education,Gen Office Exp (Incl Postage),5603,08/03/2019,5644084,424.00,REVENUE,Desktop Publications Ltd,4614225,DES0002S
North Lincolnshire Council,http://data.ordnancesurvey.co.uk/id/7000000000025623,Culture & Related Services,Other Professional Fees,5829,15/03/2019,5648462,"1,140.00",REVENUE,D. Foulds,,FOU0052U
North Lincolnshire Council,http://data.ordnancesurvey.co.uk/id/7000000000025623,Culture & Related Services,Other Professional Fees,5829,15/03/2019,5648463,855.00,REVENUE,D. Foulds,,FOU0052U
North Lincolnshire Council,http://data.ordnancesurvey.co.uk/id/7000000000025623,Corporate And Democratic Core,Equipment Purchase,5001,13/03/2019,5647638,821.60,REVENUE,Digital Id,,DIG0142G
North Lincolnshire Council,http://data.ordnancesurvey.co.uk/id/7000000000025623,Fin&Inv I&E,Electricity,3102,01/03/2019,5641149,"1,496.56",REVENUE,Directions Dance Cic,,DIR0120R
North Lincolnshire Council,http://data.ordnancesurvey.co.uk/id/7000000000025623,Environmental & Regulatory Svs,Payments To Private Orgs,6002,20/03/2019,5651348,616.00,REVENUE,Disclosure & Barring Service,,CRI0032I
North Lincolnshire Council,http://data.ordnancesurvey.co.uk/id/7000000000025623,Fin&Inv I&E,Grounds Maintenance,3010,08/03/2019,5644126,375.00,REVENUE,Djm Consultancy,4539626,DJM0002M
North Lincolnshire Council,http://data.ordnancesurvey.co.uk/id/7000000000025623,Childrens & Education,Payments To Private Orgs,6002,06/03/2019,5643055,"1,279.80",REVENUE,D Johns,,JOH0680H
North Lincolnshire Council,http://data.ordnancesurvey.co.uk/id/7000000000025623,Childrens & Education,Home To School Transport,4201,20/03/2019,5650131,"5,458.70",REVENUE,D J Taxis Scunthorpe,,DJT0001T
North Lincolnshire Council,http://data.ordnancesurvey.co.uk/id/7000000000025623,Childrens & Education,Home To School Transport,4201,20/03/2019,5650148,"7,833.40",REVENUE,D J Taxis Scunthorpe,,DJT0001T
North Lincolnshire Council,http://data.ordnancesurvey.co.uk/id/7000000000025623,Childrens & Education,Payments To Private Orgs,6002,08/03/2019,5645522,630.00,REVENUE,Dn Colleges Group,,NOR0007R
North Lincolnshire Council,http://data.ordnancesurvey.co.uk/id/7000000000025623,Childrens & Education,Payments To Private Orgs,6002,22/03/2019,5641235,"50,000.00",REVENUE,Dn Colleges Group,,NOR0007R
North Lincolnshire Council,http://data.ordnancesurvey.co.uk/id/7000000000025623,Corporate And Democratic Core,Course Fees/Training,2002,20/03/2019,5648062,"2,190.00",REVENUE,Docte Consulting Ltd,,DOC0003C
North Lincolnshire Council,http://data.ordnancesurvey.co.uk/id/7000000000025623,Housing Services,Fees & Charges Income,9002,15/03/2019,5647684,"-2,500.00",REVENUE,Dolphin Mobility East Midlands Ltd,4175896,DOL0006L
North Lincolnshire Council,http://data.ordnancesurvey.co.uk/id/7000000000025623,Housing Services,Fees & Charges Income,9002,15/03/2019,5647696,"-1,994.72",REVENUE,Dolphin Mobility East Midlands Ltd,4175896,DOL0006L
North Lincolnshire Council,http://data.ordnancesurvey.co.uk/id/7000000000025623,Housing Services,Fees & Charges Income,9002,20/03/2019,5649214,"-1,534.21",REVENUE,Dolphin Mobility East Midlands Ltd,4175896,DOL0006L
North Lincolnshire Council,http://data.ordnancesurvey.co.uk/id/7000000000025623,Adult Social Care,Payments To Health Providers,6019,29/03/2019,5656468,833.00,REVENUE,Doncaster & Bassetlaw Hospitals Nhs Trust,,DON0232N
North Lincolnshire Council,http://data.ordnancesurvey.co.uk/id/7000000000025623,Corporate And Democratic Core,Gen Office Exp (Incl Postage),5603,14/04/2019,5653712,268.94,REVENUE,Doncaster Metropolitan B C,,DON0001N
North Lincolnshire Council,http://data.ordnancesurvey.co.uk/id/7000000000025623,Corporate And Democratic Core,Gen Office Exp (Incl Postage),5603,17/04/2019,5651923,891.73,REVENUE,Doncaster Metropolitan B C,,DON0001N
North Lincolnshire Council,http://data.ordnancesurvey.co.uk/id/7000000000025623,Corporate And Democratic Core,Gen Office Exp (Incl Postage),5603,17/04/2019,5653985,304.00,REVENUE,Doncaster Metropolitan B C,,DON0001N
North Lincolnshire Council,http://data.ordnancesurvey.co.uk/id/7000000000025623,Corporate And Democratic Core,Gen Office Exp (Incl Postage),5603,20/04/2019,5654136,210.89,REVENUE,Doncaster Metropolitan B C,,DON0001N
North Lincolnshire Council,http://data.ordnancesurvey.co.uk/id/7000000000025623,Corporate And Democratic Core,Gen Office Exp (Incl Postage),5603,20/04/2019,5654137,231.05,REVENUE,Doncaster Metropolitan B C,,DON0001N
North Lincolnshire Council,http://data.ordnancesurvey.co.uk/id/7000000000025623,Childrens & Education,Payments To Private Orgs,6002,06/03/2019,5643560,"13,216.92",REVENUE,Do-Re-Mi Nursery,,WIN0044N
North Lincolnshire Council,http://data.ordnancesurvey.co.uk/id/7000000000025623,Corporate And Democratic Core,Repair & Maintenance Costs,3000,15/03/2019,5648431,240.00,REVENUE,Drainmaster (Uk) Ltd,3802760,DRA0028A
North Lincolnshire Council,http://data.ordnancesurvey.co.uk/id/7000000000025623,Adult Social Care,Payments To Health Providers,6019,22/03/2019,5653689,488.08,REVENUE,Dr A Whitaker & Partners,,WHI0114I
North Lincolnshire Council,http://data.ordnancesurvey.co.uk/id/7000000000025623,Public Health,Payments To Health Providers,6019,22/03/2019,5653689,400.00,REVENUE,Dr A Whitaker & Partners,,WHI0114I
North Lincolnshire Council,http://data.ordnancesurvey.co.uk/id/7000000000025623,Fin&Inv I&E,Materials,5004,22/03/2019,5650825,360.00,REVENUE,Draytons Auto Centre,,DRA0300A
North Lincolnshire Council,http://data.ordnancesurvey.co.uk/id/7000000000025623,Adult Social Care,Other Professional Fees,5829,13/03/2019,5646257,728.00,REVENUE,Dr Graham Hayes,,HAY0027Y
North Lincolnshire Council,http://data.ordnancesurvey.co.uk/id/7000000000025623,Adult Social Care,Other Supplies & Services,5799,22/03/2019,5641265,308.00,REVENUE,Dr Graham Hayes,,HAY0027Y
North Lincolnshire Council,http://data.ordnancesurvey.co.uk/id/7000000000025623,Adult Social Care Capital,Other Costs,A085,20/04/2019,5654849,"1,902.00",CAPITAL,Drive Devilbiss Healthcare Limited,4301005,DRI0008I
North Lincolnshire Council,http://data.ordnancesurvey.co.uk/id/7000000000025623,Adult Social Care,Payments To Health Providers,6019,27/03/2019,5651046,504.77,REVENUE,Dr M J Dwyer & Partners,,DWY0001Y
North Lincolnshire Council,http://data.ordnancesurvey.co.uk/id/7000000000025623,Public Health,Payments To Health Providers,6019,27/03/2019,5651046,120.00,REVENUE,Dr M J Dwyer & Partners,,DWY0001Y
North Lincolnshire Council,http://data.ordnancesurvey.co.uk/id/7000000000025623,Culture & Related Services,Other Supplies & Services,5799,08/03/2019,5644124,780.00,REVENUE,D Roberts,,ROB0139B
North Lincolnshire Council,http://data.ordnancesurvey.co.uk/id/7000000000025623,Culture & Related Services,Other Supplies & Services,5799,08/03/2019,5644129,600.00,REVENUE,D Roberts,,ROB0139B
North Lincolnshire Council,http://data.ordnancesurvey.co.uk/id/7000000000025623,Environmental & Regulatory Svs,Other Professional Fees,5829,20/03/2019,5649177,"2,115.00",REVENUE,Dr T Mahmood Anwar,,MAH0003H
North Lincolnshire Council,http://data.ordnancesurvey.co.uk/id/7000000000025623,Childrens & Education,Payments To Private Orgs,6002,13/03/2019,5647248,321.70,REVENUE,Dwp,,DEP0130P
North Lincolnshire Council,http://data.ordnancesurvey.co.uk/id/7000000000025623,Culture & Related Services,Other Supplies & Services,5799,20/03/2019,5642799,"4,037.63",REVENUE,E A Littlewood,,LIT0008T
North Lincolnshire Council,http://data.ordnancesurvey.co.uk/id/7000000000025623,Fin&Inv I&E,Other Professional Fees,5829,06/03/2019,5642340,"4,415.16",REVENUE,Easters & Son Commercial Services Ltd,,EAS0590S
North Lincolnshire Council,http://data.ordnancesurvey.co.uk/id/7000000000025623,Childrens & Education,Client Transport Costs,6092,13/03/2019,5647711,731.00,REVENUE,East Hull Cars Ltd,5777873,EAS0093S
North Lincolnshire Council,http://data.ordnancesurvey.co.uk/id/7000000000025623,Childrens & Education,Client Transport Costs,6092,13/03/2019,5647712,855.00,REVENUE,East Hull Cars Ltd,5777873,EAS0093S
North Lincolnshire Council,http://data.ordnancesurvey.co.uk/id/7000000000025623,Childrens & Education,Client Transport Costs,6092,13/03/2019,5647713,"1,690.00",REVENUE,East Hull Cars Ltd,5777873,EAS0093S
North Lincolnshire Council,http://data.ordnancesurvey.co.uk/id/7000000000025623,Childrens & Education,Payments To Private Orgs,6002,08/03/2019,5645220,630.00,REVENUE,East Riding Of Yorkshire Council,,EAS0126S
North Lincolnshire Council,http://data.ordnancesurvey.co.uk/id/7000000000025623,Childrens & Education,Payments To Private Orgs,6002,08/03/2019,5645561,630.00,REVENUE,East Riding Of Yorkshire Council,,EAS0126S
North Lincolnshire Council,http://data.ordnancesurvey.co.uk/id/7000000000025623,Childrens & Education,Retirement Additional Costs,2007,15/03/2019,5648611,736.14,REVENUE,East Riding Of Yorkshire Council,,EAS0126S
North Lincolnshire Council,http://data.ordnancesurvey.co.uk/id/7000000000025623,Corporate And Democratic Core,Other Supplies & Services,5799,27/03/2019,5653941,"1,500.00",REVENUE,East Riding Of Yorkshire Council,,EAS0126S
North Lincolnshire Council,http://data.ordnancesurvey.co.uk/id/7000000000025623,Environmental & Regulatory Svs,Retirement Additional Costs,2007,15/03/2019,5648609,"1,044.98",REVENUE,East Riding Of Yorkshire Council,,EAS0126S
North Lincolnshire Council,http://data.ordnancesurvey.co.uk/id/7000000000025623,Environmental & Regulatory Svs,Retirement Additional Costs,2007,15/03/2019,5648617,"27,528.39",REVENUE,East Riding Of Yorkshire Council,,EAS0126S
North Lincolnshire Council,http://data.ordnancesurvey.co.uk/id/7000000000025623,Environmental & Regulatory Svs,Retirement Additional Costs,2007,15/03/2019,5648620,"33,629.02",REVENUE,East Riding Of Yorkshire Council,,EAS0126S
North Lincolnshire Council,http://data.ordnancesurvey.co.uk/id/7000000000025623,Non Distributed Costs,Retirement Additional Costs,2007,27/03/2019,5655509,"160,300.00",REVENUE,East Riding Pension Fund,,EAS0381S
North Lincolnshire Council,http://data.ordnancesurvey.co.uk/id/7000000000025623,Non Distributed Costs,Retirement Additional Costs,2007,27/03/2019,5655511,"-25,000.00",REVENUE,East Riding Pension Fund,,EAS0381S
North Lincolnshire Council,http://data.ordnancesurvey.co.uk/id/7000000000025623,Childrens & Education,Home To School Transport,4201,15/03/2019,5648447,"5,883.48",REVENUE,East Yorkshire Motor Services Ltd,216628,EAS0120S
North Lincolnshire Council,http://data.ordnancesurvey.co.uk/id/7000000000025623,Highways & Transport,Concessionary Fares,6010,15/03/2019,5645864,"4,500.00",REVENUE,East Yorkshire Motor Services Ltd,216628,EAS0120S
North Lincolnshire Council,http://data.ordnancesurvey.co.uk/id/7000000000025623,Highways & Transport,Vehicle Hire,4101,20/03/2019,5650827,"1,900.08",REVENUE,Econ Engineering Limited,,ECO0008O
North Lincolnshire Council,http://data.ordnancesurvey.co.uk/id/7000000000025623,Highways & Transport,Vehicle Hire,4101,29/03/2019,5657420,"2,103.66",REVENUE,Econ Engineering Limited,,ECO0008O
North Lincolnshire Council,http://data.ordnancesurvey.co.uk/id/7000000000025623,Adult Social Care,Pay - Agency,0131,08/03/2019,5641251,"1,088.00",REVENUE,Eden Brown Synergy,3643845,EDE0130E
North Lincolnshire Council,http://data.ordnancesurvey.co.uk/id/7000000000025623,Adult Social Care,Pay - Agency,0131,08/03/2019,5641254,"1,184.00",REVENUE,Eden Brown Synergy,3643845,EDE0130E
North Lincolnshire Council,http://data.ordnancesurvey.co.uk/id/7000000000025623,Adult Social Care,Pay - Agency,0131,08/03/2019,5641256,702.00,REVENUE,Eden Brown Synergy,3643845,EDE0130E
North Lincolnshire Council,http://data.ordnancesurvey.co.uk/id/7000000000025623,Adult Social Care,Pay - Agency,0131,08/03/2019,5641258,"1,443.00",REVENUE,Eden Brown Synergy,3643845,EDE0130E
North Lincolnshire Council,http://data.ordnancesurvey.co.uk/id/7000000000025623,Adult Social Care,Pay - Agency,0131,13/03/2019,5647488,"1,410.00",REVENUE,Eden Brown Synergy,3643845,EDE0130E
North Lincolnshire Council,http://data.ordnancesurvey.co.uk/id/7000000000025623,Adult Social Care,Pay - Agency,0131,15/03/2019,5646444,"1,170.00",REVENUE,Eden Brown Synergy,3643845,EDE0130E
North Lincolnshire Council,http://data.ordnancesurvey.co.uk/id/7000000000025623,Adult Social Care,Pay - Agency,0131,15/03/2019,5646447,"1,088.00",REVENUE,Eden Brown Synergy,3643845,EDE0130E
North Lincolnshire Council,http://data.ordnancesurvey.co.uk/id/7000000000025623,Adult Social Care,Pay - Agency,0131,15/03/2019,5646448,"1,184.00",REVENUE,Eden Brown Synergy,3643845,EDE0130E
North Lincolnshire Council,http://data.ordnancesurvey.co.uk/id/7000000000025623,Adult Social Care,Pay - Agency,0131,15/03/2019,5646450,877.50,REVENUE,Eden Brown Synergy,3643845,EDE0130E
North Lincolnshire Council,http://data.ordnancesurvey.co.uk/id/7000000000025623,Adult Social Care,Pay - Agency,0131,15/03/2019,5647490,"1,081.00",REVENUE,Eden Brown Synergy,3643845,EDE0130E
North Lincolnshire Council,http://data.ordnancesurvey.co.uk/id/7000000000025623,Adult Social Care,Pay - Agency,0131,22/03/2019,5649567,"1,170.00",REVENUE,Eden Brown Synergy,3643845,EDE0130E
North Lincolnshire Council,http://data.ordnancesurvey.co.uk/id/7000000000025623,Adult Social Care,Pay - Agency,0131,22/03/2019,5649573,"1,120.00",REVENUE,Eden Brown Synergy,3643845,EDE0130E
North Lincolnshire Council,http://data.ordnancesurvey.co.uk/id/7000000000025623,Adult Social Care,Pay - Agency,0131,22/03/2019,5649576,"1,170.00",REVENUE,Eden Brown Synergy,3643845,EDE0130E
North Lincolnshire Council,http://data.ordnancesurvey.co.uk/id/7000000000025623,Adult Social Care,Pay - Agency,0131,22/03/2019,5649580,"1,088.00",REVENUE,Eden Brown Synergy,3643845,EDE0130E
North Lincolnshire Council,http://data.ordnancesurvey.co.uk/id/7000000000025623,Adult Social Care,Pay - Agency,0131,22/03/2019,5651948,"1,008.00",REVENUE,Eden Brown Synergy,3643845,EDE0130E
North Lincolnshire Council,http://data.ordnancesurvey.co.uk/id/7000000000025623,Adult Social Care,Pay - Agency,0131,29/03/2019,5653728,"1,443.00",REVENUE,Eden Brown Synergy,3643845,EDE0130E
North Lincolnshire Council,http://data.ordnancesurvey.co.uk/id/7000000000025623,Adult Social Care,Pay - Agency,0131,29/03/2019,5653735,"1,184.00",REVENUE,Eden Brown Synergy,3643845,EDE0130E
North Lincolnshire Council,http://data.ordnancesurvey.co.uk/id/7000000000025623,Adult Social Care,Pay - Agency,0131,29/03/2019,5653742,"1,170.00",REVENUE,Eden Brown Synergy,3643845,EDE0130E
North Lincolnshire Council,http://data.ordnancesurvey.co.uk/id/7000000000025623,Culture & Related Services,Provisions,5201,15/03/2019,5641037,335.92,REVENUE,Eden Farm Hulleys Ltd,,EDE0050E
North Lincolnshire Council,http://data.ordnancesurvey.co.uk/id/7000000000025623,Culture & Related Services,Provisions,5201,22/03/2019,5643855,264.37,REVENUE,Eden Farm Hulleys Ltd,,EDE0050E
North Lincolnshire Council,http://data.ordnancesurvey.co.uk/id/7000000000025623,Culture & Related Services,Provisions,5201,06/04/2019,5647334,237.87,REVENUE,Eden Farm Hulleys Ltd,,EDE0050E
North Lincolnshire Council,http://data.ordnancesurvey.co.uk/id/7000000000025623,Adult Social Care,Equipment Maint.& Repair,5003,18/04/2019,5653882,300.17,REVENUE,Eden Mobility Ltd,,EDE0015E
North Lincolnshire Council,http://data.ordnancesurvey.co.uk/id/7000000000025623,Adult Social Care,Equipment Maint.& Repair,5003,18/04/2019,5653883,329.20,REVENUE,Eden Mobility Ltd,,EDE0015E
North Lincolnshire Council,http://data.ordnancesurvey.co.uk/id/7000000000025623,Adult Social Care,Equipment Maint.& Repair,5003,20/04/2019,5653894,510.17,REVENUE,Eden Mobility Ltd,,EDE0015E
North Lincolnshire Council,http://data.ordnancesurvey.co.uk/id/7000000000025623,Corporate And Democratic Core,It Hardware -Purchase,5050,22/03/2019,5646552,"15,883.00",REVENUE,Eden Telecom Ltd,,EDE0145E
North Lincolnshire Council,http://data.ordnancesurvey.co.uk/id/7000000000025623,Corporate And Democratic Core,It Hardware -Purchase,5050,12/04/2019,5649631,252.00,REVENUE,Eden Telecom Ltd,,EDE0145E
North Lincolnshire Council,http://data.ordnancesurvey.co.uk/id/7000000000025623,Corporate And Democratic Core,Equipment Purchase,5001,06/03/2019,5641233,"1,849.85",REVENUE,Education And I.T. Limited,05784075,EDU0078U
North Lincolnshire Council,http://data.ordnancesurvey.co.uk/id/7000000000025623,Corporate And Democratic Core,Other Supplies & Services,5799,22/03/2019,5641236,"1,020.00",REVENUE,Education And I.T. Limited,05784075,EDU0078U
North Lincolnshire Council,http://data.ordnancesurvey.co.uk/id/7000000000025623,Planning Services,Other Supplies & Services,5799,29/03/2019,5646245,"1,477.00",REVENUE,E H Advertising Ltd,,EHA0003A
North Lincolnshire Council,http://data.ordnancesurvey.co.uk/id/7000000000025623,Public Health,"Clothing, Uniforms & Laundry",5301,18/04/2019,5653949,234.50,REVENUE,E H Advertising Ltd,,EHA0003A
North Lincolnshire Council,http://data.ordnancesurvey.co.uk/id/7000000000025623,Childrens & Education,Home To School Transport,4201,20/03/2019,5650149,345.00,REVENUE,Ej'S Cars Ltd,,EJC0001C
North Lincolnshire Council,http://data.ordnancesurvey.co.uk/id/7000000000025623,Childrens & Education,Home To School Transport,4201,27/03/2019,5650150,561.00,REVENUE,Ej'S Cars Ltd,,EJC0001C
North Lincolnshire Council,http://data.ordnancesurvey.co.uk/id/7000000000025623,Highways & Transport,Equipment Hire/Rent,5002,06/03/2019,5642747,"1,800.00",REVENUE,Elev8,5902099,ELE0071E
North Lincolnshire Council,http://data.ordnancesurvey.co.uk/id/7000000000025623,Highways & Transport,Equipment Hire/Rent,5002,06/03/2019,5642762,"3,060.66",REVENUE,Elev8,5902099,ELE0071E
North Lincolnshire Council,http://data.ordnancesurvey.co.uk/id/7000000000025623,Highways & Transport,Equipment Hire/Rent,5002,06/03/2019,5642765,"2,760.00",REVENUE,Elev8,5902099,ELE0071E
North Lincolnshire Council,http://data.ordnancesurvey.co.uk/id/7000000000025623,Highways & Transport,Equipment Hire/Rent,5002,08/03/2019,5643233,"2,640.00",REVENUE,Elev8,5902099,ELE0071E
North Lincolnshire Council,http://data.ordnancesurvey.co.uk/id/7000000000025623,Highways & Transport,Equipment Hire/Rent,5002,08/03/2019,5643586,"2,640.00",REVENUE,Elev8,5902099,ELE0071E
North Lincolnshire Council,http://data.ordnancesurvey.co.uk/id/7000000000025623,Highways & Transport,Equipment Hire/Rent,5002,27/03/2019,5629280,900.00,REVENUE,Elev8,5902099,ELE0071E
North Lincolnshire Council,http://data.ordnancesurvey.co.uk/id/7000000000025623,Highways & Transport,Equipment Hire/Rent,5002,27/03/2019,5642750,900.00,REVENUE,Elev8,5902099,ELE0071E
North Lincolnshire Council,http://data.ordnancesurvey.co.uk/id/7000000000025623,Highways & Transport,Equipment Hire/Rent,5002,13/04/2019,5642760,600.00,REVENUE,Elev8,5902099,ELE0071E
North Lincolnshire Council,http://data.ordnancesurvey.co.uk/id/7000000000025623,Highways & Transport,Fees & Charges Income,9002,06/03/2019,5642747,0,REVENUE,Elev8,5902099,ELE0071E
North Lincolnshire Council,http://data.ordnancesurvey.co.uk/id/7000000000025623,Highways & Transport,Fees & Charges Income,9002,06/03/2019,5642762,0,REVENUE,Elev8,5902099,ELE0071E
North Lincolnshire Council,http://data.ordnancesurvey.co.uk/id/7000000000025623,Highways & Transport,Fees & Charges Income,9002,06/03/2019,5642765,0,REVENUE,Elev8,5902099,ELE0071E
North Lincolnshire Council,http://data.ordnancesurvey.co.uk/id/7000000000025623,Highways & Transport,Fees & Charges Income,9002,08/03/2019,5643233,0,REVENUE,Elev8,5902099,ELE0071E
North Lincolnshire Council,http://data.ordnancesurvey.co.uk/id/7000000000025623,Highways & Transport,Fees & Charges Income,9002,08/03/2019,5643586,0,REVENUE,Elev8,5902099,ELE0071E
North Lincolnshire Council,http://data.ordnancesurvey.co.uk/id/7000000000025623,Highways & Transport,Fees & Charges Income,9002,27/03/2019,5629280,0,REVENUE,Elev8,5902099,ELE0071E
North Lincolnshire Council,http://data.ordnancesurvey.co.uk/id/7000000000025623,Highways & Transport,Fees & Charges Income,9002,27/03/2019,5642750,0,REVENUE,Elev8,5902099,ELE0071E
North Lincolnshire Council,http://data.ordnancesurvey.co.uk/id/7000000000025623,Highways & Transport,Fees & Charges Income,9002,13/04/2019,5642760,0,REVENUE,Elev8,5902099,ELE0071E
North Lincolnshire Council,http://data.ordnancesurvey.co.uk/id/7000000000025623,Adult Social Care,It Software-Maintenance,5053,14/04/2019,5653126,"3,249.00",REVENUE,Elisian Limited,,MIC0023C
North Lincolnshire Council,http://data.ordnancesurvey.co.uk/id/7000000000025623,Childrens & Education,Client Related Costs,5534,13/03/2019,5645854,301.58,REVENUE,Elite Care Solutions,,ELI0077I
North Lincolnshire Council,http://data.ordnancesurvey.co.uk/id/7000000000025623,Adult Social Care,Payments To Private Orgs,6002,06/03/2019,5644928,"9,223.68",REVENUE,Elite Care Solutions Ltd,,ISF0009F
North Lincolnshire Council,http://data.ordnancesurvey.co.uk/id/7000000000025623,Adult Social Care,Payments To Private Orgs,6002,06/03/2019,5644928,"4,415.20",REVENUE,Elite Care Solutions Ltd,,ISF0009F
North Lincolnshire Council,http://data.ordnancesurvey.co.uk/id/7000000000025623,Environmental & Regulatory Svs,Payments To Private Orgs,6002,27/03/2019,5655786,550.00,REVENUE,Ellgia Scunthorpe,860123,BEL0170L
North Lincolnshire Council,http://data.ordnancesurvey.co.uk/id/7000000000025623,Environmental & Regulatory Svs,Payments To Private Orgs,6002,27/03/2019,5655787,"15,435.33",REVENUE,Ellgia Scunthorpe,860123,BEL0170L
North Lincolnshire Council,http://data.ordnancesurvey.co.uk/id/7000000000025623,Environmental & Regulatory Svs,Payments To Private Orgs,6002,27/03/2019,5655792,"18,763.84",REVENUE,Ellgia Scunthorpe,860123,BEL0170L
North Lincolnshire Council,http://data.ordnancesurvey.co.uk/id/7000000000025623,Environmental & Regulatory Svs,Payments To Private Orgs,6002,27/03/2019,5655800,751.84,REVENUE,Ellgia Scunthorpe,860123,BEL0170L
North Lincolnshire Council,http://data.ordnancesurvey.co.uk/id/7000000000025623,Corporate And Democratic Core,Materials,5004,22/03/2019,5652099,276.48,REVENUE,Elliott Baxter & Company Ltd,,ELL0237L
North Lincolnshire Council,http://data.ordnancesurvey.co.uk/id/7000000000025623,Culture & Related Services,Cleaning Services & Contracts,3311,08/03/2019,5643858,"1,038.00",REVENUE,Ellis Cleaning Services,,ELL0115L
North Lincolnshire Council,http://data.ordnancesurvey.co.uk/id/7000000000025623,Adult Social Care,Payments To Private Orgs,6002,06/03/2019,5644935,"9,774.60",REVENUE,Emerald Care Services (North Lincs) Ltd,,ISF0026F
North Lincolnshire Council,http://data.ordnancesurvey.co.uk/id/7000000000025623,Adult Social Care,Payments To Private Orgs,6002,08/03/2019,5644918,"33,047.46",REVENUE,Emerald Care Services (North Lincs) Ltd,08136830,EME0032E
North Lincolnshire Council,http://data.ordnancesurvey.co.uk/id/7000000000025623,Childrens & Education,Payments To Private Orgs,6002,06/03/2019,5643033,656.10,REVENUE,Emma C  Cobb,,COB0002B
North Lincolnshire Council,http://data.ordnancesurvey.co.uk/id/7000000000025623,Childrens & Education,Payments To Private Orgs,6002,20/03/2019,5651015,"2,600.00",REVENUE,Emma White,,WHI0170I
North Lincolnshire Council,http://data.ordnancesurvey.co.uk/id/7000000000025623,Culture & Related Services,Heating Fuels,3104,22/03/2019,5646281,"2,236.80",REVENUE,Emo Oil,,EMO0004O
North Lincolnshire Council,http://data.ordnancesurvey.co.uk/id/7000000000025623,Highways & Transport,Other Supplies & Services,5799,22/03/2019,5650092,16.92,REVENUE,Engineering And Welding Supplies,,ENG0067G
North Lincolnshire Council,http://data.ordnancesurvey.co.uk/id/7000000000025623,Highways & Transport,Stock Purchases & Adjustments,5030,22/03/2019,5650092,286.98,REVENUE,Engineering And Welding Supplies,,ENG0067G
North Lincolnshire Council,http://data.ordnancesurvey.co.uk/id/7000000000025623,Public Health,Other Supplies & Services,5799,13/03/2019,5645855,"5,475.00",REVENUE,Envirotech Europe Ltd,SC367372,ENV0168V
North Lincolnshire Council,http://data.ordnancesurvey.co.uk/id/7000000000025623,Public Health,Other Supplies & Services,5799,27/03/2019,5655775,"3,891.38",REVENUE,Enviro Technology Services Plc,,ENV0009V
North Lincolnshire Council,http://data.ordnancesurvey.co.uk/id/7000000000025623,Corporate And Democratic Core,Gas,3101,20/03/2019,5651147,412.50,REVENUE,E.On,,POW0010W
North Lincolnshire Council,http://data.ordnancesurvey.co.uk/id/7000000000025623,Corporate And Democratic Core,Repair & Maintenance Costs,3000,20/03/2019,5651858,240.00,REVENUE,E.On Control Solutions Ltd,,MAT0002T
North Lincolnshire Council,http://data.ordnancesurvey.co.uk/id/7000000000025623,Childrens & Education,Electricity,3102,27/03/2019,5653609,"1,864.10",REVENUE,Epworth Primary Academy,,EPW0006W
North Lincolnshire Council,http://data.ordnancesurvey.co.uk/id/7000000000025623,Childrens & Education,Electricity,3102,12/04/2019,5653675,808.18,REVENUE,Epworth Primary Academy,,EPW0006W
North Lincolnshire Council,http://data.ordnancesurvey.co.uk/id/7000000000025623,Childrens & Education,Payments To Private Orgs,6002,20/03/2019,5645235,"14,477.20",REVENUE,Epworth Primary Academy,,EPW0006W
North Lincolnshire Council,http://data.ordnancesurvey.co.uk/id/7000000000025623,Childrens & Education,Home To School Transport,4201,15/03/2019,5648552,"1,223.25",REVENUE,Epworth Taxis Ltd,8601067,EPW0003W
North Lincolnshire Council,http://data.ordnancesurvey.co.uk/id/7000000000025623,Childrens & Education,Home To School Transport,4201,15/03/2019,5648556,"1,438.50",REVENUE,Epworth Taxis Ltd,8601067,EPW0003W
North Lincolnshire Council,http://data.ordnancesurvey.co.uk/id/7000000000025623,Childrens & Education,Home To School Transport,4201,15/03/2019,5648581,939.75,REVENUE,Epworth Taxis Ltd,8601067,EPW0003W
North Lincolnshire Council,http://data.ordnancesurvey.co.uk/id/7000000000025623,Childrens & Education,Home To School Transport,4201,15/03/2019,5648586,270.00,REVENUE,Epworth Taxis Ltd,8601067,EPW0003W
North Lincolnshire Council,http://data.ordnancesurvey.co.uk/id/7000000000025623,Childrens & Education,Home To School Transport,4201,15/03/2019,5648587,"1,138.20",REVENUE,Epworth Taxis Ltd,8601067,EPW0003W
North Lincolnshire Council,http://data.ordnancesurvey.co.uk/id/7000000000025623,Childrens & Education,Home To School Transport,4201,15/03/2019,5648594,539.50,REVENUE,Epworth Taxis Ltd,8601067,EPW0003W
North Lincolnshire Council,http://data.ordnancesurvey.co.uk/id/7000000000025623,Childrens & Education,Home To School Transport,4201,15/03/2019,5648596,803.25,REVENUE,Epworth Taxis Ltd,8601067,EPW0003W
North Lincolnshire Council,http://data.ordnancesurvey.co.uk/id/7000000000025623,Childrens & Education,Home To School Transport,4201,15/03/2019,5648597,815.50,REVENUE,Epworth Taxis Ltd,8601067,EPW0003W
North Lincolnshire Council,http://data.ordnancesurvey.co.uk/id/7000000000025623,Childrens & Education,Home To School Transport,4201,15/03/2019,5648599,959.00,REVENUE,Epworth Taxis Ltd,8601067,EPW0003W
North Lincolnshire Council,http://data.ordnancesurvey.co.uk/id/7000000000025623,Childrens & Education,Home To School Transport,4201,15/03/2019,5648635,626.50,REVENUE,Epworth Taxis Ltd,8601067,EPW0003W
North Lincolnshire Council,http://data.ordnancesurvey.co.uk/id/7000000000025623,Childrens & Education,Home To School Transport,4201,15/03/2019,5648636,210.00,REVENUE,Epworth Taxis Ltd,8601067,EPW0003W
North Lincolnshire Council,http://data.ordnancesurvey.co.uk/id/7000000000025623,Childrens & Education,Home To School Transport,4201,15/03/2019,5648637,583.65,REVENUE,Epworth Taxis Ltd,8601067,EPW0003W
North Lincolnshire Council,http://data.ordnancesurvey.co.uk/id/7000000000025623,Childrens & Education,Home To School Transport,4201,15/03/2019,5648638,373.50,REVENUE,Epworth Taxis Ltd,8601067,EPW0003W
North Lincolnshire Council,http://data.ordnancesurvey.co.uk/id/7000000000025623,Childrens & Education,Home To School Transport,4201,15/03/2019,5648639,573.75,REVENUE,Epworth Taxis Ltd,8601067,EPW0003W
North Lincolnshire Council,http://data.ordnancesurvey.co.uk/id/7000000000025623,Childrens & Education,Home To School Transport,4201,20/03/2019,5651350,597.00,REVENUE,Epworth Taxis Ltd,8601067,EPW0003W
North Lincolnshire Council,http://data.ordnancesurvey.co.uk/id/7000000000025623,Childrens & Education,Home To School Transport,4201,20/03/2019,5651352,354.00,REVENUE,Epworth Taxis Ltd,8601067,EPW0003W
North Lincolnshire Council,http://data.ordnancesurvey.co.uk/id/7000000000025623,Childrens & Education,Payments To Voluntary Orgs,6001,06/03/2019,5643037,"2,676.98",REVENUE,Epworth Thurlow Pre-School,,EPW0018W
North Lincolnshire Council,http://data.ordnancesurvey.co.uk/id/7000000000025623,Childrens & Education,Payments To Voluntary Orgs,6001,20/03/2019,5651708,759.30,REVENUE,Epworth Thurlow Pre-School,,EPW0018W
North Lincolnshire Council,http://data.ordnancesurvey.co.uk/id/7000000000025623,Culture & Related Services,Payments To Voluntary Orgs,6001,13/03/2019,5645799,730.00,REVENUE,Epworth Town Council,,EPW0007W
North Lincolnshire Council,http://data.ordnancesurvey.co.uk/id/7000000000025623,Adult Social Care,Other Supplies & Services,5799,22/03/2019,5652635,360.00,REVENUE,Epworth War Memorial Field Maint Cttee,,EPW0021W
North Lincolnshire Council,http://data.ordnancesurvey.co.uk/id/7000000000025623,Childrens & Education,Materials,5004,29/03/2019,5646219,377.15,REVENUE,Eryc - Supplies,,EAS0125S
North Lincolnshire Council,http://data.ordnancesurvey.co.uk/id/7000000000025623,Childrens & Education,Materials,5004,14/04/2019,5651790,683.25,REVENUE,Eryc - Supplies,,EAS0125S
North Lincolnshire Council,http://data.ordnancesurvey.co.uk/id/7000000000025623,Culture & Related Services,Equipment Purchase,5001,20/03/2019,5645221,445.08,REVENUE,Eryc - Supplies,,EAS0125S
North Lincolnshire Council,http://data.ordnancesurvey.co.uk/id/7000000000025623,Culture & Related Services,Gen Office Exp (Incl Postage),5603,20/03/2019,5645221,82.26,REVENUE,Eryc - Supplies,,EAS0125S
North Lincolnshire Council,http://data.ordnancesurvey.co.uk/id/7000000000025623,Environmental & Regulatory Svs,Other Supplies & Services,5799,29/03/2019,5650181,294.00,REVENUE,Esri (Uk) Ltd,,LOC0032C
North Lincolnshire Council,http://data.ordnancesurvey.co.uk/id/7000000000025623,Corporate And Democratic Core,It Software-Maintenance,5053,27/03/2019,5649379,607.11,REVENUE,Euclid Limited,,EUC0003C
North Lincolnshire Council,http://data.ordnancesurvey.co.uk/id/7000000000025623,Corporate And Democratic Core,It Software-Maintenance,5053,12/04/2019,5650103,"3,732.96",REVENUE,Euclid Limited,,EUC0003C
North Lincolnshire Council,http://data.ordnancesurvey.co.uk/id/7000000000025623,Corporate And Democratic Core,It Software-Maintenance,5053,12/04/2019,5650104,"2,229.83",REVENUE,Euclid Limited,,EUC0003C
North Lincolnshire Council,http://data.ordnancesurvey.co.uk/id/7000000000025623,Highways & Transport,Stock Purchases & Adjustments,5030,06/04/2019,5647184,305.90,REVENUE,Eurochem (Northern) Ltd,4221160,EUR0234R
North Lincolnshire Council,http://data.ordnancesurvey.co.uk/id/7000000000025623,"Culture,Env,Reg & Planning Cap",External Fees,A083,08/03/2019,5643554,"5,370.00",CAPITAL,Eversheds Sutherland (International) Llp,,EVE0034E
North Lincolnshire Council,http://data.ordnancesurvey.co.uk/id/7000000000025623,Highways & Transport,Other Supplies & Services,5799,22/03/2019,5642832,550.00,REVENUE,Exactrak,,EXA0014A
North Lincolnshire Council,http://data.ordnancesurvey.co.uk/id/7000000000025623,Environmental & Regulatory Svs,Other Vehicle Costs,4005,13/03/2019,5645810,"1,715.00",REVENUE,Exeros Technologies Ltd,,TEC0150C
North Lincolnshire Council,http://data.ordnancesurvey.co.uk/id/7000000000025623,Housing Services,Payments To Private Orgs,6002,01/03/2019,5641153,"5,000.00",REVENUE,Experian Ltd,653331,EXP0005P
North Lincolnshire Council,http://data.ordnancesurvey.co.uk/id/7000000000025623,Adult Social Care,Course Fees/Training,2002,15/03/2019,5641576,850.00,REVENUE,Experience Training Ltd,,EXP0052P
North Lincolnshire Council,http://data.ordnancesurvey.co.uk/id/7000000000025623,Adult Social Care,Course Fees/Training,2002,15/03/2019,5641579,850.00,REVENUE,Experience Training Ltd,,EXP0052P
North Lincolnshire Council,http://data.ordnancesurvey.co.uk/id/7000000000025623,Adult Social Care,Course Fees/Training,2002,15/03/2019,5641581,850.00,REVENUE,Experience Training Ltd,,EXP0052P
North Lincolnshire Council,http://data.ordnancesurvey.co.uk/id/7000000000025623,Adult Social Care,Course Fees/Training,2002,22/03/2019,5641577,"1,700.00",REVENUE,Experience Training Ltd,,EXP0052P
North Lincolnshire Council,http://data.ordnancesurvey.co.uk/id/7000000000025623,Adult Social Care,Course Fees/Training,2002,22/03/2019,5641580,850.00,REVENUE,Experience Training Ltd,,EXP0052P
North Lincolnshire Council,http://data.ordnancesurvey.co.uk/id/7000000000025623,Environmental & Regulatory Svs,Repair & Maintenance Costs,3000,20/03/2019,5648473,"11,775.93",REVENUE,Facultatieve Technologies Ltd,633222,FAC0013C
North Lincolnshire Council,http://data.ordnancesurvey.co.uk/id/7000000000025623,Fin&Inv I&E,Materials,5004,20/03/2019,5650831,"1,685.20",REVENUE,Faun Zoeller (Uk) Ltd,751804,FAU0006U
North Lincolnshire Council,http://data.ordnancesurvey.co.uk/id/7000000000025623,Culture & Related Services,Gen Office Exp (Incl Postage),5603,20/04/2019,5643184,324.00,REVENUE,Fidelity Crm Ltd,,FID0005D
North Lincolnshire Council,http://data.ordnancesurvey.co.uk/id/7000000000025623,Childrens & Education,Payments To Private Orgs,6002,06/03/2019,5643040,"15,345.57",REVENUE,Fieldview Day Nursery,,FIE0045E
North Lincolnshire Council,http://data.ordnancesurvey.co.uk/id/7000000000025623,Childrens & Education,Payments To Private Orgs,6002,08/03/2019,5645231,630.00,REVENUE,Filey Childcare Ltd,,FIL0120L
North Lincolnshire Council,http://data.ordnancesurvey.co.uk/id/7000000000025623,Corporate And Democratic Core,It Software-Maintenance,5053,20/03/2019,5649625,"14,586.00",REVENUE,Firmstep Ltd,,BUS0003S
North Lincolnshire Council,http://data.ordnancesurvey.co.uk/id/7000000000025623,Childrens & Education,Payments To Private Orgs,6002,20/03/2019,5646496,296.00,REVENUE,First Class Tailored Solutions Ltd,07819183,FIR0124R
North Lincolnshire Council,http://data.ordnancesurvey.co.uk/id/7000000000025623,Childrens & Education,Payments To Private Orgs,6002,20/03/2019,5646497,258.00,REVENUE,First Class Tailored Solutions Ltd,07819183,FIR0124R
North Lincolnshire Council,http://data.ordnancesurvey.co.uk/id/7000000000025623,Childrens & Education,Payments To Private Orgs,6002,07/04/2019,5654864,280.00,REVENUE,First Class Tailored Solutions Ltd,07819183,FIR0124R
North Lincolnshire Council,http://data.ordnancesurvey.co.uk/id/7000000000025623,Childrens & Education,Payments To Private Orgs,6002,07/04/2019,5654866,220.00,REVENUE,First Class Tailored Solutions Ltd,07819183,FIR0124R
North Lincolnshire Council,http://data.ordnancesurvey.co.uk/id/7000000000025623,Highways & Transport,Passenger Transport,6011,20/03/2019,5651806,979.68,REVENUE,First South Yorkshire Ltd,2332529,FIR0041R
North Lincolnshire Council,http://data.ordnancesurvey.co.uk/id/7000000000025623,Highways & Transport,Passenger Transport,6011,20/03/2019,5651811,"1,061.32",REVENUE,First South Yorkshire Ltd,2332529,FIR0041R
North Lincolnshire Council,http://data.ordnancesurvey.co.uk/id/7000000000025623,Highways & Transport,Passenger Transport,6011,13/04/2019,5651813,979.68,REVENUE,First South Yorkshire Ltd,2332529,FIR0041R
North Lincolnshire Council,http://data.ordnancesurvey.co.uk/id/7000000000025623,Highways & Transport,Passenger Transport,6011,13/04/2019,5651816,"1,061.32",REVENUE,First South Yorkshire Ltd,2332529,FIR0041R
North Lincolnshire Council,http://data.ordnancesurvey.co.uk/id/7000000000025623,Highways & Transport,Other Supplies & Services,5799,15/03/2019,5647664,"7,148.00",REVENUE,First Step Sports Ltd,,FIR0143R
North Lincolnshire Council,http://data.ordnancesurvey.co.uk/id/7000000000025623,Childrens & Education,Payments To Private Orgs,6002,08/03/2019,5645636,"3,176.56",REVENUE,Five Rivers Child Care Ltd,,FIV0006V
North Lincolnshire Council,http://data.ordnancesurvey.co.uk/id/7000000000025623,Childrens & Education,Payments To Private Orgs,6002,27/03/2019,5645637,"3,516.91",REVENUE,Five Rivers Child Care Ltd,,FIV0006V
North Lincolnshire Council,http://data.ordnancesurvey.co.uk/id/7000000000025623,Fin&Inv I&E,Equipment Hire/Rent,5002,20/03/2019,5650832,368.25,REVENUE,Fleetclean Ltd,01381865,FLE0007E
North Lincolnshire Council,http://data.ordnancesurvey.co.uk/id/7000000000025623,Fin&Inv I&E,Fuel,4001,29/03/2019,5650860,870.00,REVENUE,Fleet Factors Ltd,01231325,FLE0026E
North Lincolnshire Council,http://data.ordnancesurvey.co.uk/id/7000000000025623,Fin&Inv I&E,Materials,5004,06/03/2019,5642988,-210.92,REVENUE,Fleet Factors Ltd,01231325,FLE0026E
North Lincolnshire Council,http://data.ordnancesurvey.co.uk/id/7000000000025623,Fin&Inv I&E,Materials,5004,15/03/2019,5642921,305.42,REVENUE,Fleet Factors Ltd,01231325,FLE0026E
North Lincolnshire Council,http://data.ordnancesurvey.co.uk/id/7000000000025623,Fin&Inv I&E,Materials,5004,15/03/2019,5642922,"1,762.80",REVENUE,Fleet Factors Ltd,01231325,FLE0026E
North Lincolnshire Council,http://data.ordnancesurvey.co.uk/id/7000000000025623,Fin&Inv I&E,Materials,5004,15/03/2019,5642925,423.45,REVENUE,Fleet Factors Ltd,01231325,FLE0026E
North Lincolnshire Council,http://data.ordnancesurvey.co.uk/id/7000000000025623,Fin&Inv I&E,Materials,5004,20/03/2019,5642928,347.85,REVENUE,Fleet Factors Ltd,01231325,FLE0026E
North Lincolnshire Council,http://data.ordnancesurvey.co.uk/id/7000000000025623,Fin&Inv I&E,Materials,5004,20/03/2019,5642929,858.89,REVENUE,Fleet Factors Ltd,01231325,FLE0026E
North Lincolnshire Council,http://data.ordnancesurvey.co.uk/id/7000000000025623,Fin&Inv I&E,Materials,5004,20/03/2019,5642933,371.54,REVENUE,Fleet Factors Ltd,01231325,FLE0026E
North Lincolnshire Council,http://data.ordnancesurvey.co.uk/id/7000000000025623,Fin&Inv I&E,Materials,5004,20/03/2019,5642936,209.45,REVENUE,Fleet Factors Ltd,01231325,FLE0026E
North Lincolnshire Council,http://data.ordnancesurvey.co.uk/id/7000000000025623,Fin&Inv I&E,Materials,5004,20/03/2019,5642944,306.49,REVENUE,Fleet Factors Ltd,01231325,FLE0026E
North Lincolnshire Council,http://data.ordnancesurvey.co.uk/id/7000000000025623,Fin&Inv I&E,Materials,5004,20/03/2019,5642946,349.26,REVENUE,Fleet Factors Ltd,01231325,FLE0026E
North Lincolnshire Council,http://data.ordnancesurvey.co.uk/id/7000000000025623,Fin&Inv I&E,Materials,5004,20/03/2019,5650838,614.14,REVENUE,Fleet Factors Ltd,01231325,FLE0026E
North Lincolnshire Council,http://data.ordnancesurvey.co.uk/id/7000000000025623,Fin&Inv I&E,Materials,5004,20/03/2019,5650842,265.05,REVENUE,Fleet Factors Ltd,01231325,FLE0026E
North Lincolnshire Council,http://data.ordnancesurvey.co.uk/id/7000000000025623,Fin&Inv I&E,Materials,5004,20/03/2019,5650844,495.00,REVENUE,Fleet Factors Ltd,01231325,FLE0026E
North Lincolnshire Council,http://data.ordnancesurvey.co.uk/id/7000000000025623,Fin&Inv I&E,Materials,5004,20/03/2019,5650911,"-1,298.77",REVENUE,Fleet Factors Ltd,01231325,FLE0026E
North Lincolnshire Council,http://data.ordnancesurvey.co.uk/id/7000000000025623,Fin&Inv I&E,Materials,5004,20/03/2019,5650914,-319.07,REVENUE,Fleet Factors Ltd,01231325,FLE0026E
North Lincolnshire Council,http://data.ordnancesurvey.co.uk/id/7000000000025623,Fin&Inv I&E,Materials,5004,22/03/2019,5642959,433.28,REVENUE,Fleet Factors Ltd,01231325,FLE0026E
North Lincolnshire Council,http://data.ordnancesurvey.co.uk/id/7000000000025623,Fin&Inv I&E,Materials,5004,22/03/2019,5642967,407.85,REVENUE,Fleet Factors Ltd,01231325,FLE0026E
North Lincolnshire Council,http://data.ordnancesurvey.co.uk/id/7000000000025623,Fin&Inv I&E,Materials,5004,22/03/2019,5642971,730.77,REVENUE,Fleet Factors Ltd,01231325,FLE0026E
North Lincolnshire Council,http://data.ordnancesurvey.co.uk/id/7000000000025623,Fin&Inv I&E,Materials,5004,22/03/2019,5642973,521.02,REVENUE,Fleet Factors Ltd,01231325,FLE0026E
North Lincolnshire Council,http://data.ordnancesurvey.co.uk/id/7000000000025623,Fin&Inv I&E,Materials,5004,22/03/2019,5642977,220.18,REVENUE,Fleet Factors Ltd,01231325,FLE0026E
North Lincolnshire Council,http://data.ordnancesurvey.co.uk/id/7000000000025623,Fin&Inv I&E,Materials,5004,27/03/2019,5642986,895.00,REVENUE,Fleet Factors Ltd,01231325,FLE0026E
North Lincolnshire Council,http://data.ordnancesurvey.co.uk/id/7000000000025623,Fin&Inv I&E,Materials,5004,27/03/2019,5642987,520.00,REVENUE,Fleet Factors Ltd,01231325,FLE0026E
North Lincolnshire Council,http://data.ordnancesurvey.co.uk/id/7000000000025623,Fin&Inv I&E,Materials,5004,27/03/2019,5650845,"1,269.87",REVENUE,Fleet Factors Ltd,01231325,FLE0026E
North Lincolnshire Council,http://data.ordnancesurvey.co.uk/id/7000000000025623,Fin&Inv I&E,Materials,5004,27/03/2019,5650847,367.36,REVENUE,Fleet Factors Ltd,01231325,FLE0026E
North Lincolnshire Council,http://data.ordnancesurvey.co.uk/id/7000000000025623,Fin&Inv I&E,Materials,5004,29/03/2019,5650850,467.23,REVENUE,Fleet Factors Ltd,01231325,FLE0026E
North Lincolnshire Council,http://data.ordnancesurvey.co.uk/id/7000000000025623,Fin&Inv I&E,Materials,5004,29/03/2019,5650851,242.07,REVENUE,Fleet Factors Ltd,01231325,FLE0026E
North Lincolnshire Council,http://data.ordnancesurvey.co.uk/id/7000000000025623,Fin&Inv I&E,Materials,5004,29/03/2019,5650853,589.07,REVENUE,Fleet Factors Ltd,01231325,FLE0026E
North Lincolnshire Council,http://data.ordnancesurvey.co.uk/id/7000000000025623,Fin&Inv I&E,Materials,5004,29/03/2019,5650854,338.07,REVENUE,Fleet Factors Ltd,01231325,FLE0026E
North Lincolnshire Council,http://data.ordnancesurvey.co.uk/id/7000000000025623,Fin&Inv I&E,Materials,5004,29/03/2019,5650855,219.87,REVENUE,Fleet Factors Ltd,01231325,FLE0026E
North Lincolnshire Council,http://data.ordnancesurvey.co.uk/id/7000000000025623,Fin&Inv I&E,Materials,5004,29/03/2019,5650859,372.18,REVENUE,Fleet Factors Ltd,01231325,FLE0026E
North Lincolnshire Council,http://data.ordnancesurvey.co.uk/id/7000000000025623,Fin&Inv I&E,Materials,5004,06/04/2019,5650881,410.00,REVENUE,Fleet Factors Ltd,01231325,FLE0026E
North Lincolnshire Council,http://data.ordnancesurvey.co.uk/id/7000000000025623,Fin&Inv I&E,Materials,5004,07/04/2019,5650886,572.48,REVENUE,Fleet Factors Ltd,01231325,FLE0026E
North Lincolnshire Council,http://data.ordnancesurvey.co.uk/id/7000000000025623,Fin&Inv I&E,Materials,5004,07/04/2019,5650887,432.25,REVENUE,Fleet Factors Ltd,01231325,FLE0026E
North Lincolnshire Council,http://data.ordnancesurvey.co.uk/id/7000000000025623,Fin&Inv I&E,Materials,5004,07/04/2019,5650888,989.36,REVENUE,Fleet Factors Ltd,01231325,FLE0026E
North Lincolnshire Council,http://data.ordnancesurvey.co.uk/id/7000000000025623,Fin&Inv I&E,Materials,5004,07/04/2019,5650889,744.86,REVENUE,Fleet Factors Ltd,01231325,FLE0026E
North Lincolnshire Council,http://data.ordnancesurvey.co.uk/id/7000000000025623,Fin&Inv I&E,Materials,5004,10/04/2019,5650893,272.06,REVENUE,Fleet Factors Ltd,01231325,FLE0026E
North Lincolnshire Council,http://data.ordnancesurvey.co.uk/id/7000000000025623,Fin&Inv I&E,Materials,5004,10/04/2019,5650894,503.64,REVENUE,Fleet Factors Ltd,01231325,FLE0026E
North Lincolnshire Council,http://data.ordnancesurvey.co.uk/id/7000000000025623,Fin&Inv I&E,Materials,5004,10/04/2019,5650897,497.98,REVENUE,Fleet Factors Ltd,01231325,FLE0026E
North Lincolnshire Council,http://data.ordnancesurvey.co.uk/id/7000000000025623,Fin&Inv I&E,Materials,5004,10/04/2019,5650901,298.57,REVENUE,Fleet Factors Ltd,01231325,FLE0026E
North Lincolnshire Council,http://data.ordnancesurvey.co.uk/id/7000000000025623,Fin&Inv I&E,Materials,5004,13/04/2019,5656247,225.52,REVENUE,Fleet Factors Ltd,01231325,FLE0026E
North Lincolnshire Council,http://data.ordnancesurvey.co.uk/id/7000000000025623,Fin&Inv I&E,Materials,5004,14/04/2019,5656261,220.63,REVENUE,Fleet Factors Ltd,01231325,FLE0026E
North Lincolnshire Council,http://data.ordnancesurvey.co.uk/id/7000000000025623,Fin&Inv I&E,Materials,5004,14/04/2019,5656263,907.98,REVENUE,Fleet Factors Ltd,01231325,FLE0026E
North Lincolnshire Council,http://data.ordnancesurvey.co.uk/id/7000000000025623,Fin&Inv I&E,Materials,5004,14/04/2019,5656272,270.92,REVENUE,Fleet Factors Ltd,01231325,FLE0026E
North Lincolnshire Council,http://data.ordnancesurvey.co.uk/id/7000000000025623,Fin&Inv I&E,Materials,5004,14/04/2019,5656281,238.33,REVENUE,Fleet Factors Ltd,01231325,FLE0026E
North Lincolnshire Council,http://data.ordnancesurvey.co.uk/id/7000000000025623,Fin&Inv I&E,Materials,5004,17/04/2019,5656283,220.79,REVENUE,Fleet Factors Ltd,01231325,FLE0026E
North Lincolnshire Council,http://data.ordnancesurvey.co.uk/id/7000000000025623,Fin&Inv I&E,Materials,5004,17/04/2019,5656285,521.30,REVENUE,Fleet Factors Ltd,01231325,FLE0026E
North Lincolnshire Council,http://data.ordnancesurvey.co.uk/id/7000000000025623,Fin&Inv I&E,Materials,5004,17/04/2019,5656293,432.25,REVENUE,Fleet Factors Ltd,01231325,FLE0026E
North Lincolnshire Council,http://data.ordnancesurvey.co.uk/id/7000000000025623,Fin&Inv I&E,Materials,5004,18/04/2019,5656297,221.35,REVENUE,Fleet Factors Ltd,01231325,FLE0026E
North Lincolnshire Council,http://data.ordnancesurvey.co.uk/id/7000000000025623,Fin&Inv I&E,Materials,5004,18/04/2019,5656298,285.15,REVENUE,Fleet Factors Ltd,01231325,FLE0026E
North Lincolnshire Council,http://data.ordnancesurvey.co.uk/id/7000000000025623,Fin&Inv I&E,Materials,5004,19/04/2019,5656314,209.90,REVENUE,Fleet Factors Ltd,01231325,FLE0026E
North Lincolnshire Council,http://data.ordnancesurvey.co.uk/id/7000000000025623,Fin&Inv I&E,Materials,5004,20/04/2019,5657425,791.80,REVENUE,Fleet Factors Ltd,01231325,FLE0026E
North Lincolnshire Council,http://data.ordnancesurvey.co.uk/id/7000000000025623,Fin&Inv I&E,Materials,5004,20/04/2019,5657427,569.76,REVENUE,Fleet Factors Ltd,01231325,FLE0026E
North Lincolnshire Council,http://data.ordnancesurvey.co.uk/id/7000000000025623,Fin&Inv I&E,Materials,5004,21/04/2019,5657437,379.36,REVENUE,Fleet Factors Ltd,01231325,FLE0026E
North Lincolnshire Council,http://data.ordnancesurvey.co.uk/id/7000000000025623,Fin&Inv I&E,Materials,5004,21/04/2019,5657438,290.95,REVENUE,Fleet Factors Ltd,01231325,FLE0026E
North Lincolnshire Council,http://data.ordnancesurvey.co.uk/id/7000000000025623,Fin&Inv I&E,Materials,5004,21/04/2019,5657440,210.76,REVENUE,Fleet Factors Ltd,01231325,FLE0026E
North Lincolnshire Council,http://data.ordnancesurvey.co.uk/id/7000000000025623,Fin&Inv I&E,Materials,5004,21/04/2019,5657448,288.69,REVENUE,Fleet Factors Ltd,01231325,FLE0026E
North Lincolnshire Council,http://data.ordnancesurvey.co.uk/id/7000000000025623,Fin&Inv I&E,Materials,5004,21/04/2019,5657453,270.92,REVENUE,Fleet Factors Ltd,01231325,FLE0026E
North Lincolnshire Council,http://data.ordnancesurvey.co.uk/id/7000000000025623,Fin&Inv I&E,Materials,5004,21/04/2019,5657456,351.95,REVENUE,Fleet Factors Ltd,01231325,FLE0026E
North Lincolnshire Council,http://data.ordnancesurvey.co.uk/id/7000000000025623,Fin&Inv I&E,Materials,5004,24/04/2019,5657467,227.08,REVENUE,Fleet Factors Ltd,01231325,FLE0026E
North Lincolnshire Council,http://data.ordnancesurvey.co.uk/id/7000000000025623,Fin&Inv I&E,Stock Purchases & Adjustments,5030,15/03/2019,5642915,217.84,REVENUE,Fleet Factors Ltd,01231325,FLE0026E
North Lincolnshire Council,http://data.ordnancesurvey.co.uk/id/7000000000025623,Fin&Inv I&E,Stock Purchases & Adjustments,5030,15/03/2019,5642917,220.94,REVENUE,Fleet Factors Ltd,01231325,FLE0026E
North Lincolnshire Council,http://data.ordnancesurvey.co.uk/id/7000000000025623,Fin&Inv I&E,Stock Purchases & Adjustments,5030,20/03/2019,5642932,791.30,REVENUE,Fleet Factors Ltd,01231325,FLE0026E
North Lincolnshire Council,http://data.ordnancesurvey.co.uk/id/7000000000025623,Fin&Inv I&E,Stock Purchases & Adjustments,5030,19/04/2019,5656322,666.13,REVENUE,Fleet Factors Ltd,01231325,FLE0026E
North Lincolnshire Council,http://data.ordnancesurvey.co.uk/id/7000000000025623,Fin&Inv I&E,Stock Purchases & Adjustments,5030,21/04/2019,5657443,299.41,REVENUE,Fleet Factors Ltd,01231325,FLE0026E
North Lincolnshire Council,http://data.ordnancesurvey.co.uk/id/7000000000025623,Fin&Inv I&E,Materials,5004,22/03/2019,5642905,208.35,REVENUE,Fmg Support (Rrrm) Ltd,,DEL0036L
North Lincolnshire Council,http://data.ordnancesurvey.co.uk/id/7000000000025623,Adult Social Care,Course Fees/Training,2002,20/03/2019,5645284,420.00,REVENUE,Forefront Training Ltd,7200153,FOR0084R
North Lincolnshire Council,http://data.ordnancesurvey.co.uk/id/7000000000025623,Adult Social Care,Course Fees/Training,2002,10/04/2019,5653691,420.00,REVENUE,Forefront Training Ltd,7200153,FOR0084R
North Lincolnshire Council,http://data.ordnancesurvey.co.uk/id/7000000000025623,Culture & Related Services,Course Fees/Training,2002,19/04/2019,5653829,250.00,REVENUE,Forefront Training Ltd,7200153,FOR0084R
North Lincolnshire Council,http://data.ordnancesurvey.co.uk/id/7000000000025623,Public Health,Course Fees/Training,2002,17/04/2019,5651930,300.00,REVENUE,Forefront Training Ltd,7200153,FOR0084R
North Lincolnshire Council,http://data.ordnancesurvey.co.uk/id/7000000000025623,Adult Social Care,Payments To Private Orgs,6002,08/03/2019,5645638,840.00,REVENUE,Foresight Ne Lincs Ltd,1095120,FOR0192R
North Lincolnshire Council,http://data.ordnancesurvey.co.uk/id/7000000000025623,Adult Social Care,Payments To Private Orgs,6002,08/03/2019,5645639,372.00,REVENUE,Foresight Ne Lincs Ltd,1095120,FOR0192R
North Lincolnshire Council,http://data.ordnancesurvey.co.uk/id/7000000000025623,Adult Social Care,Payments To Private Orgs,6002,08/03/2019,5645641,444.00,REVENUE,Foresight Ne Lincs Ltd,1095120,FOR0192R
North Lincolnshire Council,http://data.ordnancesurvey.co.uk/id/7000000000025623,Adult Social Care,Payments To Private Orgs,6002,08/03/2019,5645643,299.00,REVENUE,Foresight Ne Lincs Ltd,1095120,FOR0192R
North Lincolnshire Council,http://data.ordnancesurvey.co.uk/id/7000000000025623,Adult Social Care,Payments To Private Orgs,6002,08/03/2019,5645644,840.00,REVENUE,Foresight Ne Lincs Ltd,1095120,FOR0192R
North Lincolnshire Council,http://data.ordnancesurvey.co.uk/id/7000000000025623,Adult Social Care,Payments To Private Orgs,6002,08/03/2019,5645645,465.00,REVENUE,Foresight Ne Lincs Ltd,1095120,FOR0192R
North Lincolnshire Council,http://data.ordnancesurvey.co.uk/id/7000000000025623,Adult Social Care,Payments To Private Orgs,6002,08/03/2019,5645646,740.00,REVENUE,Foresight Ne Lincs Ltd,1095120,FOR0192R
North Lincolnshire Council,http://data.ordnancesurvey.co.uk/id/7000000000025623,Adult Social Care,Payments To Private Orgs,6002,08/03/2019,5645647,505.00,REVENUE,Foresight Ne Lincs Ltd,1095120,FOR0192R
North Lincolnshire Council,http://data.ordnancesurvey.co.uk/id/7000000000025623,Adult Social Care,Payments To Private Orgs,6002,08/03/2019,5645648,420.00,REVENUE,Foresight Ne Lincs Ltd,1095120,FOR0192R
North Lincolnshire Council,http://data.ordnancesurvey.co.uk/id/7000000000025623,Adult Social Care,Payments To Private Orgs,6002,08/03/2019,5645649,280.00,REVENUE,Foresight Ne Lincs Ltd,1095120,FOR0192R
North Lincolnshire Council,http://data.ordnancesurvey.co.uk/id/7000000000025623,Adult Social Care,Payments To Private Orgs,6002,08/03/2019,5645650,407.00,REVENUE,Foresight Ne Lincs Ltd,1095120,FOR0192R
North Lincolnshire Council,http://data.ordnancesurvey.co.uk/id/7000000000025623,Adult Social Care,Payments To Private Orgs,6002,08/03/2019,5645651,268.00,REVENUE,Foresight Ne Lincs Ltd,1095120,FOR0192R
North Lincolnshire Council,http://data.ordnancesurvey.co.uk/id/7000000000025623,Adult Social Care,Payments To Private Orgs,6002,08/03/2019,5645675,490.00,REVENUE,Foresight Ne Lincs Ltd,1095120,FOR0192R
North Lincolnshire Council,http://data.ordnancesurvey.co.uk/id/7000000000025623,Adult Social Care,Payments To Private Orgs,6002,08/03/2019,5645677,279.00,REVENUE,Foresight Ne Lincs Ltd,1095120,FOR0192R
North Lincolnshire Council,http://data.ordnancesurvey.co.uk/id/7000000000025623,Adult Social Care,Payments To Private Orgs,6002,08/03/2019,5645679,407.00,REVENUE,Foresight Ne Lincs Ltd,1095120,FOR0192R
North Lincolnshire Council,http://data.ordnancesurvey.co.uk/id/7000000000025623,Adult Social Care,Payments To Private Orgs,6002,08/03/2019,5645680,272.00,REVENUE,Foresight Ne Lincs Ltd,1095120,FOR0192R
North Lincolnshire Council,http://data.ordnancesurvey.co.uk/id/7000000000025623,Adult Social Care,Payments To Private Orgs,6002,22/03/2019,5652204,435.00,REVENUE,Foresight Ne Lincs Ltd,1095120,FOR0192R
North Lincolnshire Council,http://data.ordnancesurvey.co.uk/id/7000000000025623,Adult Social Care,Payments To Private Orgs,6002,22/03/2019,5652205,875.00,REVENUE,Foresight Ne Lincs Ltd,1095120,FOR0192R
North Lincolnshire Council,http://data.ordnancesurvey.co.uk/id/7000000000025623,Adult Social Care,Payments To Private Orgs,6002,22/03/2019,5652206,740.00,REVENUE,Foresight Ne Lincs Ltd,1095120,FOR0192R
North Lincolnshire Council,http://data.ordnancesurvey.co.uk/id/7000000000025623,Adult Social Care,Payments To Private Orgs,6002,22/03/2019,5652207,465.00,REVENUE,Foresight Ne Lincs Ltd,1095120,FOR0192R
North Lincolnshire Council,http://data.ordnancesurvey.co.uk/id/7000000000025623,Childrens & Education,Heating Fuels,3104,22/03/2019,5652041,"1,663.94",REVENUE,Forest Fuels Ltd,5735950,FOR0196R
North Lincolnshire Council,http://data.ordnancesurvey.co.uk/id/7000000000025623,Adult Social Care,Payments To Health Providers,6019,22/03/2019,5651049,"2,111.00",REVENUE,Forest Pines Hotel,3398544,FOR0245R
North Lincolnshire Council,http://data.ordnancesurvey.co.uk/id/7000000000025623,Childrens & Education,Course Fees/Training,2002,15/03/2019,5648417,"6,000.00",REVENUE,Forest Pines Hotel,3398544,FOR0245R
North Lincolnshire Council,http://data.ordnancesurvey.co.uk/id/7000000000025623,Fin&Inv I&E,Materials,5004,29/03/2019,5650915,316.88,REVENUE,Forktruck Solutions Ltd,4032332,FOR0059R
North Lincolnshire Council,http://data.ordnancesurvey.co.uk/id/7000000000025623,Fin&Inv I&E,Materials,5004,14/04/2019,5656327,307.50,REVENUE,Forktruck Solutions Ltd,4032332,FOR0059R
North Lincolnshire Council,http://data.ordnancesurvey.co.uk/id/7000000000025623,Fin&Inv I&E,Materials,5004,18/04/2019,5657480,218.32,REVENUE,Forktruck Solutions Ltd,4032332,FOR0059R
North Lincolnshire Council,http://data.ordnancesurvey.co.uk/id/7000000000025623,Childrens & Education,Payments To Private Orgs,6002,08/03/2019,5645689,"2,979.76",REVENUE,Foster Care Associates Limited,08273494,FOS0030S
North Lincolnshire Council,http://data.ordnancesurvey.co.uk/id/7000000000025623,Childrens & Education,Payments To Private Orgs,6002,22/03/2019,5652585,"3,299.02",REVENUE,Foster Care Associates Limited,08273494,FOS0030S
North Lincolnshire Council,http://data.ordnancesurvey.co.uk/id/7000000000025623,Childrens & Education,Payments To Private Orgs,6002,08/03/2019,5645694,"2,949.80",REVENUE,Fostering Solutions Ltd,,FOS0044S
North Lincolnshire Council,http://data.ordnancesurvey.co.uk/id/7000000000025623,Childrens & Education,Payments To Private Orgs,6002,27/03/2019,5645699,"3,265.85",REVENUE,Fostering Solutions Ltd,,FOS0044S
North Lincolnshire Council,http://data.ordnancesurvey.co.uk/id/7000000000025623,Childrens & Education,Payments To Private Orgs,6002,06/03/2019,5642536,447.76,REVENUE,Fpa,,FPA0003A
North Lincolnshire Council,http://data.ordnancesurvey.co.uk/id/7000000000025623,Public Health,Other Supplies & Services,5799,22/03/2019,5653342,"33,406.19",REVENUE,Framework Housing Association,,FRA0017A
North Lincolnshire Council,http://data.ordnancesurvey.co.uk/id/7000000000025623,Childrens & Education,Course Fees/Training,2002,27/03/2019,5654006,"1,500.00",REVENUE,Frankish Training Ltd,,FRA0198A
North Lincolnshire Council,http://data.ordnancesurvey.co.uk/id/7000000000025623,Corporate And Democratic Core,Equipment Maint.& Repair,5003,07/04/2019,5652078,"1,200.00",REVENUE,Freelance Offset Services Ltd,,FRE0013E
North Lincolnshire Council,http://data.ordnancesurvey.co.uk/id/7000000000025623,"Culture,Env,Reg & Planning Cap",Other Costs,A085,20/03/2019,5651865,"34,047.41",CAPITAL,Friends Of Baysgarth Park,,FRI0011I
North Lincolnshire Council,http://data.ordnancesurvey.co.uk/id/7000000000025623,Childrens & Education,Rents,3201,06/04/2019,5651326,"3,000.00",REVENUE,Frodingham Community Centre,,FRO0061O
North Lincolnshire Council,http://data.ordnancesurvey.co.uk/id/7000000000025623,Fin&Inv I&E,Grounds Maintenance,3010,01/03/2019,5641181,-209.45,REVENUE,F W S Consultants Ltd,3944252,FWS0001S
North Lincolnshire Council,http://data.ordnancesurvey.co.uk/id/7000000000025623,Fin&Inv I&E,Grounds Maintenance,3010,01/03/2019,5641186,648.00,REVENUE,F W S Consultants Ltd,3944252,FWS0001S
North Lincolnshire Council,http://data.ordnancesurvey.co.uk/id/7000000000025623,Highways & Transport,Vehicle Repairs,4004,20/04/2019,5657481,370.00,REVENUE,Gallows Wood Service Station Ltd,,GAL0001L
North Lincolnshire Council,http://data.ordnancesurvey.co.uk/id/7000000000025623,Corporate And Democratic Core,Telephone Rent/Calls,5403,07/04/2019,5646514,"1,508.38",REVENUE,Gamma Business Communications Ltd,,GAM0150M
North Lincolnshire Council,http://data.ordnancesurvey.co.uk/id/7000000000025623,Highways & Transport,Equipment Hire/Rent,5002,27/03/2019,5647695,673.20,REVENUE,Gap Group,00198823,GAP0001P
North Lincolnshire Council,http://data.ordnancesurvey.co.uk/id/7000000000025623,"Culture,Env,Reg & Planning Cap",Consultants,A087,08/03/2019,5642764,"1,250.00",CAPITAL,Garness Jones Ltd,,GAR0375R
North Lincolnshire Council,http://data.ordnancesurvey.co.uk/id/7000000000025623,Childrens & Education,Payments To Private Orgs,6002,06/03/2019,5643077,"3,159.00",REVENUE,Gayle Parker,,PAR0491R
North Lincolnshire Council,http://data.ordnancesurvey.co.uk/id/7000000000025623,Fin&Inv I&E,Materials,5004,29/03/2019,5650808,"3,667.60",REVENUE,G Broughton & Sons,,BRO0028O
North Lincolnshire Council,http://data.ordnancesurvey.co.uk/id/7000000000025623,Fin&Inv I&E,Repair & Maintenance Costs,3000,27/03/2019,5654858,"4,946.00",REVENUE,Geo Houlton & Sons Ltd,1632717,HOU0159U
North Lincolnshire Council,http://data.ordnancesurvey.co.uk/id/7000000000025623,Highways & Transport,Other Supplies & Services,5799,11/04/2019,5648478,"12,228.58",REVENUE,Ginger Lehmann,05844012,GIN0008N
North Lincolnshire Council,http://data.ordnancesurvey.co.uk/id/7000000000025623,Corporate And Democratic Core,Fees & Charges Income,9002,08/03/2019,5645248,-25.93,REVENUE,G M B,,GMB0003B
North Lincolnshire Council,http://data.ordnancesurvey.co.uk/id/7000000000025623,Adult Social Care,Payments To Private Orgs,6002,06/03/2019,5644938,"5,382.78",REVENUE,Goodwin Healthcare Services Ltd,,ISF0030F
North Lincolnshire Council,http://data.ordnancesurvey.co.uk/id/7000000000025623,Adult Social Care,Payments To Private Orgs,6002,06/03/2019,5644938,"9,808.20",REVENUE,Goodwin Healthcare Services Ltd,,ISF0030F
North Lincolnshire Council,http://data.ordnancesurvey.co.uk/id/7000000000025623,Childrens & Education,Payments To Private Orgs,6002,01/03/2019,5641200,285.06,REVENUE,Goodwin Healthcare Services Ltd,8461130,CLA0170A
North Lincolnshire Council,http://data.ordnancesurvey.co.uk/id/7000000000025623,Childrens & Education,Payments To Private Orgs,6002,15/03/2019,5649413,292.69,REVENUE,Goodwin Healthcare Services Ltd,8461130,CLA0170A
North Lincolnshire Council,http://data.ordnancesurvey.co.uk/id/7000000000025623,Childrens & Education,Payments To Private Orgs,6002,22/03/2019,5653932,269.81,REVENUE,Goodwin Healthcare Services Ltd,8461130,CLA0170A
North Lincolnshire Council,http://data.ordnancesurvey.co.uk/id/7000000000025623,Culture & Related Services,Equipment Purchase,5001,06/03/2019,5641338,"1,020.68",REVENUE,Gopak Limited,536385,GOP0001P
North Lincolnshire Council,http://data.ordnancesurvey.co.uk/id/7000000000025623,"Culture,Env,Reg & Planning Cap",Other Costs,A085,13/03/2019,5647280,300.00,CAPITAL,Goxhill Parish Council,,GOX0015X
North Lincolnshire Council,http://data.ordnancesurvey.co.uk/id/7000000000025623,Culture & Related Services,Payments To Voluntary Orgs,6001,13/03/2019,5647280,300.00,REVENUE,Goxhill Parish Council,,GOX0015X
North Lincolnshire Council,http://data.ordnancesurvey.co.uk/id/7000000000025623,Childrens & Education,Payments To Private Orgs,6002,06/03/2019,5643044,"6,803.82",REVENUE,Goxhill Pre-School,,GOX0012X
North Lincolnshire Council,http://data.ordnancesurvey.co.uk/id/7000000000025623,Corporate And Democratic Core,Repair & Maintenance Costs,3000,20/03/2019,5652467,"3,016.00",REVENUE,Grade 3 Limited,4693854,GRA0389A
North Lincolnshire Council,http://data.ordnancesurvey.co.uk/id/7000000000025623,Corporate And Democratic Core,Other Supplies & Services,5799,15/03/2019,5641241,270.00,REVENUE,Grange Europe Ltd,472697,GRA0534A
North Lincolnshire Council,http://data.ordnancesurvey.co.uk/id/7000000000025623,Adult Social Care,Payments To Private Orgs,6002,06/03/2019,5644939,"1,864.68",REVENUE,Gray Healthcare Ltd,,ISF0032F
North Lincolnshire Council,http://data.ordnancesurvey.co.uk/id/7000000000025623,Public Health,Payments To Private Orgs (Inv),6026,22/03/2019,5651010,"47,000.00",REVENUE,Grimsby & Scunthorpe Rape Crisis Ltd,,RAP0006P
North Lincolnshire Council,http://data.ordnancesurvey.co.uk/id/7000000000025623,Adult Social Care,Equipment Purchase,5001,27/03/2019,5647486,306.00,REVENUE,Guardian24,,GUA0032A
North Lincolnshire Council,http://data.ordnancesurvey.co.uk/id/7000000000025623,Childrens & Education,Payments To Voluntary Orgs,6001,06/03/2019,5643045,"5,048.32",REVENUE,Gunness & Burringham Playgroup,,GUN0025N
